Workbook

Sheet Comparison
B2: Validation results - maximum deviation | F2: Comparison results are based on:
C3: GeographicLib (GL) | D3: Geoscience Australia (GA) | F3: 1. GeographicLib (GL) by Charls Karney ver. 1.49 (https://geographiclib.sourceforge.io/html)
B4: VincentyDirLat [degrees] | C4: =Direct!O603 -> 1.105867398e-09 | D4: =Direct!P603 -> 3.964454365e-08 | F4: 2. Geoscience Australia (GA) website batch processing results obtained on 2020-09-05 (https://geodesyapps.ga.gov.au)
B5: VincentyDirLon [degees] | C5: =Direct!R603 -> 6.542698827e-09 | D5: =Direct!S603 -> 2.884696642e-07
B6: VincentyDirRevAzimuth [degrees] | C6: =Direct!U603 -> 6.542556719e-09 | D6: =Direct!V603 -> 5.047670015e-07
B7: VincentyInvDistance [mm] | C7: =Inverse!P603*1000 -> 0.07239729166 | D7: =Inverse!R603*1000 -> 0.536551699
B8: VincentyInvFwdAzimuth [degrees] | C8: =Inverse!T603 -> 1.458190766e-06 | D8: =Inverse!U603 -> 1.462196822e-06
B9: VincentyInvRevAzimuth [degrees] | C9: =Inverse!W603 -> 1.458215395e-06 | D9: =Inverse!X603 -> 1.473953859e-06

Sheet Direct
A1: Input data | E1: GeodSolve Library (GL) results | I1: Geoscience Australia (GA) results | N1: Calculated Results And Comparison
A2: Lat1 | B2: Lon1 | C2: Azimuth | D2: Distance | E2: Latitude | F2: Longitude | G2: revAzimuth | H2: Norm. RevAzimuth | I2: Latitude | J2: Longitude | K2: Norm. Longitude | L2: RevAzimuth | M2: Norm. RevAzimuth | N2: Calculated Latitude | O2: Latitude GL Δ | P2: Latitude GA Δ | Q2: Calculated Longitude | R2: Longitude GL Δ | S2: Longitude GA Δ | T2: calculated RevAzimuth | U2: RevAzimuth GL Δ | V2: revAzimuth GA Δ
A3: 37.93204 | B3: 40.93572 | C3: 358.74231 | D3: 22085892.74 | E3: -56.65252195 | F3: -139.7857093 | G3: -178.1972313 | H3: =NormalizeAzimuth(G3, TRUE) -> 181.8027687 | I3: -56.65252195 | J3: 220.2142907 | K3: =normalizelon(J3) -> -139.7857093 | L3: 1.802769 | M3: =NormalizeAzimuth(L3+180, TRUE) -> 181.802769 | N3: =vincentyDirLat(A3, $B3, $C3, $D3) -> -56.65252195 | O3: =ABS(E3-N3) -> 7.164615567e-10 | P3: =ABS(I3-N3) -> 6.580464174e-09 | Q3: =VincentyDirLon($A3, $B3, $C3, $D3) -> -139.7857093 | R3: =ABS(F3-Q3) -> 3.100808499e-11 | S3: =ABS(K3-Q3) -> 6.439790923e-10 | T3: =VincentyDirRevAzimuth($A3, $B3, $C3, $D3) -> 181.8027687 | U3: =ABS(H3-T3) -> 3.453237696e-11 | V3: =ABS(M3-T3) -> 3.368714658e-07
A4: -47.3325 | B4: 52.2398 | C4: 231.23897 | D4: 19786754.97 | E4: 46.14290129 | F4: -125.3439559 | G4: -49.7117815 | H4: =NormalizeAzimuth(G4, TRUE) -> 310.2882185 | I4: 46.14290127 | J4: -125.3439559 | K4: =normalizelon(J4) -> -125.3439559 | L4: 130.288219 | M4: =NormalizeAzimuth(L4+180, TRUE) -> 310.288219 | N4: =vincentyDirLat(A4, $B4, $C4, $D4) -> 46.14290129 | O4: =ABS(E4-N4) -> 5.259224167e-10 | P4: =ABS(I4-N4) -> 1.377291881e-08 | Q4: =VincentyDirLon($A4, $B4, $C4, $D4) -> -125.3439559 | R4: 4.853717428e-10 | S4: 2.295337254e-08 | T4: =VincentyDirRevAzimuth($A4, $B4, $C4, $D4) -> 310.2882185 | U4: 6.434675015e-10 | V4: 5.047670015e-07
A5: 71.02614 | B5: -11.58161 | C5: 341.87816 | D5: 13647633.2 | E5: -14.61912711 | F5: -175.8676842 | G5: -173.9840301 | H5: 186.0159699 | I5: -14.61912714 | J5: -175.8676843 | K5: -175.8676843 | L5: 6.01597 | M5: 186.01597 | N5: -14.61912711 | O5: 4.372679996e-10 | P5: 2.980943137e-08 | Q5: -175.8676842 | R5: 1.259081728e-11 | S5: 3.223419753e-09 | T5: 186.0159699 | U5: 1.202238309e-11 | V5: 1.442909934e-07
A6: -73.14621 | B6: -166.31255 | C6: 349.94654 | D6: 5057004.357 | E6: -27.88730763 | F6: -174.3957319 | G6: -3.290383549 | H6: 356.7096165 | I6: -27.88730763 | J6: -174.3957319 | K6: -174.3957319 | L6: 176.709616 | M6: 356.709616 | N6: -27.88730763 | O6: 1.65673697e-10 | P6: 1.974573394e-09 | Q6: -174.3957319 | R6: 2.927436071e-12 | S6: 6.229186056e-10 | T6: 356.7096165 | U6: 4.888534022e-12 | V6: 4.510469012e-07
A7: 66.38028 | B7: 29.74333 | C7: 140.27108 | D7: 26211926.04 | E7: -14.97905378 | F7: -117.250469 | G7: 15.41351363 | H7: 15.41351363 | I7: -14.97905379 | J7: -117.250469 | K7: -117.250469 | L7: 195.413514 | M7: 15.413514 | N7: -14.97905378 | O7: 8.900311599e-10 | P7: 1.200333166e-08 | Q7: -117.250469 | R7: 5.834976946e-11 | S7: 3.696356998e-09 | T7: 15.41351363 | U7: 6.509814909e-11 | V7: 3.74020761e-07
A8: -78.89715 | B8: 151.49567 | C8: 242.19583 | D8: 5877843.395 | E8: -41.7402637 | F8: 42.14185929 | G8: -13.21949635 | H8: 346.7805036 | I8: -41.7402637 | J8: 42.14185929 | K8: 42.14185929 | L8: 166.780504 | M8: 346.780504 | N8: -41.7402637 | O8: 8.586198419e-11 | P8: 1.666244032e-09 | Q8: 42.14185929 | R8: 7.091216503e-12 | S8: 4.639844065e-10 | T8: 346.7805036 | U8: 1.790567694e-11 | V8: 3.51544827e-07
A9: 33.79546 | B9: -134.20804 | C9: 164.3986 | D9: 17353851.46 | E9: -56.32733906 | F9: 34.3992352 | G9: 23.73987397 | H9: 23.73987397 | I9: -56.32733905 | J9: 34.39923521 | K9: 34.39923521 | L9: 203.739874 | M9: 23.739874 | N9: -56.32733906 | O9: 5.444391604e-10 | P9: 9.87326132e-09 | Q9: 34.3992352 | R9: 3.27140981e-10 | S9: 7.822450243e-09 | T9: 23.73987397 | U9: 3.583586761e-10 | V9: 2.810834587e-08
A10: 25.90362 | B10: -116.54492 | C10: 251.01541 | D10: 11211606.78 | E10: -21.83018503 | F10: 151.6979209 | G10: -113.5844749 | H10: 246.4155251 | I10: -21.83018502 | J10: -208.3020791 | K10: 151.6979209 | L10: 66.415525 | M10: 246.415525 | N10: -21.83018503 | O10: 2.700737411e-10 | P10: 6.531276853e-09 | Q10: 151.6979209 | R10: 4.509956852e-10 | S10: 1.450700893e-08 | T10: 246.4155251 | U10: 2.462456905e-10 | V10: 7.544423397e-08
A11: 88.82487 | B11: -171.29023 | C11: 236.64452 | D11: 13413100.69 | E11: -31.46690731 | F11: 131.4769995 | G11: -178.8463966 | H11: 181.1536034 | I11: -31.46690734 | J11: -228.5230005 | K11: 131.4769995 | L11: 1.153603 | M11: 181.153603 | N11: -31.46690731 | O11: 5.010925008e-10 | P11: 3.009850502e-08 | Q11: 131.4769995 | R11: 6.650680007e-12 | S11: 3.563513928e-10 | T11: 181.1536034 | U11: 6.565414878e-12 | V11: 4.252275687e-07
A12: -84.62611 | B12: -104.26258 | C12: 334.79195 | D12: 10061299.77 | E12: 5.446117093 | F12: -129.5787797 | G12: -2.303989972 | H12: 357.69601 | I12: 5.446117066 | J12: -129.5787797 | K12: -129.5787797 | L12: 177.69601 | M12: 357.69601 | N12: 5.446117093 | O12: 3.626885459e-10 | P12: 2.742866823e-08 | Q12: -129.5787797 | R12: 5.684341886e-12 | S12: 1.391669002e-09 | T12: 357.69601 | U12: 1.47792889e-12 | V12: 2.825453294e-08
A13: 51.38601 | B13: -111.37733 | C13: 293.94512 | D13: 13574546.63 | E13: -11.64520318 | F13: 120.9882205 | G13: -144.3056918 | H13: 215.6943082 | I13: -11.64520316 | J13: -239.0117795 | K13: 120.9882205 | L13: 35.694308 | M13: 215.694308 | N13: -11.64520318 | O13: 4.639204576e-10 | P13: 2.316211933e-08 | Q13: 120.9882205 | R13: 1.571720532e-11 | S13: 1.656371751e-08 | T13: 215.6943082 | U13: 6.80984158e-11 | V13: 2.276630937e-07
A14: 73.61243 | B14: 21.2996 | C14: 351.57213 | D14: 5397158.528 | E14: 57.78446904 | F14: -146.8407588 | G14: -175.5482802 | H14: 184.4517198 | I14: 57.78446905 | J14: -146.8407588 | K14: -146.8407588 | L14: 4.45172 | M14: 184.45172 | N14: 57.78446904 | O14: 1.107025582e-11 | P14: 3.764569101e-09 | Q14: -146.8407588 | R14: 6.821210263e-12 | S14: 7.151754744e-10 | T14: 184.4517198 | U14: 6.821210263e-13 | V14: 1.860516647e-07
A15: -63.83888 | B15: -172.55153 | C15: 309.01081 | D15: 1974293.521 | E15: -50.39515021 | F15: 165.6969669 | G15: -32.53309645 | H15: 327.4669035 | I15: -50.39515021 | J15: -194.3030331 | K15: 165.6969669 | L15: 147.466904 | M15: 327.466904 | N15: -50.39515021 | O15: 3.696243311e-11 | P15: 1.880735567e-09 | Q15: 165.6969669 | R15: 1.540456651e-11 | S15: 2.315573511e-09 | T15: 327.4669035 | U15: 2.813749234e-11 | V15: 4.513285603e-07
A16: -46.89855 | B16: 173.49565 | C16: 328.50568 | D16: 15153458.34 | E16: 68.57557774 | F16: 73.03492304 | G16: -77.46108022 | H16: 282.5389198 | I16: 68.57557775 | J16: 73.03492292 | K16: 73.03492292 | L16: 102.53892 | M16: 282.53892 | N16: 68.57557774 | O16: 1.400337624e-10 | P16: 9.543654755e-09 | Q16: 73.03492304 | R16: 1.582023401e-09 | S16: 1.175864668e-07 | T16: 282.5389198 | U16: 1.606565547e-09 | V16: 2.181409968e-07
A17: 82.99066 | B17: -95.84995 | C17: 330.465 | D17: 11924411.23 | E17: -11.19701067 | F17: 112.8380241 | G17: -176.4730174 | H17: 183.5269826 | I17: -11.19701065 | J17: -247.1619759 | K17: 112.8380241 | L17: 3.526983 | M17: 183.526983 | N17: -11.19701067 | O17: 3.620748146e-10 | P17: 1.503217462e-08 | Q17: 112.8380241 | R17: 4.97379915e-12 | S17: 1.014939244e-09 | T17: 183.5269826 | U17: 4.774847184e-12 | V17: 4.077232347e-07
A18: -55.50224 | B18: -151.16015 | C18: 290.10536 | D18: 24906146.87 | E18: 27.08703347 | F18: -18.05489328 | G18: -143.249541 | H18: 216.750459 | I18: 27.08703346 | J18: -18.05489329 | K18: -18.05489329 | L18: 36.750459 | M18: 216.750459 | N18: 27.08703347 | O18: 8.01243516e-10 | P18: 9.831254033e-09 | Q18: -18.05489328 | R18: 1.214317535e-10 | S18: 7.830777804e-09 | T18: 216.750459 | U18: 3.037996521e-10 | V18: 3.233793677e-09
A19: 86.37289 | B19: -16.15495 | C19: 151.89457 | D19: 22990024.52 | E19: -59.99444414 | F19: -171.0778127 | G19: 3.419434391 | H19: 3.419434391 | I19: -59.99444418 | J19: -171.0778127 | K19: -171.0778127 | L19: 183.419434 | M19: 3.419434 | N19: -59.99444414 | O19: 6.628368965e-10 | P19: 3.875084076e-08 | Q19: -171.0778127 | R19: 6.011191545e-11 | S19: 4.746112836e-09 | T19: 3.419434391 | U19: 6.835998434e-11 | V19: 3.905124162e-07
A20: -22.98502 | B20: 163.42873 | C20: 109.00563 | D20: 6642422.875 | E20: -27.1446406 | F20: -130.1227848 | G20: 77.95273572 | H20: 77.95273572 | I20: -27.1446406 | J20: 229.8772152 | K20: -130.1227848 | L20: 257.952736 | M20: 77.952736 | N20: -27.1446406 | O20: 6.947331599e-11 | P20: 1.004742956e-10 | Q20: -130.1227848 | R20: 8.745359992e-11 | S20: 1.596447419e-09 | T20: 77.95273572 | U20: 1.658833071e-10 | V20: 2.78151802e-07
A21: 43.96354 | B21: 75.04604 | C21: 193.59317 | D21: 12967928.03 | E21: -69.74235113 | F21: 37.93660898 | G21: -150.7955292 | H21: 209.2044708 | I21: -69.74235113 | J21: 37.93660898 | K21: 37.93660898 | L21: 29.204471 | M21: 209.204471 | N21: -69.74235113 | O21: 5.069438203e-10 | P21: 7.606502095e-10 | Q21: 37.93660898 | R21: 7.675566849e-10 | S21: 8.104734661e-10 | T21: 209.2044708 | U21: 7.667040336e-10 | V21: 1.850653177e-07
A22: 33.43607 | B22: -128.50958 | C22: 177.97383 | D22: 28559805.61 | E22: 43.78840702 | F22: 54.19672037 | G22: 2.340995143 | H22: 2.340995143 | I22: 43.78840702 | J22: -305.8032796 | K22: 54.19672037 | L22: 182.340995 | M22: 2.340995 | N22: 43.78840702 | O22: 1.105867398e-09 | P22: 6.065668856e-09 | Q22: 54.19672037 | R22: 4.18935997e-11 | S22: 5.699689609e-10 | T22: 2.340995143 | U22: 4.338573945e-11 | V22: 1.43087445e-07
A23: -82.79867 | B23: 2.33506 | C23: 90.62013 | D23: 19798139.99 | E23: 82.54978113 | F23: 167.9403505 | G23: 75.17664798 | H23: 75.17664798 | I23: 82.54978114 | J23: 167.9403508 | K23: 167.9403508 | L23: 255.176648 | M23: 75.176648 | N23: 82.54978113 | O23: 1.726050414e-10 | P23: 1.001778571e-08 | Q23: 167.9403505 | R23: 4.964306299e-09 | S23: 2.884696642e-07 | T23: 75.17664798 | U23: 4.98825159e-09 | V23: 1.576684383e-08
A24: -30.6114 | B24: -113.41504 | C24: 138.88733 | D24: 29611069.56 | E24: 42.82653276 | F24: -177.2394852 | G24: 129.5489542 | H24: 129.5489542 | I24: 42.82653278 | J24: -177.2394853 | K24: -177.2394853 | L24: 309.548954 | M24: 129.548954 | N24: 42.82653275 | O24: 7.127809454e-10 | P24: 2.657737497e-08 | Q24: -177.2394852 | R24: 3.649631708e-10 | S24: 4.405197274e-08 | T24: 129.5489542 | U24: 7.970299976e-10 | V24: 2.192610395e-07
A25: -87.84541 | B25: -13.64112 | C25: 193.00731 | D25: 23819608.18 | E25: 57.90233615 | F25: 0.1363452247 | G25: -179.0866711 | H25: 180.9133289 | I25: 57.90233614 | J25: 0.136345224 | K25: 0.136345224 | L25: 0.913329 | M25: 180.913329 | N25: 57.90233615 | O25: 6.694520494e-10 | P25: 1.798454718e-08 | Q25: 0.1363452247 | R25: 1.458236309e-11 | S25: 6.711218248e-10 | T25: 180.9133289 | U25: 1.742250788e-11 | V25: 5.559641636e-08
A26: -53.74601 | B26: -101.11091 | C26: 326.17998 | D26: 9694952.336 | E26: 27.09690619 | F26: -139.6302943 | G26: -21.73277621 | H26: 338.2672238 | I26: 27.09690619 | J26: -139.6302943 | K26: -139.6302943 | L26: 158.267224 | M26: 338.267224 | N26: 27.09690619 | O26: 4.22211599e-10 | P26: 8.108145266e-10 | Q26: -139.6302943 | R26: 1.274997885e-10 | S26: 5.694857919e-10 | T26: 338.2672238 | U26: 8.594724932e-11 | V26: 2.073323344e-07
A27: -88.25021 | B27: -140.20064 | C27: 13.93619 | D27: 792391.5846 | E27: -81.19667376 | F27: -128.9927511 | G27: 2.754452156 | H27: 2.754452156 | I27: -81.19667376 | J27: -128.9927511 | K27: -128.9927511 | L27: 182.754452 | M27: 2.754452 | N27: -81.19667376 | O27: 4.983746749e-11 | P27: 9.052314454e-12 | Q27: -128.9927511 | R27: 1.602984412e-11 | S27: 5.195488484e-11 | T27: 2.754452156 | U27: 1.56394897e-11 | V27: 1.559010245e-07
A28: 10.46365 | B28: -67.85207 | C28: 99.00061 | D28: 29956582.73 | E28: 8.878086842 | F28: -160.3841353 | G28: 79.44194743 | H28: 79.44194743 | I28: 8.878086837 | J28: -160.3841353 | K28: -160.3841353 | L28: 259.441947 | M28: 79.441947 | N28: 8.878086843 | O28: 3.444871055e-10 | P28: 5.652246671e-09 | Q28: -160.3841353 | R28: 1.522295179e-09 | S28: 3.237630608e-08 | T28: 79.44194743 | U28: 2.869171567e-10 | V28: 4.264533828e-07
A29: 67.80254 | B29: -156.02513 | C29: 155.36896 | D29: 110882.5068 | E29: 66.89525575 | F29: -154.970215 | G29: 156.342541 | H29: 156.342541 | I29: 66.89525575 | J29: -154.970215 | K29: -154.970215 | L29: 336.342541 | M29: 156.342541 | N29: 66.89525575 | O29: 9.947598301e-14 | P29: 1.540456651e-11 | Q29: -154.970215 | R29: 3.126388037e-13 | S29: 2.103206498e-10 | T29: 156.342541 | U29: 5.115907697e-13 | V29: 7.947505765e-09
A30: -53.21975 | B30: -37.61912 | C30: 193.45201 | D30: 6349519.364 | E30: -67.6989007 | F30: 173.2718859 | G30: -21.51769291 | H30: 338.4823071 | I30: -67.6989007 | J30: -186.7281141 | K30: 173.2718859 | L30: 158.482307 | M30: 338.482307 | N30: -67.6989007 | O30: 5.603340014e-11 | P30: 1.354365509e-09 | Q30: 173.2718859 | R30: 2.680167199e-11 | S30: 1.348212209e-09 | T30: 338.4823071 | U30: 5.405809134e-11 | V30: 8.819216646e-08
A31: -32.08322 | B31: 43.79468 | C31: 185.92912 | D31: 10318810.03 | E31: -54.87667995 | F31: -125.8705355 | G31: -8.738525342 | H31: 351.2614747 | I31: -54.87667992 | J31: -125.8705356 | K31: -125.8705356 | L31: 171.261475 | M31: 351.261475 | N31: -54.87667995 | O31: 1.580602316e-10 | P31: 2.440984304e-08 | Q31: -125.8705355 | R31: 1.261923899e-11 | S31: 6.354383686e-09 | T31: 351.2614747 | U31: 3.478817234e-11 | V31: 3.419369818e-07
A32: 35.12396 | B32: 93.1178 | C32: 266.50542 | D32: 4453734.688 | E32: 24.08216434 | F32: 48.48391905 | G32: -116.5283401 | H32: 243.4716599 | I32: 24.08216434 | J32: 48.48391904 | K32: 48.48391904 | L32: 63.47166 | M32: 243.47166 | N32: 24.08216434 | O32: 9.398348766e-11 | P32: 1.387917337e-09 | Q32: 48.48391905 | R32: 7.928235846e-11 | S32: 2.423774959e-09 | T32: 243.4716599 | U32: 8.401457308e-11 | V32: 1.400239853e-07
A33: 79.2941 | B33: 46.86943 | C33: 4.37468 | D33: 16192411.12 | E33: -45.1135529 | F33: -136.6207091 | G33: 178.8476657 | H33: 178.8476657 | I33: -45.11355293 | J33: 223.3792909 | K33: -136.6207091 | L33: 358.847666 | M33: 178.847666 | N33: -45.1135529 | O33: 5.773514999e-10 | P33: 2.345515071e-08 | Q33: -136.6207091 | R33: 1.060129762e-11 | S33: 8.224105841e-10 | T33: 178.8476657 | U33: 1.156763574e-11 | V33: 2.9578257e-07
A34: 54.90717 | B34: -9.19916 | C34: 159.90084 | D34: 47791.9216 | E34: 54.5037222 | F34: -8.945640327 | G34: 160.1077623 | H34: 160.1077623 | I34: 54.5037222 | J34: -8.945640327 | K34: -8.945640327 | L34: 340.107762 | M34: 160.107762 | N34: 54.5037222 | O34: 1.207922651e-12 | P34: 2.23892016e-10 | Q34: -8.945640327 | R34: 5.098144129e-13 | S34: 2.225135631e-10 | T34: 160.1077623 | U34: 4.831690603e-13 | V34: 2.561845065e-07
A35: -83.44626 | B35: 129.38958 | C35: 259.11182 | D35: 16379592.86 | E35: 55.73577403 | F35: 18.95640095 | G35: -11.49469744 | H35: 348.5053026 | I35: 55.73577403 | J35: 18.95640095 | K35: 18.95640095 | L35: 168.505303 | M35: 348.505303 | N35: 55.73577403 | O35: 6.16076079e-10 | P35: 4.5079247e-09 | Q35: 18.95640095 | R35: 1.750599665e-10 | S35: 1.781927494e-09 | T35: 348.5053026 | U35: 1.836610863e-10 | V35: 4.426073588e-07
A36: 10.2753 | B36: 101.86165 | C36: 18.37228 | D36: 25941909.83 | E36: -58.99902998 | F36: -48.99884848 | G36: 143.0782618 | H36: 143.0782618 | I36: -58.99902995 | J36: -48.99884852 | K36: -48.99884852 | L36: 323.078262 | M36: 143.078262 | N36: -58.99902998 | O36: 7.816396419e-10 | P36: 2.847043845e-08 | Q36: -48.99884848 | R36: 9.02481645e-10 | S36: 4.115418051e-08 | T36: 143.0782618 | U36: 9.756604413e-10 | V36: 1.806806438e-07
A37: -70.47984 | B37: -59.32464 | C37: 269.09639 | D37: 19983063.06 | E37: 70.47684546 | F37: 121.3356544 | G37: -88.66451669 | H37: 271.3354833 | I37: 70.47684546 | J37: -238.6643457 | K37: 121.3356543 | L37: 91.335483 | M37: 271.335483 | N37: 70.47684546 | O37: 1.665512173e-11 | P37: 1.135035177e-09 | Q37: 121.3356544 | R37: 1.944030714e-09 | S37: 1.027789267e-07 | T37: 271.3354833 | U37: 2.019135081e-09 | V37: 3.089858751e-07
A38: -43.31085 | B38: 142.96419 | C38: 132.10337 | D38: 14969044.28 | E38: 7.778220455 | F38: -69.41168651 | G38: 33.07283396 | H38: 33.07283396 | I38: 7.778220428 | J38: 290.5883135 | K38: -69.41168653 | L38: 213.072834 | M38: 33.072834 | N38: 7.778220455 | O38: 5.087521515e-10 | P38: 2.714772229e-08 | Q38: -69.41168651 | R38: 1.195132882e-11 | S38: 1.79090307e-08 | T38: 33.07283396 | U38: 4.505551487e-11 | V38: 3.904534651e-08
A39: 66.89793 | B39: 62.62509 | C39: 295.13056 | D39: 20971884.74 | E39: -69.13870794 | F39: -139.7979323 | G39: -94.09633667 | H39: 265.9036633 | I39: -69.13870795 | J39: 220.2020676 | K39: -139.7979324 | L39: 85.903663 | M39: 265.903663 | N39: -69.13870794 | O39: 4.935429843e-11 | P39: 2.241435482e-09 | Q39: -139.7979323 | R39: 1.702261443e-09 | S39: 6.875677627e-08 | T39: 265.9036633 | U39: 1.810349204e-09 | V39: 3.291301596e-07
A40: -14.44898 | B40: -131.36622 | C40: 357.3988 | D40: 5018737.575 | E40: 30.86017273 | F40: -133.5085192 | G40: -2.932666332 | H40: 357.0673337 | I40: 30.86017274 | J40: -133.5085192 | K40: -133.5085192 | L40: 177.067334 | M40: 357.067334 | N40: 30.86017274 | O40: 2.417408496e-10 | P40: 2.977959213e-09 | Q40: -133.5085192 | R40: 1.32729383e-11 | S40: 4.017408628e-10 | T40: 357.0673337 | U40: 7.787548384e-12 | V40: 3.319647135e-07
A41: 56.26164 | B41: 160.04601 | C41: 207.2295 | D41: 5688651.016 | E41: 7.750571889 | F41: 138.9919874 | G41: -165.1049014 | H41: 194.8950986 | I41: 7.750571888 | J41: 138.9919874 | K41: 138.9919874 | L41: 14.895099 | M41: 194.895099 | N41: 7.750571889 | O41: 2.487343664e-10 | P41: 1.173435571e-09 | Q41: 138.9919874 | R41: 2.47268872e-11 | S41: 4.292814992e-10 | T41: 194.8950986 | U41: 8.952838471e-12 | V41: 3.798919295e-07
A42: -52.43038 | B42: -158.68407 | C42: 295.40204 | D42: 24475326.59 | E42: 25.78121877 | F42: -18.73776914 | G42: -142.2249668 | H42: 217.7750332 | I42: 25.78121875 | J42: -18.73776916 | K42: -18.73776916 | L42: 37.775033 | M42: 217.775033 | N42: 25.78121877 | O42: 7.97768962e-10 | P42: 2.254002851e-08 | Q42: -18.73776914 | R42: 1.154099039e-10 | S42: 1.919229931e-08 | T42: 217.7750332 | U42: 2.96864755e-10 | V42: 2.04237125e-07
A43: 18.91492 | B43: -16.34651 | C43: 214.55985 | D43: 11418445.47 | E43: -56.35751234 | F43: -101.0627041 | G43: -104.8210035 | H43: 255.1789965 | I43: -56.35751234 | J43: -101.0627041 | K43: -101.0627041 | L43: 75.178997 | M43: 255.178997 | N43: -56.35751234 | O43: 1.522622028e-10 | P43: 1.24374111e-09 | Q43: -101.0627041 | R43: 8.599698731e-10 | S43: 6.511029937e-09 | T43: 255.1789965 | U43: 8.618314951e-10 | V43: 4.700171701e-07
A44: -18.66128 | B44: -176.80045 | C44: 293.2995 | D44: 21962851.26 | E44: 10.90047624 | F44: -12.91121281 | G44: -117.5818406 | H44: 242.4181594 | I44: 10.90047625 | J44: -12.91121278 | K44: -12.91121278 | L44: 62.418159 | M44: 242.418159 | N44: 10.90047624 | O44: 5.769607014e-10 | P44: 1.528686155e-08 | Q44: -12.91121281 | R44: 3.076205957e-10 | S44: 3.01410239e-08 | T44: 242.4181594 | U44: 2.112301445e-10 | V44: 3.656417675e-07
A45: -17.82623 | B45: 131.55552 | C45: 146.41114 | D45: 23153552.51 | E45: 40.35422714 | F45: -28.60924731 | G45: 43.6587405 | H45: 43.6587405 | I45: 40.35422715 | J45: -28.60924729 | K45: -28.60924729 | L45: 223.658741 | M45: 43.658741 | N45: 40.35422714 | O45: 7.041336403e-10 | P45: 1.509116032e-08 | Q45: -28.60924731 | R45: 4.069278248e-10 | S45: 1.906417424e-08 | T45: 43.6587405 | U45: 5.689173577e-10 | V45: 4.969680489e-07
A46: 12.14262 | B46: -36.63598 | C46: 146.83186 | D46: 27457648.37 | E46: 42.44156275 | F46: -174.0334337 | G46: 46.36697999 | H46: 46.36697999 | I46: 42.44156272 | J46: -174.0334337 | K46: -174.0334337 | L46: 226.36698 | M46: 46.36698 | N46: 42.44156275 | O46: 8.504059679e-10 | P46: 3.117140324e-08 | Q46: -174.0334337 | R46: 7.077858299e-10 | S46: 4.296580869e-08 | T46: 46.36697999 | U46: 8.12882206e-10 | V46: 5.897426547e-09
A47: 69.92618 | B47: 87.82499 | C47: 48.88392 | D47: 1594501.665 | E47: 74.99736531 | F47: 133.6987005 | G47: 92.87155025 | H47: 92.87155025 | I47: 74.99736531 | J47: 133.6987005 | K47: 133.6987005 | L47: 272.87155 | M47: 92.87155 | N47: 74.99736531 | O47: 2.842170943e-13 | P47: 4.986162594e-10 | Q47: 133.6987005 | R47: 7.958078641e-13 | S47: 1.011119366e-08 | T47: 92.87155025 | U47: 2.032152224e-11 | V47: 2.463639106e-07
A48: -55.5651 | B48: 30.07778 | C48: 165.26965 | D48: 7281691.938 | E48: -57.33278618 | F48: -175.2590008 | G48: 15.44758377 | H48: 15.44758377 | I48: -57.33278619 | J48: 184.7409992 | K48: -175.2590008 | L48: 195.447584 | M48: 15.447584 | N48: -57.33278618 | O48: 4.45936621e-11 | P48: 2.567496438e-09 | Q48: -175.2590008 | R48: 1.244870873e-11 | S48: 1.793523552e-09 | T48: 15.44758377 | U48: 1.891109491e-11 | V48: 2.27223218e-07
A49: 54.7424 | B49: -122.9849 | C49: 12.37074 | D49: 23518265.96 | E49: -82.25283343 | F49: 113.0009096 | G49: 113.5891079 | H49: 113.5891079 | I49: -82.25283342 | J49: -246.9990906 | K49: 113.0009094 | L49: 293.589108 | M49: 113.589108 | N49: -82.25283343 | O49: 2.825970569e-10 | P49: 8.929788464e-09 | Q49: 113.0009096 | R49: 4.720874358e-09 | S49: 1.503518661e-07 | T49: 113.5891079 | U49: 4.756103067e-09 | V49: 1.189801111e-07
A50: -16.65599 | B50: -3.15256 | C50: 278.37556 | D50: 3921469.098 | E50: -8.792228898 | F50: -38.42107422 | G50: -73.5939212 | H50: 286.4060788 | I50: -8.792228897 | J50: -38.42107422 | K50: -38.42107422 | L50: 106.406079 | M50: 286.406079 | N50: -8.792228897 | O50: 6.786393669e-11 | P50: 4.985860613e-10 | Q50: -38.42107422 | R50: 1.381437187e-10 | S50: 1.109867753e-09 | T50: 286.4060788 | U50: 3.524291969e-11 | V50: 2.010481239e-07
A51: 41.28819 | B51: -163.27911 | C51: 93.86545 | D51: 8374879.001 | E51: 6.719486133 | F51: -86.99639954 | G51: 130.8920763 | H51: 130.8920763 | I51: 6.719486132 | J51: -86.99639954 | K51: -86.99639954 | L51: 310.892076 | M51: 130.892076 | N51: 6.719486133 | O51: 2.706252999e-10 | P51: 7.40964623e-10 | Q51: -86.99639954 | R51: 3.595346243e-11 | S51: 2.107611863e-10 | T51: 130.8920763 | U51: 3.666400517e-11 | V51: 2.64811689e-07
A52: -55.10799 | B52: -30.4592 | C52: 218.89684 | D52: 2583078.804 | E52: -68.32772752 | F52: -72.37878713 | G52: -103.588655 | H52: 256.411345 | I52: -68.32772752 | J52: -72.37878713 | K52: -72.37878713 | L52: 76.411345 | M52: 256.411345 | N52: -68.32772752 | O52: 9.791278899e-12 | P52: 4.932019237e-10 | Q52: -72.37878713 | R52: 7.059952623e-11 | S52: 5.054502594e-09 | T52: 256.411345 | U52: 1.009539119e-10 | V52: 1.341203415e-08
A53: 80.34284 | B53: 13.14785 | C53: 216.89024 | D53: 14011974.03 | E53: -43.73573877 | F53: -28.86232759 | G53: -171.9752649 | H53: 188.0247351 | I53: -43.73573874 | J53: -28.86232758 | K53: -28.86232758 | L53: 8.024735 | M53: 188.024735 | N53: -43.73573877 | O53: 5.774509759e-10 | P53: 3.511365065e-08 | Q53: -28.86232759 | R53: 7.844036531e-11 | S53: 7.296847571e-09 | T53: 188.0247351 | U53: 7.759126675e-11 | V53: 1.366715878e-07
A54: 50.84966 | B54: -177.45111 | C54: 93.09108 | D54: 18934734.43 | E54: -50.40052842 | F54: -12.7613649 | G54: 98.47582269 | H54: 98.47582269 | I54: -50.40052842 | J54: -12.7613649 | K54: -12.7613649 | L54: 278.475823 | M54: 98.475823 | N54: -50.40052842 | O54: 1.289919282e-10 | P54: 8.313918443e-10 | Q54: -12.76136489 | R54: 8.33590974e-10 | S54: 9.348894991e-09 | T54: 98.47582269 | U54: 1.044440978e-09 | V54: 3.127284316e-07
A55: 7.96821 | B55: -91.26638 | C55: 351.80046 | D55: 77993.0782 | E55: 8.66618569 | F55: -91.36744749 | G55: -8.214160013 | H55: 351.78584 | I55: 8.66618569 | J55: -91.36744749 | K55: -91.36744749 | L55: 171.78584 | M55: 351.78584 | N55: 8.66618569 | O55: 3.197442311e-14 | P55: 2.780673469e-10 | Q55: -91.36744749 | R55: 7.105427358e-14 | S55: 1.087840928e-10 | T55: 351.78584 | U55: 3.97903932e-13 | V55: 1.309661002e-08
A56: 80.79667 | B56: -132.59368 | C56: 52.51181 | D56: 12601924.45 | E56: -17.67216977 | F56: -2.456264989 | G56: 172.3229803 | H56: 172.3229803 | I56: -17.6721698 | J56: -2.456264985 | K56: -2.456264985 | L56: 352.32298 | M56: 172.32298 | N56: -17.67216977 | O56: 3.917151048e-10 | P56: 2.912088348e-08 | Q56: -2.456264989 | R56: 1.770850133e-11 | S56: 3.71716169e-09 | T56: 172.3229803 | U56: 1.637090463e-11 | V56: 2.848277063e-07
A57: 13.14395 | B57: 15.64518 | C57: 331.1143 | D57: 12336200.92 | E57: 45.73935574 | F57: -124.0066476 | G57: -137.7033042 | H57: 222.2966958 | I57: 45.73935574 | J57: -124.0066476 | K57: -124.0066476 | L57: 42.296696 | M57: 222.296696 | N57: 45.73935574 | O57: 2.76862977e-10 | P57: 4.632838113e-09 | Q57: -124.0066476 | R57: 9.210054941e-11 | S57: 6.697902677e-09 | T57: 222.2966958 | U57: 2.56761723e-10 | V57: 2.34432747e-07
A58: -6.61548 | B58: 30.14874 | C58: 164.33973 | D58: 12949182.97 | E58: -53.69669612 | F58: -173.9846258 | G58: 26.86696757 | H58: 26.86696757 | I58: -53.69669608 | J58: 186.0153742 | K58: -173.9846258 | L58: 206.866968 | M58: 26.866968 | N58: -53.69669612 | O58: 3.059810183e-10 | P58: 3.724002084e-08 | Q58: -173.9846258 | R58: 1.459170562e-10 | S58: 3.1505067e-08 | T58: 26.86696757 | U58: 2.10057749e-10 | V58: 4.26869299e-07
A59: -63.98087 | B59: 144.50285 | C59: 213.13917 | D59: 3218075.011 | E59: -74.66974484 | F59: 59.15268929 | G59: -65.0511679 | H59: 294.9488321 | I59: -74.66974484 | J59: 59.15268927 | K59: 59.15268927 | L59: 114.948832 | M59: 294.948832 | N59: -74.66974484 | O59: 7.929656931e-12 | P59: 1.298772645e-09 | Q59: 59.15268929 | R59: 3.054623221e-11 | S59: 1.178653974e-08 | T59: 294.9488321 | U59: 6.252776075e-11 | V59: 9.793745903e-08
A60: 13.03885 | B60: -82.28487 | C60: 7.65268 | D60: 14250505.17 | E60: 38.43101413 | F60: 89.98856636 | G60: 170.477955 | H60: 170.477955 | I60: 38.43101415 | J60: 89.98856636 | K60: 89.98856636 | L60: 350.477955 | M60: 170.477955 | N60: 38.43101413 | O60: 3.546816174e-10 | P60: 2.502788021e-08 | Q60: 89.98856636 | R60: 1.500666258e-11 | S60: 5.214189969e-09 | T60: 170.477955 | U60: 4.669686859e-11 | V60: 2.09526263e-08
A61: -69.49145 | B61: -12.71739 | C61: 100.01456 | D61: 29644160.63 | E61: 6.541662994 | F61: -94.76097934 | G61: 159.6179014 | H61: 159.6179014 | I61: 6.541663025 | J61: -94.76097935 | K61: -94.76097935 | L61: 339.617901 | M61: 159.617901 | N61: 6.541662993 | O61: 1.026211116e-09 | P61: 3.228751133e-08 | Q61: -94.76097934 | R61: 5.837819117e-11 | S61: 1.178808873e-08 | T61: 159.6179014 | U61: 4.297362466e-11 | V61: 3.740939007e-07
A62: 31.4524 | B62: 82.23437 | C62: 281.89106 | D62: 2846281.097 | E62: 33.14028376 | F62: 51.9758735 | G62: -94.55189712 | H62: 265.4481029 | I62: 33.14028376 | J62: 51.97587349 | K62: 51.97587349 | L62: 85.448103 | M62: 265.448103 | N62: 33.14028376 | O62: 1.025313168e-11 | P62: 2.6751934e-11 | Q62: 51.9758735 | R62: 6.818368092e-11 | S62: 3.226176659e-09 | T62: 265.4481029 | U62: 8.253664419e-11 | V62: 1.244811187e-07
A63: 34.21333 | B63: 134.32218 | C63: 149.26883 | D63: 24776891.98 | E63: 4.371332247 | F63: -25.51206925 | G63: 25.10344934 | H63: 25.10344934 | I63: 4.371332211 | J63: -25.51206927 | K63: -25.51206927 | L63: 205.103449 | M63: 25.103449 | N63: 4.371332248 | O63: 9.350324959e-10 | P63: 3.711962204e-08 | Q63: -25.51206925 | R63: 1.286863949e-10 | S63: 1.680399464e-08 | T63: 25.10344934 | U63: 3.340616672e-11 | V63: 3.433251941e-07
A64: -41.72983 | B64: -59.25983 | C64: 255.12926 | D64: 21636948.27 | E64: 43.83269686 | F64: 101.1572434 | G64: -88.80333671 | H64: 271.1966633 | I64: 43.83269686 | J64: 101.1572434 | K64: 101.1572434 | L64: 91.196663 | M64: 271.196663 | N64: 43.83269686 | O64: 2.145128519e-11 | P64: 1.544719908e-11 | Q64: 101.1572434 | R64: 5.682210258e-10 | S64: 3.87677801e-09 | T64: 271.1966633 | U64: 9.773089005e-10 | V64: 2.861368102e-07
A65: -17.98255 | B65: 5.01387 | C65: 76.43695 | D65: 5257481.781 | E65: -2.542650684 | F65: 50.59647736 | G65: 67.79321715 | H65: 67.79321715 | I65: -2.542650685 | J65: 50.59647735 | K65: 50.59647735 | L65: 247.793217 | M65: 67.793217 | N65: -2.542650684 | O65: 1.225082258e-10 | P65: 1.366077917e-09 | Q65: 50.59647736 | R65: 2.091482543e-10 | S65: 3.193548537e-09 | T65: 67.79321715 | U65: 1.330136001e-11 | V65: 1.541752681e-07
A66: 86.66334 | B66: 87.54109 | C66: 41.69123 | D66: 21811258.48 | E66: -76.13339237 | F66: 36.84389979 | G66: 9.297171587 | H66: 9.297171587 | I66: -76.13339239 | J66: 36.84389978 | K66: 36.84389978 | L66: 189.297172 | M66: 9.297172 | N66: -76.13339237 | O66: 6.418048315e-10 | P66: 1.544910333e-08 | Q66: 36.84389979 | R66: 4.139337761e-10 | S66: 1.025102847e-08 | T66: 9.297171587 | U66: 4.251941021e-10 | V66: 4.131909837e-07
A67: 30.64991 | B67: -27.87691 | C67: 89.16325 | D67: 27630061.08 | E67: -11.25914146 | F67: -136.5723491 | G67: 61.37078452 | H67: 61.37078452 | I67: -11.25914145 | J67: -136.5723491 | K67: -136.5723491 | L67: 241.370785 | M67: 61.370785 | N67: -11.25914146 | O67: 7.303757599e-10 | P67: 9.523125399e-09 | Q67: -136.5723491 | R67: =ABS(F67-Q67) -> 1.812168193e-10 | S67: =ABS(K67-Q67) -> 1.68887766e-08 | T67: 61.37078452 | U67: =ABS(H67-T67) -> 2.646416419e-10 | V67: =ABS(M67-T67) -> 4.828509503e-07
A68: -87.73037 | B68: 85.13301 | C68: 61.30809 | D68: 27449795.26 | E68: 21.99032594 | F68: -34.41111087 | G68: 177.8466922 | H68: =NormalizeAzimuth(G68, TRUE) -> 177.8466922 | I68: 21.99032593 | J68: -34.41111087 | K68: =normalizelon(J68) -> -34.41111087 | L68: 357.846692 | M68: =NormalizeAzimuth(L68+180, TRUE) -> 177.846692 | N68: =vincentyDirLat(A68, $B68, $C68, $D68) -> 21.99032594 | O68: =ABS(E68-N68) -> 9.077325558e-10 | P68: =ABS(I68-N68) -> 1.741696565e-08 | Q68: =VincentyDirLon($A68, $B68, $C68, $D68) -> -34.41111087 | R68: 8.924416761e-12 | S68: 9.822826996e-10 | T68: =VincentyDirRevAzimuth($A68, $B68, $C68, $D68) -> 177.8466922 | U68: 1.406874617e-11 | V68: 1.992380021e-07
A69: 32.49314 | B69: 100.0766 | C69: 292.42207 | D69: 15896057.13 | E69: -13.69558461 | F69: -44.7910376 | G69: -126.5696896 | H69: 233.4303104 | I69: -13.69558463 | J69: -44.79103763 | K69: -44.79103763 | L69: 53.43031 | M69: 233.43031 | N69: -13.69558461 | O69: 4.848672575e-10 | P69: 2.008103195e-08 | Q69: -44.7910376 | R69: 1.61293201e-11 | S69: 2.845757763e-08 | T69: 233.4303104 | U69: 1.579962827e-10 | V69: 4.171749879e-07
A70: 13.1216 | B70: -87.12497 | C70: 348.05227 | D70: 27915776.06 | E70: -77.21339329 | F70: 31.0818168 | G70: -114.7405967 | H70: 245.2594033 | I70: -77.2133933 | J70: 31.08181676 | K70: 31.08181676 | L70: 65.259403 | M70: 245.259403 | N70: -77.21339329 | O70: 3.697238071e-10 | P70: 3.374978519e-09 | Q70: 31.0818168 | R70: 3.466468002e-09 | S70: 3.320744213e-08 | T70: 245.2594034 | U70: 3.538019655e-09 | V70: 3.533270103e-07
A71: 86.42554 | B71: -58.17102 | C71: 248.41925 | D71: 27388054.56 | E71: -22.29308817 | F71: 54.86048545 | G71: -3.602741719 | H71: 356.3972583 | I71: -22.29308821 | J71: 54.86048546 | K71: 54.86048546 | L71: 176.397258 | M71: 356.397258 | N71: -22.29308817 | O71: 9.039418103e-10 | P71: 3.964454365e-08 | Q71: 54.86048545 | R71: 1.497113544e-11 | S71: 3.079776434e-09 | T71: 356.3972583 | U71: 2.307842806e-11 | V71: 2.80586903e-07
A72: 54.7683 | B72: -101.0252 | C72: 84.26818 | D72: 15232450.55 | E72: -34.08290827 | F72: 24.03652376 | G72: 136.0628584 | H72: 136.0628584 | I72: -34.08290827 | J72: 24.03652376 | K72: 24.03652376 | L72: 316.062858 | M72: 136.062858 | N72: -34.08290827 | O72: 5.085567523e-10 | P72: 8.010587749e-10 | Q72: 24.03652376 | R72: 2.722835291e-10 | S72: 1.128796612e-09 | T72: 136.0628584 | U72: 3.305729024e-10 | V72: 4.24159424e-07
A73: -60.39222 | B73: -43.86837 | C73: 36.2211 | D73: 19523196.99 | E73: 63.74006088 | F73: 130.2333476 | G73: 138.7206878 | H73: 138.7206878 | I73: 63.7400609 | J73: 130.2333476 | K73: 130.2333476 | L73: 318.720688 | M73: 138.720688 | N73: 63.74006088 | O73: 5.252900337e-10 | P73: 2.174159164e-08 | Q73: 130.2333476 | R73: 8.764970971e-10 | S73: 4.417950095e-08 | T73: 138.7206878 | U73: 9.335678897e-10 | V73: 1.923474144e-07
A74: -22.34434 | B74: -31.85858 | C74: 96.5979 | D74: 19262446.87 | E74: 21.46092804 | F74: 140.7503333 | G74: 80.84921775 | H74: 80.84921775 | I74: 21.46092805 | J74: 140.7503333 | K74: 140.7503333 | L74: 260.849218 | M74: 80.849218 | N74: 21.46092804 | O74: 1.743281075e-10 | P74: 3.043069796e-09 | Q74: 140.7503333 | R74: 5.802576197e-10 | S74: 1.906471425e-08 | T74: 80.84921775 | U74: 4.231139883e-10 | V74: 2.52128288e-07
A75: -55.73415 | B75: 10.40617 | C75: 167.79789 | D75: 12572332.93 | E75: -10.63541047 | F75: 178.9507132 | G75: 6.96985838 | H75: 6.96985838 | I75: -10.6354105 | J75: 178.9507131 | K75: 178.9507131 | L75: 186.969858 | M75: 6.969858 | N75: -10.63541047 | O75: 3.097806456e-10 | P75: 3.466788101e-08 | Q75: 178.9507132 | R75: 1.034550223e-11 | S75: 3.943682714e-09 | T75: 6.96985838 | U75: 6.944667064e-12 | V75: 3.804621471e-07
A76: 21.87129 | B76: -169.21358 | C76: 78.86538 | D76: 15827008.98 | E76: -10.77052829 | F76: -26.97615537 | G76: 111.9967762 | H76: 111.9967762 | I76: -10.7705283 | J76: -26.97615535 | K76: -26.97615535 | L76: 291.996776 | M76: 111.996776 | N76: -10.77052829 | O76: 3.46386031e-10 | P76: 8.102414739e-09 | Q76: -26.97615537 | R76: 3.559570416e-10 | S76: 1.987694986e-08 | T76: 111.9967762 | U76: 1.615774181e-10 | V76: 1.981894115e-07
A77: 53.80467 | B77: 66.21582 | C77: 35.77715 | D77: 12061587.57 | E77: 11.54968386 | F77: -148.3681402 | G77: 159.3224441 | H77: 159.3224441 | I77: 11.54968389 | J77: 211.6318598 | K77: -148.3681402 | L77: 339.322444 | M77: 159.322444 | N77: 11.54968386 | O77: 3.132978321e-10 | P77: 2.616699923e-08 | Q77: -148.3681402 | R77: 3.711875252e-11 | S77: 1.034987918e-08 | T77: 159.3224441 | U77: 2.359001883e-11 | V77: 1.083105587e-07
A78: -31.83679 | B78: -60.50971 | C78: 345.67816 | D78: 15839191.95 | E78: 66.81727613 | F78: 141.9884702 | G78: -147.8037128 | H78: 212.1962872 | I78: 66.81727612 | J78: -218.0115298 | K78: 141.9884702 | L78: 32.196287 | M78: 212.196287 | N78: 66.81727613 | O78: 4.860822855e-10 | P78: 1.462321109e-08 | Q78: 141.9884702 | R78: 6.867821867e-10 | S78: 2.361821316e-08 | T78: 212.1962872 | U78: 7.129870028e-10 | V78: 2.229280369e-07
A79: 25.75399 | B79: 107.30107 | C79: 36.41404 | D79: 14247699.16 | E79: 17.62204026 | F79: -102.218816 | G79: 145.8640951 | H79: 145.8640951 | I79: 17.62204028 | J79: 257.7811839 | K79: -102.2188161 | L79: 325.864095 | M79: 145.864095 | N79: 17.62204026 | O79: 4.307842971e-10 | P79: 2.251398357e-08 | Q79: -102.218816 | R79: 9.166001291e-11 | S79: 1.597931032e-08 | T79: 145.8640951 | U79: 9.208633855e-11 | V79: 1.077810623e-07
A80: 67.81804 | B80: 81.32062 | C80: 238.44236 | D80: 10751079.3 | E80: -17.8975514 | F80: 18.6944669 | G80: -160.1875331 | H80: 199.8124669 | I80: -17.89755138 | J80: 18.6944669 | K80: 18.6944669 | L80: 19.812467 | M80: 199.812467 | N80: -17.8975514 | O80: 4.442881618e-10 | P80: 2.280258826e-08 | Q80: 18.6944669 | R80: 9.51629886e-11 | S80: 8.213959291e-09 | T80: 199.8124669 | U80: 5.15285592e-11 | V80: 1.414094584e-07
A81: 76.96108 | B81: -54.38558 | C81: 279.42409 | D81: 7288327.989 | E81: 25.98412028 | F81: -147.6186497 | G81: -165.627399 | H81: 194.372601 | I81: 25.98412028 | J81: -147.6186497 | K81: -147.6186497 | L81: 14.372601 | M81: 194.372601 | N81: 25.98412028 | O81: 2.029025836e-10 | P81: 1.537600269e-09 | Q81: -147.6186497 | R81: 2.188471626e-12 | S81: 2.181934633e-10 | T81: 194.372601 | U81: 2.492583917e-11 | V81: 3.91499384e-08
A82: -51.09056 | B82: 11.74319 | C82: 291.74024 | D82: 12223215.57 | E82: 29.15722356 | F82: -74.49605949 | G82: -41.98196955 | H82: 318.0180305 | I82: 29.15722353 | J82: -74.49605946 | K82: -74.49605946 | L82: 138.01803 | M82: 318.01803 | N82: 29.15722356 | O82: 4.650146934e-10 | P82: 3.066351439e-08 | Q82: -74.49605949 | R82: 2.730189408e-10 | S82: 3.169232343e-08 | T82: 318.0180305 | U82: 2.324895831e-10 | V82: 4.532599291e-07
A83: 25.46168 | B83: 70.65137 | C83: 273.28306 | D83: 27794550.93 | E83: -11.12489236 | F83: 177.9508515 | G83: -66.79602062 | H83: 293.2039794 | I83: -11.12489235 | J83: 177.9508515 | K83: 177.9508515 | L83: 113.203979 | M83: 293.203979 | N83: -11.12489236 | O83: 6.301856814e-10 | P83: 1.260321447e-08 | Q83: 177.9508515 | R83: 4.257287856e-10 | S83: 2.927129117e-08 | T83: 293.2039794 | U83: 2.871729521e-10 | V83: 3.835996836e-07
A84: 27.53249 | B84: 66.86407 | C84: 241.31356 | D84: 21855867.12 | E84: -18.57634716 | F84: -128.1933737 | G84: -55.18245059 | H84: 304.8175494 | I84: -18.57634719 | J84: 231.8066263 | K84: -128.1933737 | L84: 124.817549 | M84: 304.817549 | N84: -18.57634716 | O84: 6.456382096e-10 | P84: 2.166013857e-08 | Q84: -128.1933737 | R84: 1.123225957e-10 | S84: 3.248732128e-08 | T84: 304.8175494 | U84: 3.102513801e-10 | V84: 4.109145948e-07
A85: -74.06646 | B85: -160.1971 | C85: 169.49235 | D85: 11149450.67 | E85: -5.449341215 | F85: 9.402180789 | G85: 2.891562613 | H85: 2.891562613 | I85: -5.449341186 | J85: 9.402180791 | K85: 9.402180791 | L85: 182.891563 | M85: 2.891563 | N85: -5.449341215 | O85: 2.993463255e-10 | P85: 2.893929363e-08 | Q85: 9.402180789 | R85: 3.009148486e-12 | S85: 1.857955567e-09 | T85: 2.891562613 | U85: 1.370459302e-12 | V85: 3.873459895e-07
A86: 6.82072 | B86: -5.55007 | C86: 253.76505 | D86: 13419455.06 | E86: -17.45068395 | F86: -125.5093154 | G86: -87.5258939 | H86: 272.4741061 | I86: -17.45068396 | J86: -125.5093154 | K86: -125.5093154 | L86: 92.474106 | M86: 272.474106 | N86: -17.45068395 | O86: 3.355893341e-11 | P86: 1.687656237e-09 | Q86: -125.5093154 | R86: 5.612434961e-10 | S86: 3.226524825e-08 | T86: 272.4741061 | U86: 2.446540748e-10 | V86: 9.884382735e-08
A87: -8.99198 | B87: -101.8196 | C87: 173.00154 | D87: 15406147.54 | E87: -32.22049787 | F87: 72.66160362 | G87: 8.170994445 | H87: 8.170994445 | I87: -32.22049789 | J87: 72.66160362 | K87: 72.66160361 | L87: 188.170994 | M87: 8.170994 | N87: -32.22049787 | O87: 4.28279634e-10 | P87: 1.900578184e-08 | Q87: 72.66160362 | R87: 1.22071242e-11 | S87: 2.921211717e-09 | T87: 8.170994445 | U87: 3.835687323e-11 | V87: 4.451979052e-07
A88: 41.64598 | B88: -166.89362 | C88: 198.12486 | D88: 12387170.21 | E88: -64.91700915 | F88: 150.298815 | G88: -146.7933308 | H88: 213.2066692 | I88: -64.91700914 | J88: -209.701185 | K88: 150.298815 | L88: 33.206669 | M88: 213.206669 | N88: -64.91700915 | O88: 4.80952167e-10 | P88: 5.741540576e-09 | Q88: 150.298815 | R88: 6.772040706e-10 | S88: 8.910205906e-09 | T88: 213.2066692 | U88: 6.717755241e-10 | V88: 1.922407762e-07
A89: 7.41741 | B89: 15.89446 | C89: 135.06274 | D89: 2739129.822 | E89: -10.18768353 | F89: 33.27691526 | G89: 134.6342146 | H89: 134.6342146 | I89: -10.18768353 | J89: 33.27691526 | K89: 33.27691526 | L89: 314.634215 | M89: 134.634215 | N89: -10.18768353 | O89: 1.153246387e-10 | P89: 6.774243388e-10 | Q89: 33.27691526 | R89: 1.172253405e-10 | S89: 3.957438821e-10 | T89: 134.6342146 | U89: 2.091837814e-11 | V89: 3.829088939e-07
A90: -88.8212 | B90: 176.71506 | C90: 114.91654 | D90: 10992541.66 | E90: 8.454701083 | F90: -68.21101158 | G90: 1.084370348 | H90: 1.084370348 | I90: 8.454701057 | J90: 291.7889884 | K90: -68.21101158 | L90: 181.08437 | M90: 1.08437 | N90: 8.454701084 | O90: 3.228066703e-10 | P90: 2.661121812e-08 | Q90: -68.21101158 | R90: 1.293187779e-12 | S90: 5.146034709e-10 | T90: 1.084370348 | U90: 9.816591984e-13 | V90: 3.475255264e-07
A91: -31.76643 | B91: 175.65602 | C91: 230.52977 | D91: 26809519.6 | E91: 46.68559377 | F91: -84.20468575 | G91: -107.0754271 | H91: 252.9245729 | I91: 46.68559376 | J91: 275.7953142 | K91: -84.20468578 | L91: 72.924573 | M91: 252.924573 | N91: 46.68559377 | O91: 3.273754601e-10 | P91: 5.406626258e-09 | Q91: -84.20468575 | R91: 5.825029348e-10 | S91: 2.678240207e-08 | T91: 252.9245729 | U91: 1.127261839e-09 | V91: 6.425227639e-08
A92: -33.89461 | B92: 177.00147 | C92: 243.01021 | D92: 16426525.89 | E92: 15.7964394 | F92: 26.80213861 | G92: -50.29110882 | H92: 309.7088912 | I92: 15.79643942 | J92: 26.80213859 | K92: 26.80213859 | L92: 129.708891 | M92: 309.708891 | N92: 15.7964394 | O92: 5.157367866e-10 | P92: 1.468536404e-08 | Q92: 26.80213861 | R92: 5.577760476e-12 | S92: 1.858202836e-08 | T92: 309.7088912 | U92: 1.743956091e-10 | V92: 1.782967161e-07
A93: -32.47385 | B93: 16.28563 | C93: 24.15812 | D93: 3009187.45 | E93: -7.242226483 | F93: 27.09008676 | G93: 20.38691245 | H93: 20.38691245 | I93: -7.242226484 | J93: 27.09008676 | K93: 27.09008676 | L93: 200.386912 | M93: 20.386912 | N93: -7.242226482 | O93: 1.591935472e-10 | P93: 1.542223238e-09 | Q93: 27.09008676 | R93: 3.609201826e-11 | S93: 6.412790299e-10 | T93: 20.38691245 | U93: 7.457146012e-12 | V93: 4.533646489e-07
A94: 72.12079 | B94: -154.69437 | C94: 137.78511 | D94: 14766525.04 | E94: -54.69241876 | F94: -96.67376711 | G94: 159.0714383 | H94: 159.0714383 | I94: -54.69241875 | J94: -96.67376712 | K94: -96.67376712 | L94: 339.071438 | M94: 159.071438 | N94: -54.69241876 | O94: 6.020783871e-10 | P94: 1.438797881e-08 | Q94: -96.67376711 | R94: 3.259685855e-10 | S94: 1.01227613e-08 | T94: 159.0714383 | U94: 3.246327651e-10 | V94: 3.038824161e-07
A95: 25.50112 | B95: 97.48163 | C95: 8.13389 | D95: 11388563.96 | E95: 51.44900227 | F95: -95.34646605 | G95: 168.1928646 | H95: 168.1928646 | I95: 51.44900224 | J95: 264.653534 | K95: -95.34646604 | L95: 348.192865 | M95: 168.192865 | N95: 51.44900227 | O95: 2.174687097e-10 | P95: 2.785422737e-08 | Q95: -95.34646605 | R95: 2.371791652e-11 | S95: 9.476877949e-09 | T95: 168.1928646 | U95: 5.641709322e-11 | V95: 4.207225572e-07
A96: 41.90083 | B96: -160.6241 | C96: 266.49375 | D96: 11341171.71 | E96: -10.69481643 | F96: 102.7836905 | G96: -130.7920841 | H96: 229.2079159 | I96: -10.69481642 | J96: -257.2163095 | K96: 102.7836905 | L96: 49.207916 | M96: 229.207916 | N96: -10.69481643 | O96: 3.869047305e-10 | P96: 1.388630544e-08 | Q96: 102.7836905 | R96: 1.010533879e-10 | S96: 1.620003331e-08 | T96: 229.2079159 | U96: 8.458300726e-11 | V96: 8.139443253e-08
A97: 48.39043 | B97: -167.33677 | C97: 292.34511 | D97: 8308069.491 | E97: 26.19876256 | F97: 96.48889192 | G97: -136.7371833 | H97: 223.2628167 | I97: 26.19876256 | J97: -263.5111081 | K97: 96.48889192 | L97: 43.262817 | M97: 223.262817 | N97: 26.19876256 | O97: 1.990443366e-10 | P97: 6.225420179e-10 | Q97: 96.48889192 | R97: 1.391953219e-10 | S97: 7.111111699e-11 | T97: 223.2628167 | U97: 9.16315912e-11 | V97: 3.269826152e-07
A98: -38.66077 | B98: 54.64192 | C98: 59.21122 | D98: 4874355.479 | E98: -9.914656321 | F98: 91.75105882 | G98: 42.98430767 | H98: 42.98430767 | I98: -9.914656319 | J98: 91.75105883 | K98: 91.75105882 | L98: 222.984308 | M98: 42.984308 | N98: -9.914656321 | O98: 1.805791072e-10 | P98: 2.12581952e-09 | Q98: 91.75105882 | R98: 4.420996902e-11 | S98: 1.815465112e-09 | T98: 42.98430767 | U98: 2.915356845e-11 | V98: 3.321422497e-07
A99: -0.07457 | B99: 46.47208 | C99: 278.01759 | D99: 20547852.62 | E99: -0.6524108221 | F99: -138.0619897 | G99: -97.99169515 | H99: 262.0083048 | I99: -0.652410818 | J99: 221.9380103 | K99: -138.0619897 | L99: 82.008305 | M99: 262.008305 | N99: -0.6524108223 | O99: 1.818244444e-10 | P99: 4.272600496e-09 | Q99: -138.0619897 | R99: 1.179955689e-09 | S99: 3.222095302e-08 | T99: 262.0083048 | U99: 1.489297574e-11 | V99: 1.537292178e-07
A100: 45.63044 | B100: -129.56118 | C100: 147.68849 | D100: 2696126.929 | E100: 24.1003412 | F100: -115.6701196 | G100: 155.7983633 | H100: 155.7983633 | I100: 24.1003412 | J100: -115.6701196 | K100: -115.6701196 | L100: 335.798363 | M100: 155.798363 | N100: 24.1003412 | O100: 1.022968377e-10 | P100: 4.286029309e-10 | Q100: -115.6701196 | R100: 1.033129138e-11 | S100: 7.5267792e-10 | T100: 155.7983633 | U100: 1.995204002e-11 | V100: 2.574969642e-07
A101: -31.68774 | B101: 45.14707 | C101: 172.66594 | D101: 4461921.027 | E101: -70.99257204 | F101: 59.72200545 | G101: 160.5595521 | H101: 160.5595521 | I101: -70.99257204 | J101: 59.72200545 | K101: 59.72200545 | L101: 340.559552 | M101: 160.559552 | N101: -70.99257204 | O101: 8.931522189e-11 | P101: 9.921024002e-10 | Q101: 59.72200545 | R101: 8.279243957e-11 | S101: 1.183394716e-09 | T101: 160.5595521 | U101: 9.239897736e-11 | V101: 1.498116546e-07
A102: -58.96753 | B102: 85.03836 | C102: 115.29264 | D102: 8938931.995 | E102: -21.17876729 | F102: -167.9659308 | G102: 30.05827016 | H102: 30.05827016 | I102: -21.17876729 | J102: 192.0340692 | K102: -167.9659308 | L102: 210.05827 | M102: 30.05827 | N102: -21.17876729 | O102: 2.484839001e-10 | P102: 2.55821675e-09 | Q102: -167.9659308 | R102: 5.147171578e-11 | S102: 1.614466782e-09 | T102: 30.05827016 | U102: 5.530154112e-11 | V102: 1.646951056e-07
A103: 15.35918 | B103: 147.9986 | C103: 17.10506 | D103: 736539.3763 | E103: 21.70834364 | F103: 150.0880441 | G103: 17.77030931 | H103: 17.77030931 | I103: 21.70834364 | J103: 150.0880441 | K103: 150.0880441 | L103: 197.770309 | M103: 17.770309 | N103: 21.70834364 | O103: 3.159783546e-11 | P103: 3.270024251e-10 | Q103: 150.0880441 | R103: 6.110667528e-12 | S103: 3.91935373e-10 | T103: 17.77030931 | U103: 3.993250175e-12 | V103: 3.135277957e-07
A104: 16.97861 | B104: -69.48251 | C104: 337.9323 | D104: 2680862.162 | E104: 39.01983884 | F104: -80.84673 | G104: -27.51716611 | H104: 332.4828339 | I104: 39.01983884 | J104: -80.84673 | K104: -80.84673 | L104: 152.482834 | M104: 332.482834 | N104: 39.01983884 | O104: 1.210480605e-10 | P104: 3.470653098e-09 | Q104: -80.84673 | R104: 4.675371201e-11 | S104: 1.637843638e-09 | T104: 332.4828339 | U104: 5.132960723e-11 | V104: 1.100848408e-07
A105: 10.92965 | B105: -135.72478 | C105: 249.20694 | D105: 2593134.823 | E105: 2.023874588 | F105: -157.4355466 | G105: -113.279115 | H105: 246.720885 | I105: 2.023874588 | J105: -157.4355466 | K105: -157.4355466 | L105: 66.720885 | M105: 246.720885 | N105: 2.023874588 | O105: 6.494493832e-11 | P105: 4.142650667e-10 | Q105: -157.4355466 | R105: 1.338378297e-10 | S105: 5.488516308e-10 | T105: 246.720885 | U105: 5.684341886e-12 | V105: 7.178698525e-09
A106: -59.24292 | B106: 64.60122 | C106: 245.32204 | D106: 1124977.181 | E106: -62.06573041 | F106: 44.75650909 | G106: -97.33302854 | H106: 262.6669715 | I106: -62.06573041 | J106: 44.75650909 | K106: 44.75650909 | L106: 82.666971 | M106: 262.666971 | N106: -62.06573041 | O106: 1.492139745e-12 | P106: 3.920774816e-11 | Q106: 44.75650909 | R106: 5.633893352e-11 | S106: 4.090537686e-09 | T106: 262.6669715 | U106: 2.188471626e-11 | V106: 4.592944265e-07
A107: 2.35068 | B107: -118.36722 | C107: 318.8005 | D107: 8704.334 | E107: 2.409908067 | F107: -118.4187692 | G107: -41.20164094 | H107: 318.7983591 | I107: 2.409908067 | J107: -118.4187692 | K107: -118.4187692 | L107: 138.798359 | M107: 318.798359 | N107: 2.409908067 | O107: 3.606004384e-13 | P107: 2.467293037e-10 | Q107: -118.4187692 | R107: 5.684341886e-14 | S107: 3.659437198e-10 | T107: 318.7983591 | U107: 3.410605132e-13 | V107: 5.516585588e-08
A108: -62.10389 | B108: 145.56889 | C108: 255.88317 | D108: 13395.2941 | E108: -62.13298136 | F108: 145.3198798 | G108: -103.8967258 | H108: 256.1032742 | I108: -62.13298136 | J108: 145.3198798 | K108: 145.3198798 | L108: 76.103274 | M108: 256.103274 | N108: -62.13298136 | O108: 7.105427358e-14 | P108: 1.715250164e-10 | Q108: 145.3198798 | R108: 3.97903932e-13 | S108: 3.785771696e-10 | T108: 256.1032742 | U108: 2.273736754e-13 | V108: 2.401877737e-07
A109: 77.64426 | B109: -149.10625 | C109: 106.19928 | D109: 2002954.959 | E109: 65.63135677 | F109: -103.2991262 | G109: 150.117254 | H109: 150.117254 | I109: 65.63135677 | J109: -103.2991263 | K109: -103.2991263 | L109: 330.117254 | M109: 150.117254 | N109: 65.63135677 | O109: 2.266631327e-11 | P109: 3.501739343e-09 | Q109: -103.2991262 | R109: 4.845901458e-11 | S109: 4.717534807e-09 | T109: 150.117254 | U109: 2.904698704e-11 | V109: 1.585905807e-08
A110: 63.34713 | B110: -89.70778 | C110: 173.62157 | D110: 2686520.691 | E110: 39.28297381 | F110: -86.34791759 | G110: 176.3035461 | H110: 176.3035461 | I110: 39.28297381 | J110: -86.34791759 | K110: -86.34791759 | L110: 356.303546 | M110: 176.303546 | N110: 39.28297381 | O110: 7.621991926e-11 | P110: 1.326682764e-09 | Q110: -86.34791759 | R110: 2.870592652e-12 | S110: 2.668230081e-10 | T110: 176.3035461 | U110: 3.723243935e-12 | V110: 9.558374359e-08
A111: -35.52337 | B111: 84.47988 | C111: 19.50551 | D111: 798705.3761 | E111: -28.70265134 | F111: 87.20293961 | G111: 18.05518344 | H111: 18.05518344 | I111: -28.70265134 | J111: 87.20293961 | K111: 87.20293961 | L111: 198.055183 | M111: 18.055183 | N111: -28.70265134 | O111: 3.443645369e-11 | P111: 7.826628234e-11 | Q111: 87.20293961 | R111: 3.25428573e-12 | S111: 2.497699825e-10 | T111: 18.05518344 | U111: 6.135536523e-12 | V111: 4.436935654e-07
A112: -84.51618 | B112: -15.54405 | C112: 200.2892 | D112: 665017.8678 | E112: -87.93609866 | F112: -108.4110237 | G112: -66.94256047 | H112: 293.0574395 | I112: -87.93609866 | J112: -108.4110237 | K112: -108.4110237 | L112: 113.05744 | M112: 293.05744 | N112: -87.93609866 | O112: 1.953992523e-11 | P112: 2.349338502e-10 | Q112: -108.4110237 | R112: 1.276788453e-09 | S112: 1.046785769e-09 | T112: 293.0574395 | U112: 1.274770511e-09 | V112: 4.742105375e-07
A113: -52.91257 | B113: -154.2667 | C113: 248.05546 | D113: 1950926.775 | E113: -55.9583526 | F113: 175.8761175 | G113: -87.4621426 | H113: 272.5378574 | I113: -55.9583526 | J113: -184.1238825 | K113: 175.8761175 | L113: 92.537857 | M113: 272.537857 | N113: -55.9583526 | O113: 4.050093594e-13 | P113: 1.406021966e-10 | Q113: 175.8761175 | R113: 6.184563972e-11 | S113: 1.65914571e-09 | T113: 272.5378574 | U113: 1.47792889e-11 | V113: 4.043729405e-07
A114: -7.64142 | B114: 157.20014 | C114: 124.09694 | D114: 2303142.228 | E114: -18.7724393 | F114: 175.1923416 | G114: 119.9340806 | H114: 119.9340806 | I114: -18.7724393 | J114: 175.1923416 | K114: 175.1923416 | L114: 299.934081 | M114: 119.934081 | N114: -18.7724393 | O114: 6.969003152e-11 | P114: 1.600792388e-09 | Q114: 175.1923416 | R114: 9.220002539e-11 | S114: 2.147203304e-09 | T114: 119.9340806 | U114: 4.116884611e-11 | V114: 3.611291675e-07
A115: -3.24092 | B115: 136.62436 | C115: 48.93152 | D115: 2125350.601 | E115: 9.354352551 | F115: 151.0954068 | G115: 49.71205572 | H115: 49.71205572 | I115: 9.354352551 | J115: 151.0954068 | K115: 151.0954068 | L115: 229.712056 | M115: 49.712056 | N115: 9.354352552 | O115: 8.501110926e-11 | P115: 5.189519925e-10 | Q115: 151.0954068 | R115: 9.950440472e-11 | S115: 4.665139386e-10 | T115: 49.71205572 | U115: 1.634958835e-11 | V115: 2.843086122e-07
A116: 78.89543 | B116: 61.84067 | C116: 273.64731 | D116: 1313369.752 | E116: 74.40119444 | F116: 12.68307128 | G116: -134.3660603 | H116: 225.6339397 | I116: 74.40119444 | J116: 12.68307127 | K116: 12.68307127 | L116: 45.63394 | M116: 225.63394 | N116: 74.40119444 | O116: 3.97903932e-13 | P116: 2.055699611e-09 | Q116: 12.68307128 | R116: 1.197797417e-11 | S116: 9.585676253e-09 | T116: 225.6339397 | U116: 6.536993169e-13 | V116: 2.752166495e-07
A117: -48.02119 | B117: 42.15779 | C117: 7.61224 | D117: 1139720.717 | E117: -37.83807347 | F117: 43.86407729 | G117: 6.44542751 | H117: 6.44542751 | I117: -37.83807347 | J117: 43.86407729 | K117: 43.86407729 | L117: 186.445428 | M117: 6.445428 | N117: -37.83807347 | O117: 3.870326282e-11 | P117: 3.453493491e-09 | Q117: 43.86407729 | R117: 1.591615728e-12 | S117: 6.778009265e-10 | T117: 6.44542751 | U117: 3.383959779e-12 | V117: 4.895844965e-07
A118: -82.62983 | B118: 66.27034 | C118: 319.08736 | D118: 783546.7098 | E118: -76.52353444 | F118: 46.19370304 | G118: -21.13320546 | H118: 338.8667945 | I118: -76.52353444 | J118: 46.19370304 | K118: 46.19370304 | L118: 158.866795 | M118: 338.866795 | N118: -76.52353444 | O118: 3.426237072e-11 | P118: 4.486366834e-11 | Q118: 46.19370304 | R118: 5.97637495e-11 | S118: 2.163460522e-10 | T118: 338.8667945 | U118: 5.553602023e-11 | V118: 4.635463711e-07
A119: -72.9553 | B119: 51.11226 | C119: 98.025 | D119: 963166.2024 | E119: -72.06315198 | F119: 79.94423077 | G119: 70.4732981 | H119: 70.4732981 | I119: -72.06315198 | J119: 79.94423077 | K119: 79.94423077 | L119: 250.473298 | M119: 70.473298 | N119: -72.06315198 | O119: 1.413980044e-11 | P119: 1.424638185e-10 | Q119: 79.94423077 | R119: 1.459028454e-10 | S119: 5.726406016e-10 | T119: 70.4732981 | U119: 1.242739245e-10 | V119: 1.013025752e-07
A120: 1.99555 | B120: 18.54959 | C120: 205.93687 | D120: 2610595.476 | E120: -19.14313172 | F120: 7.937382679 | G120: -152.4490671 | H120: 207.5509329 | I120: -19.14313172 | J120: 7.937382677 | K120: 7.937382677 | L120: 27.550933 | M120: 207.550933 | N120: -19.14313172 | O120: 1.114734971e-10 | P120: 2.661625587e-09 | Q120: 7.937382679 | R120: 5.927525137e-11 | S120: 1.584027132e-09 | T120: 207.5509329 | U120: 1.980993147e-11 | V120: 8.747116453e-08
A121: -45.64898 | B121: -35.09258 | C121: 205.41823 | D121: 2662309.769 | E121: -65.4581394 | F121: -59.78859036 | G121: -133.8116836 | H121: 226.1883164 | I121: -65.4581394 | J121: -59.78859037 | K121: -59.78859037 | L121: 46.188316 | M121: 226.188316 | N121: -65.4581394 | O121: 2.054889592e-11 | P121: 1.966498075e-10 | Q121: -59.78859036 | R121: 2.881961336e-11 | S121: 1.138374728e-09 | T121: 226.1883164 | U121: 4.658318176e-11 | V121: 4.092686083e-07
A122: 79.0302 | B122: -49.26318 | C122: 305.83574 | D122: 1821170.49 | E122: 76.78337286 | F122: -133.9295311 | G122: -137.5628484 | H122: 222.4371516 | I122: 76.78337286 | J122: -133.9295311 | K122: -133.9295311 | L122: 42.437152 | M122: 222.437152 | N122: 76.78337286 | O122: 1.98951966e-12 | P122: 1.758891699e-09 | Q122: -133.9295311 | R122: 2.324895831e-11 | S122: 7.552245052e-09 | T122: 222.4371516 | U122: 8.355982573e-12 | V122: 3.80544634e-07
A123: 37.44891 | B123: -25.21469 | C123: 299.32281 | D123: 2787665.4 | E123: 45.70495877 | F123: -57.05774045 | G123: -82.17233951 | H123: 277.8276605 | I123: 45.70495877 | J123: -57.05774045 | K123: -57.05774045 | L123: 97.82766 | M123: 277.82766 | N123: 45.70495877 | O123: 1.183053655e-11 | P123: 1.674678174e-10 | Q123: -57.05774045 | R123: 3.151257033e-11 | S123: 1.736594868e-09 | T123: 277.8276605 | U123: 8.986944522e-11 | V123: 4.875425361e-07
A124: -35.9591 | B124: -53.57335 | C124: 317.02665 | D124: 2445529.306 | E124: -18.76882592 | F124: -69.19140623 | G124: -35.6772198 | H124: 324.3227802 | I124: -18.76882592 | J124: -69.19140623 | K124: -69.19140623 | L124: 144.32278 | M124: 324.32278 | N124: -18.76882592 | O124: 9.652367794e-11 | P124: 2.889773754e-09 | Q124: -69.19140623 | R124: 2.278000011e-11 | S124: 2.365524665e-09 | T124: 324.3227802 | U124: 2.307842806e-11 | V124: 2.039745937e-07
A125: -38.20439 | B125: -71.39351 | C125: 266.36977 | D125: 344966.307 | E125: -38.33514058 | F125: -75.33235303 | G125: -91.1900528 | H125: 268.8099472 | I125: -38.33514058 | J125: -75.33235303 | K125: -75.33235303 | L125: 88.809947 | M125: 268.809947 | N125: -38.33514058 | O125: 3.268496584e-13 | P125: 1.893312174e-10 | Q125: -75.33235303 | R125: 1.017497198e-11 | S125: 3.772271384e-10 | T125: 268.8099472 | U125: 1.000444172e-11 | V125: 2.019089607e-07
A126: 30.1263 | B126: -91.78906 | C126: 12.69722 | D126: 2319961.368 | E126: 50.33782192 | F126: -84.76585946 | G126: 17.30836511 | H126: 17.30836511 | I126: 50.33782192 | J126: -84.76585946 | K126: -84.76585946 | L126: 197.308365 | M126: 17.308365 | N126: 50.33782192 | O126: 8.413536534e-11 | P126: 1.377166825e-09 | Q126: -84.76585946 | R126: 2.368949481e-11 | S126: 6.189111446e-10 | T126: 17.30836511 | U126: 3.156586104e-11 | V126: 1.072904858e-07
A127: 16.64533 | B127: -152.07943 | C127: 262.28956 | D127: 181575.4404 | E127: 16.41837482 | F127: -153.7640793 | G127: -98.18983703 | H127: 261.810163 | I127: 16.41837482 | J127: -153.7640793 | K127: -153.7640793 | L127: 81.810163 | M127: 261.810163 | N127: 16.41837482 | O127: 1.790567694e-12 | P127: 2.424087597e-10 | Q127: -153.7640793 | R127: 6.082245818e-12 | S127: 2.33086439e-10 | T127: 261.810163 | U127: 3.865352483e-12 | V127: 3.068737442e-08
A128: -88.87481 | B128: 84.81613 | C128: 155.5087 | D128: 2189603.945 | E128: -71.40827011 | F128: -121.0583022 | G128: 1.463614091 | H128: 1.463614091 | I128: -71.40827011 | J128: 238.9416978 | K128: -121.0583022 | L128: 181.463614 | M128: 1.463614 | N128: -71.40827011 | O128: 4.078515303e-12 | P128: 1.106116088e-09 | Q128: -121.0583022 | R128: 1.179500941e-12 | S128: 5.301785677e-10 | T128: 1.463614091 | U128: 1.734168364e-13 | V128: 9.120375966e-08
A129: 16.28764 | B129: -146.46427 | C129: 108.7463 | D129: 428196.2837 | E129: 15.01105433 | F129: -142.6940439 | G129: 109.7637216 | H129: 109.7637216 | I129: 15.01105433 | J129: -142.6940439 | K129: -142.6940439 | L129: 289.763722 | M129: 109.763722 | N129: 15.01105433 | O129: 8.363088e-12 | P129: 4.364366646e-10 | Q129: -142.6940439 | R129: 1.136868377e-11 | S129: 4.473861281e-10 | T129: 109.7637216 | U129: 6.423306331e-12 | V129: 3.626185503e-07
A130: -51.53119 | B130: -66.09511 | C130: 343.22848 | D130: 1626173.762 | E130: -37.37788423 | F130: -71.34326185 | G130: -13.0664315 | H130: 346.9335685 | I130: -37.37788422 | J130: -71.34326185 | K130: -71.34326185 | L130: 166.933568 | M130: 346.933568 | N130: -37.37788423 | O130: 9.402612022e-11 | P130: 4.406075504e-09 | Q130: -71.34326185 | R130: 1.728039933e-11 | S130: 1.324920618e-09 | T130: 346.9335685 | U130: 1.631406121e-11 | V130: 4.978606967e-07
A131: 44.17254 | B131: -15.46427 | C131: 30.42384 | D131: 52780.7088 | E131: 44.58163193 | F131: -15.1277287 | G131: 30.65921128 | H131: 30.65921128 | I131: 44.58163193 | J131: -15.1277287 | K131: -15.1277287 | L131: 210.659211 | M131: 30.659211 | N131: 44.58163193 | O131: 4.256150987e-12 | P131: 4.335021231e-11 | Q131: -15.1277287 | R131: =ABS(F131-Q131) -> 2.859934511e-12 | S131: =ABS(K131-Q131) -> 4.470450676e-10 | T131: 30.65921128 | U131: =ABS(H131-T131) -> 2.465583293e-12 | V131: =ABS(M131-T131) -> 2.786689386e-07
A132: -8.74058 | B132: -91.28766 | C132: 111.05248 | D132: 873745.9848 | E132: -11.49744731 | F132: -83.81577697 | G132: 109.7375194 | H132: =NormalizeAzimuth(G132, TRUE) -> 109.7375194 | I132: -11.49744731 | J132: -83.81577697 | K132: =normalizelon(J132) -> -83.81577697 | L132: 289.737519 | M132: =NormalizeAzimuth(L132+180, TRUE) -> 109.737519 | N132: =vincentyDirLat(A132, $B132, $C132, $D132) -> -11.49744731 | O132: =ABS(E132-N132) -> 1.294964136e-11 | P132: =ABS(I132-N132) -> 2.848494773e-10 | Q132: =VincentyDirLon($A132, $B132, $C132, $D132) -> -83.81577697 | R132: 2.51674237e-11 | S132: 1.878674993e-10 | T132: =VincentyDirRevAzimuth($A132, $B132, $C132, $D132) -> 109.7375194 | U132: 7.645439837e-12 | V132: 3.739563397e-07
A133: 7.59024 | B133: -126.13188 | C133: 183.72388 | D133: 1467787.239 | E133: -5.655680313 | F133: -126.9848123 | G133: -176.2906161 | H133: 183.7093839 | I133: -5.655680313 | J133: -126.9848123 | K133: -126.9848123 | L133: 3.709384 | M133: 183.709384 | N133: -5.655680313 | O133: 7.599876284e-11 | P133: 8.290879094e-11 | Q133: -126.9848123 | R133: 6.806999409e-12 | S133: 4.821885113e-10 | T133: 183.7093839 | U133: 8.526512829e-14 | V133: 1.376949115e-07
A134: 30.95782 | B134: 107.38434 | C134: 302.95084 | D134: 633511.361 | E134: 33.9376539 | F134: 101.6341047 | G134: -60.13723504 | H134: 299.862765 | I134: 33.9376539 | J134: 101.6341047 | K134: 101.6341047 | L134: 119.862765 | M134: 299.862765 | N134: 33.9376539 | O134: 3.876010624e-11 | P134: 5.304201522e-11 | Q134: 101.6341047 | R134: 5.358913313e-11 | S134: 1.154489837e-10 | T134: 299.862765 | U134: 4.541789167e-11 | V134: 3.62551873e-08
A135: -27.11685 | B135: -95.37788 | C135: 284.91935 | D135: 77703.401 | E135: -26.93426816 | F135: -96.13392031 | G135: -74.73711 | H135: 285.26289 | I135: -26.93426816 | J135: -96.13392031 | K135: -96.13392031 | L135: 105.26289 | M135: 285.26289 | N135: -26.93426816 | O135: 3.986144748e-12 | P135: 3.369855506e-10 | Q135: -96.13392031 | R135: 1.159605745e-11 | S135: 4.644959972e-10 | T135: 285.26289 | U135: 7.048583939e-12 | V135: 1.029093255e-09
A136: 36.55128 | B136: -105.62241 | C136: 356.37335 | D136: 2618918.112 | E136: 60.03018454 | F136: -108.5124058 | G136: -5.830493134 | H136: 354.1695069 | I136: 60.03018454 | J136: -108.5124058 | K136: -108.5124058 | L136: 174.169507 | M136: 354.169507 | N136: 60.03018454 | O136: 7.655387435e-11 | P136: 1.755942947e-09 | Q136: -108.5124058 | R136: 1.185185283e-11 | S136: 7.621423492e-10 | T136: 354.1695069 | U136: 1.409716788e-11 | V136: 1.340774816e-07
A137: 87.71513 | B137: -55.23417 | C137: 208.72172 | D137: 1139643.146 | E137: 77.74236481 | F137: -78.87588923 | G137: -174.8217952 | H137: 185.1782048 | I137: 77.74236482 | J137: -78.87588923 | K137: -78.87588923 | L137: 5.178205 | M137: 185.178205 | N137: 77.74236481 | O137: 8.526512829e-13 | P137: 2.804341648e-09 | Q137: -78.87588923 | R137: 1.705302566e-12 | S137: 6.447038459e-10 | T137: 185.1782048 | U137: 4.547473509e-13 | V137: 1.893595254e-07
A138: 20.04429 | B138: 39.64796 | C138: 32.21836 | D138: 1149778.372 | E138: 28.70834831 | F138: 45.89994886 | G138: 34.80829276 | H138: 34.80829276 | I138: 28.70834831 | J138: 45.89994886 | K138: 45.89994886 | L138: 214.808293 | M138: 34.808293 | N138: 28.70834831 | O138: 5.075762033e-11 | P138: 2.110539299e-09 | Q138: 45.89994886 | R138: 2.118127895e-11 | S138: 2.065434046e-09 | T138: 34.80829276 | U138: 1.926991899e-11 | V138: 2.36899524e-07
A139: -39.77995 | B139: 89.82447 | C139: 12.89039 | D139: 617458.0677 | E139: -34.3464614 | F139: 91.3194138 | G139: 11.98834448 | H139: 11.98834448 | I139: -34.3464614 | J139: 91.3194138 | K139: 91.3194138 | L139: 191.988344 | M139: 11.988344 | N139: -34.3464614 | O139: 2.475530891e-11 | P139: 3.433555662e-10 | Q139: 91.3194138 | R139: 1.534772309e-12 | S139: 3.652758096e-10 | T139: 11.98834448 | U139: 3.620215239e-12 | V139: 4.820896962e-07
A140: 85.09304 | B140: 2.53427 | C140: 308.66299 | D140: 2770816.597 | E140: 67.93349375 | F140: -116.721726 | G140: -169.7545295 | H140: 190.2454705 | I140: 67.93349375 | J140: -116.721726 | K140: -116.721726 | L140: 10.24547 | M140: 190.24547 | N140: 67.93349375 | O140: 9.137579582e-12 | P140: 2.48547849e-11 | Q140: -116.721726 | R140: 3.822719918e-12 | S140: 4.408207133e-10 | T140: 190.2454705 | U140: 3.581135388e-12 | V140: 4.706944026e-07
A141: 43.89448 | B141: -46.91609 | C141: 345.82888 | D141: 1509940.105 | E141: 56.92474414 | F141: -52.94122143 | G141: -18.84616212 | H141: 341.1538379 | I141: 56.92474414 | J141: -52.94122143 | K141: -52.94122143 | L141: 161.153838 | M141: 341.153838 | N141: 56.92474414 | O141: 3.8440362e-11 | P141: 2.946741517e-09 | Q141: -52.94122143 | R141: 1.718092335e-11 | S141: 1.585689802e-09 | T141: 341.1538379 | U141: 2.069100447e-11 | V141: 1.210448204e-07
A142: 63.40118 | B142: 167.19977 | C142: 94.49713 | D142: 2044625.383 | E142: 56.89877236 | F142: -157.7769755 | G142: 125.1544833 | H142: 125.1544833 | I142: 56.89877236 | J142: 202.2230245 | K142: -157.7769755 | L142: 305.154483 | M142: 125.154483 | N142: 56.89877236 | O142: 4.959588296e-12 | P142: 6.789377949e-10 | Q142: -157.7769755 | R142: 3.865352483e-11 | S142: 1.250668902e-09 | T142: 125.1544833 | U142: 1.013233941e-11 | V142: 3.227251e-07
A143: 16.41653 | B143: -30.20589 | C143: 159.85739 | D143: 81952.523 | E143: 15.72107851 | F143: -29.94259553 | G143: 159.9302691 | H143: 159.9302691 | I143: 15.72107851 | J143: -29.94259553 | K143: -29.94259553 | L143: 339.930269 | M143: 159.930269 | N143: 15.72107851 | O143: 2.922107001e-12 | P143: 3.538787041e-10 | Q143: -29.94259553 | R143: 6.501466032e-13 | S143: 1.352589152e-10 | T143: 159.9302691 | U143: 4.547473509e-13 | V143: 1.38743502e-07
A144: 89.18136 | B144: -12.85374 | C144: 333.07477 | D144: 1367935.171 | E144: 78.47529581 | F144: -164.112291 | G144: -178.1440331 | H144: 181.8559669 | I144: 78.4752958 | J144: -164.112291 | K144: -164.112291 | L144: 1.855967 | M144: 181.855967 | N144: 78.47529581 | O144: 2.884803507e-12 | P144: 4.148674293e-09 | Q144: -164.112291 | R144: 1.051603249e-12 | S144: 9.800658063e-10 | T144: 181.8559669 | U144: 8.526512829e-13 | V144: 8.407315022e-08
A145: 47.41887 | B145: -138.48464 | C145: 128.64584 | D145: 497647.9246 | E145: 44.51459475 | F145: -133.5952785 | G145: 132.1631451 | H145: 132.1631451 | I145: 44.51459474 | J145: -133.5952785 | K145: -133.5952785 | L145: 312.163145 | M145: 132.163145 | N145: 44.51459475 | O145: 1.067945732e-11 | P145: 3.794227155e-10 | Q145: -133.5952785 | R145: 3.751665645e-12 | S145: 4.66769734e-10 | T145: 132.1631451 | U145: 1.11413101e-11 | V145: 9.989716432e-08
A146: -77.30041 | B146: -174.85292 | C146: 347.72065 | D146: 2549616.412 | E146: -54.62649545 | F146: 176.9443373 | G146: -4.637004968 | H146: 355.362995 | I146: -54.62649545 | J146: -183.0556627 | K146: 176.9443373 | L146: 175.362995 | M146: 355.362995 | N146: -54.62649545 | O146: 4.219202765e-11 | P146: 3.317950359e-10 | Q146: 176.9443373 | R146: 3.154809747e-12 | S146: 1.771240932e-10 | T146: 355.362995 | U146: 4.604316928e-12 | V146: 3.220020517e-08
A147: 10.73125 | B147: 153.64383 | C147: 294.47432 | D147: 923961.6454 | E147: 14.08519977 | F147: 145.8602196 | G147: -67.20138151 | H147: 292.7986185 | I147: 14.08519977 | J147: 145.8602196 | K147: 145.8602196 | L147: 112.798618 | M147: 292.798618 | N147: 14.08519977 | O147: 1.058175769e-11 | P147: 1.988809117e-10 | Q147: 145.8602196 | R147: 9.862333172e-12 | S147: 1.136868377e-12 | T147: 292.7986185 | U147: 6.593836588e-12 | V147: 4.903640729e-07
A148: 40.89346 | B148: 13.135 | C148: 250.38964 | D148: 436314.1891 | E148: 39.47452262 | F148: 8.356521498 | G148: -112.6949303 | H148: 247.3050697 | I148: 39.47452262 | J148: 8.356521498 | K148: 8.356521498 | L148: 67.30507 | M148: 247.30507 | N148: 39.47452262 | O148: 6.302514066e-12 | P148: 4.893010441e-10 | Q148: 8.356521498 | R148: 5.831779504e-12 | S148: 2.167155344e-10 | T148: 247.3050697 | U148: 1.227817847e-11 | V148: 2.503712722e-07
A149: 3.4208 | B149: 68.39911 | C149: 318.18174 | D149: 235621.6657 | E149: 5.007578004 | F149: 66.9826155 | G149: -41.92236668 | H149: 318.0776333 | I149: 5.007578004 | J149: 66.9826155 | K149: 66.9826155 | L149: 138.077633 | M149: 318.077633 | N149: 5.007578004 | O149: 9.935163803e-12 | P149: 1.671249805e-10 | Q149: 66.9826155 | R149: 9.066525308e-12 | S149: 2.626165951e-11 | T149: 318.0776333 | U149: 1.136868377e-12 | V149: 3.20443462e-07
A150: -76.69763 | B150: 144.84649 | C150: 343.57543 | D150: 1297329.239 | E150: -65.32846475 | F150: 137.0033905 | G150: -8.970395721 | H150: 351.0296043 | I150: -65.32846476 | J150: 137.0033905 | K150: 137.0033905 | L150: 171.029604 | M150: 351.029604 | N150: -65.32846475 | O150: 2.373212737e-12 | P150: 1.437328478e-09 | Q150: 137.0033905 | R150: 2.700062396e-12 | S150: 7.162839211e-10 | T150: 351.0296043 | U150: 1.080024958e-12 | V150: 2.785603783e-07
A151: -66.05588 | B151: 76.34856 | C151: 348.79195 | D151: 487865.0338 | E151: -61.7508814 | F151: 74.55490623 | G151: -9.596089176 | H151: 350.4039108 | I151: -61.7508814 | J151: 74.55490623 | K151: 74.55490623 | L151: 170.403911 | M151: 350.403911 | N151: -61.7508814 | O151: 6.636469152e-12 | P151: 4.466613746e-10 | Q151: 74.55490623 | R151: 1.676880856e-12 | S151: 2.915214736e-10 | T151: 350.4039108 | U151: 1.762145985e-12 | V151: 1.758459121e-07
A152: 63.9123 | B152: -166.40602 | C152: 35.08649 | D152: 2107759.411 | E152: 75.07706851 | F152: -120.1785337 | G152: 78.85557682 | H152: 78.85557682 | I152: 75.07706851 | J152: -120.1785337 | K152: -120.1785337 | L152: 258.855577 | M152: 78.855577 | N152: 75.07706851 | O152: 3.566924534e-12 | P152: 1.157332008e-09 | Q152: -120.1785337 | R152: 4.948219612e-11 | S152: 1.738952449e-08 | T152: 78.85557682 | U152: 6.879474768e-11 | V152: 1.766351829e-07
A153: -15.63666 | B153: 172.95704 | C153: 249.2085 | D153: 932904.5536 | E153: -18.46656688 | F153: 164.7006889 | G153: -108.3658628 | H153: 251.6341372 | I153: -18.46656688 | J153: 164.7006889 | K153: 164.7006889 | L153: 71.634137 | M153: 251.634137 | N153: -18.46656688 | O153: 1.723066134e-11 | P153: 3.505320478e-10 | Q153: 164.7006889 | R153: 2.492583917e-11 | S153: 3.302602636e-11 | T153: 251.6341372 | U153: 1.659827831e-11 | V153: 1.924966e-07
A154: 34.47056 | B154: 149.87987 | C154: 123.46666 | D154: 1885709.708 | E154: 24.09658498 | F154: 165.3128013 | G154: 131.0816642 | H154: 131.0816642 | I154: 24.09658498 | J154: 165.3128013 | K154: 165.3128013 | L154: 311.081664 | M154: 131.081664 | N154: 24.09658498 | O154: 6.016165344e-11 | P154: 4.10622647e-11 | Q154: 165.3128013 | R154: 1.077182787e-11 | S154: 1.288071871e-10 | T154: 131.0816642 | U154: 3.080913302e-11 | V154: 2.40195817e-07
A155: 70.72988 | B155: 38.88579 | C155: 191.17985 | D155: 1874375.611 | E155: 54.08823175 | F155: 33.40295927 | G155: -173.7319397 | H155: 186.2680603 | I155: 54.08823174 | J155: 33.40295927 | K155: 33.40295927 | L155: 6.26806 | M155: 186.26806 | N155: 54.08823175 | O155: 3.81277232e-11 | P155: 3.435971507e-09 | Q155: 33.40295927 | R155: 4.789058039e-12 | S155: 4.393143627e-10 | T155: 186.2680603 | U155: 5.48538992e-12 | V155: 3.429435367e-07
A156: -4.06525 | B156: -141.67541 | C156: 353.87957 | D156: 1483495.49 | E156: 9.273558935 | F156: -143.1020683 | G156: -6.185697807 | H156: 353.8143022 | I156: 9.273558935 | J156: -143.1020683 | K156: -143.1020683 | L156: 173.814302 | M156: 353.814302 | N156: 9.273558935 | O156: 7.741363106e-11 | P156: 3.158469042e-10 | Q156: -143.1020683 | R156: 1.057287591e-11 | S156: 1.324451659e-10 | T156: 353.8143022 | U156: 1.762145985e-12 | V156: 1.926792379e-07
A157: 79.54457 | B157: 116.16714 | C157: 38.64468 | D157: 2689115.548 | E157: 72.8699297 | F157: -123.7350259 | G157: 157.3671604 | H157: 157.3671604 | I157: 72.8699297 | J157: 236.2649741 | K157: -123.7350259 | L157: 337.36716 | M157: 157.36716 | N157: 72.8699297 | O157: 1.136868377e-13 | P157: 6.394884622e-10 | Q157: -123.7350259 | R157: 1.469402378e-11 | S157: 6.847358236e-10 | T157: 157.3671604 | U157: 1.98951966e-13 | V157: 3.921287828e-07
A158: 19.88641 | B158: 113.63709 | C158: 292.6876 | D158: 1829661.771 | E158: 25.4254471 | F158: 96.84669471 | G158: -73.82753112 | H158: 286.1724689 | I158: 25.4254471 | J158: 96.84669471 | K158: 96.84669472 | L158: 106.172469 | M158: 286.172469 | N158: 25.4254471 | O158: 2.771116669e-11 | P158: 1.890043677e-12 | Q158: 96.84669471 | R158: 1.904254532e-11 | S158: 7.650555744e-10 | T158: 286.1724689 | U158: 4.553157851e-11 | V158: 1.206377078e-07
A159: -10.59013 | B159: -116.79354 | C159: 151.79773 | D159: 734948.6839 | E159: -16.4251471 | F159: -113.5470654 | G159: 151.0382531 | H159: 151.0382531 | I159: -16.4251471 | J159: -113.5470654 | K159: -113.5470654 | L159: 331.038253 | M159: 151.038253 | N159: -16.4251471 | O159: 3.105782298e-11 | P159: 4.308589041e-10 | Q159: -113.5470654 | R159: 1.41540113e-11 | S159: 3.831530648e-10 | T159: 151.0382531 | U159: 4.803268894e-12 | V159: 9.844620763e-08
A160: -53.97994 | B160: 176.4941 | C160: 351.76226 | D160: 290204.7421 | E160: -51.39741934 | F160: 175.8968381 | G160: -7.762583047 | H160: 352.237417 | I160: -51.39741934 | J160: 175.8968381 | K160: 175.8968381 | L160: 172.237417 | M160: 352.237417 | N160: -51.39741934 | O160: 7.702283256e-12 | P160: 5.999822861e-11 | Q160: 175.8968381 | R160: 1.620037438e-12 | S160: 4.794173947e-10 | T160: 352.237417 | U160: 9.663381206e-13 | V160: 4.708704182e-08
A161: 85.19306 | B161: -48.25796 | C161: 98.19683 | D161: 2348678.622 | E161: 67.78394332 | F161: 21.752296 | G161: 167.3222822 | H161: 167.3222822 | I161: 67.78394331 | J161: 21.752296 | K161: 21.752296 | L161: 347.322282 | M161: 167.322282 | N161: 67.78394332 | O161: 4.337152859e-11 | P161: 3.831274853e-09 | Q161: 21.752296 | R161: 3.370814738e-11 | S161: 2.086522954e-09 | T161: 167.3222822 | U161: 2.421529643e-11 | V161: 2.094318177e-07
A162: 82.39507 | B162: -52.37138 | C162: 316.65381 | D162: 2636.9314 | E162: 82.41222442 | F162: -52.49411081 | G162: -43.46784372 | H162: 316.5321563 | I162: 82.41222442 | J162: -52.49411081 | K162: -52.49411081 | L162: 136.532156 | M162: 316.532156 | N162: 82.41222442 | O162: 2.415845302e-13 | P162: 1.73329795e-10 | Q162: -52.49411081 | R162: 9.023892744e-13 | S162: 4.423981181e-10 | T162: 316.5321563 | U162: 5.115907697e-13 | V162: 2.820856366e-07
A163: -59.90357 | B163: 108.36845 | C163: 145.06591 | D163: 1868677.446 | E163: -71.26143128 | F163: 139.251964 | G163: 116.6953084 | H163: 116.6953084 | I163: -71.26143128 | J163: 139.251964 | K163: 139.251964 | L163: 296.695308 | M163: 116.695308 | N163: -71.26143128 | O163: 1.199396138e-11 | P163: 8.400036222e-11 | Q163: 139.251964 | R163: 5.48538992e-11 | S163: 2.145839062e-09 | T163: 116.6953084 | U163: 7.081268905e-11 | V163: 3.73655169e-07
A164: -89.75274 | B164: 10.63989 | C164: 279.07071 | D164: 1326845.27 | E164: -78.07753865 | F164: -69.13264761 | G164: -1.182158871 | H164: 358.8178411 | I164: -78.07753866 | J164: -69.13264761 | K164: -69.13264761 | L164: 178.817841 | M164: 358.817841 | N164: -78.07753865 | O164: 2.145839062e-12 | P164: 2.549057854e-09 | Q164: -69.13264761 | R164: 6.679101716e-13 | S164: 6.049276635e-10 | T164: 358.8178411 | U164: 6.821210263e-13 | V164: 1.288255476e-07
A165: 87.8345 | B165: 160.72366 | C165: 295.68838 | D165: 2618896.739 | E165: 67.40045497 | F165: 49.71693932 | G165: -174.9138787 | H165: 185.0861213 | I165: 67.40045497 | J165: 49.71693932 | K165: 49.71693932 | L165: 5.086121 | M165: 185.086121 | N165: 67.40045497 | O165: 1.141131634e-11 | P165: 4.012818522e-09 | Q165: 49.71693932 | R165: 1.449507181e-12 | S165: 8.535607776e-10 | T165: 185.0861213 | U165: 2.046363079e-12 | V165: 3.195199554e-07
A166: -46.25782 | B166: 128.5649 | C166: 346.95398 | D166: 870222.554 | E166: -38.601951 | F166: 126.3162451 | G166: -11.52537392 | H166: 348.4746261 | I166: -38.601951 | J166: 126.3162451 | K166: 126.3162451 | L166: 168.474626 | M166: 348.474626 | N166: -38.601951 | O166: 2.957278866e-11 | P166: 4.071267767e-10 | Q166: 126.3162451 | R166: 2.046363079e-12 | S166: 4.010303201e-10 | T166: 348.4746261 | U166: 4.49063009e-12 | V166: 7.592467455e-08
A167: 56.54449 | B167: 80.51427 | C167: 274.28678 | D167: 181242.5084 | E167: 56.6313232 | F167: 77.56844297 | G167: -88.17236036 | H167: 271.8276396 | I167: 56.6313232 | J167: 77.56844297 | K167: 77.56844297 | L167: 91.82764 | M167: 271.82764 | N167: 56.6313232 | O167: 8.526512829e-14 | P167: 3.685158845e-10 | Q167: 77.56844297 | R167: 7.204903341e-12 | S167: 3.165609996e-10 | T167: 271.8276396 | U167: 5.684341886e-13 | V167: 3.611528427e-07
A168: 28.70416 | B168: 37.6523 | C168: 298.13016 | D168: 2847014.212 | E168: 37.75074136 | F168: 8.90771565 | G168: -77.90578251 | H168: 282.0942175 | I168: 37.75074136 | J168: 8.907715645 | K168: 8.907715645 | L168: 102.094217 | M168: 282.094217 | N168: 37.75074136 | O168: 2.589217729e-11 | P168: 9.541096802e-10 | Q168: 8.90771565 | R168: 1.739230981e-11 | S168: 5.438266726e-09 | T168: 282.0942175 | U168: 9.396217138e-11 | V168: 4.866857353e-07
A169: 57.86423 | B169: -127.27303 | C169: 287.40098 | D169: 2605914.985 | E169: 57.18915433 | F169: -171.5466309 | G169: -110.4849058 | H169: 249.5150942 | I169: 57.18915432 | J169: -171.5466309 | K169: -171.5466309 | L169: 69.515094 | M169: 249.515094 | N169: 57.18915433 | O169: 5.826450433e-13 | P169: 1.734818511e-09 | Q169: -171.5466309 | R169: 8.73967565e-11 | S169: 6.259369911e-09 | T169: 249.5150942 | U169: 1.648459147e-12 | V169: 1.73440327e-07
A170: -3.3862 | B170: 7.57363 | C170: 116.54897 | D170: 2164002.292 | E170: -11.83635253 | F170: 25.27985607 | G170: 114.1786542 | H170: 114.1786542 | I170: -11.83635253 | J170: 25.27985607 | K170: 25.27985607 | L170: 294.178654 | M170: 114.178654 | N170: -11.83635253 | O170: 5.580957918e-11 | P170: 3.778914959e-10 | Q170: 25.27985607 | R170: 1.107061109e-10 | S170: 8.836025245e-10 | T170: 114.1786542 | U170: 2.579270131e-11 | V170: 1.669912137e-07
A171: -80.09853 | B171: -167.62506 | C171: 342.86336 | D171: 2374062.401 | E171: -59.12381825 | F171: -179.6491118 | G171: -5.670508074 | H171: 354.3294919 | I171: -59.12381825 | J171: -179.6491118 | K171: -179.6491118 | L171: 174.329492 | M171: 354.329492 | N171: -59.12381825 | O171: 2.16360263e-11 | P171: 8.676437346e-11 | Q171: -179.6491118 | R171: 1.421085472e-12 | S171: 4.815774446e-10 | T171: 354.3294919 | U171: 3.410605132e-12 | V171: 7.438677585e-08
A172: -25.79666 | B172: -91.60102 | C172: 110.88793 | D172: 1445060.199 | E172: -29.76489015 | F172: -77.62197879 | G172: 104.3429773 | H172: 104.3429773 | I172: -29.76489015 | J172: -77.62197879 | K172: -77.62197879 | L172: 284.342977 | M172: 104.342977 | N172: -29.76489015 | O172: 1.789857151e-11 | P172: 3.799023318e-10 | Q172: -77.62197879 | R172: 5.925926416e-12 | S172: 4.595221981e-10 | T172: 104.3429773 | U172: 3.973354978e-11 | V172: 3.317412478e-07
A173: -15.80319 | B173: 62.38284 | C173: 103.39551 | D173: 371706.7015 | E173: -16.55464761 | F173: 65.77069852 | G173: 102.451249 | H173: 102.451249 | I173: -16.55464761 | J173: 65.77069852 | K173: 65.77069852 | L173: 282.451249 | M173: 102.451249 | N173: -16.55464761 | O173: 4.884981308e-12 | P173: 3.024140938e-10 | Q173: 65.77069852 | R173: 1.065814104e-11 | S173: 2.559659151e-10 | T173: 102.451249 | U173: 6.394884622e-12 | V173: 3.464741383e-08
A174: -20.97921 | B174: 130.19319 | C174: 323.70005 | D174: 473620.6878 | E174: -17.51117562 | F174: 127.5543142 | G174: -35.42960834 | H174: 324.5703917 | I174: -17.51117562 | J174: 127.5543142 | K174: 127.5543142 | L174: 144.570392 | M174: 324.570392 | N174: -17.51117562 | O174: 2.069810989e-11 | P174: 4.259703701e-11 | Q174: 127.5543142 | R174: 9.379164112e-12 | S174: 5.013589544e-10 | T174: 324.5703917 | U174: 4.320099833e-12 | V174: 3.377509756e-07
A175: -14.93039 | B175: 52.18267 | C175: 183.96492 | D175: 1869949.387 | E175: -31.76888583 | F175: 50.83717509 | G175: -175.495953 | H175: 184.504047 | I175: -31.76888583 | J175: 50.83717509 | K175: 50.83717509 | L175: 4.504047 | M175: 184.504047 | N175: -31.76888583 | O175: 9.747580521e-11 | P175: 2.971376034e-09 | Q175: 50.83717509 | R175: 4.796163466e-12 | S175: 7.901235222e-12 | T175: 184.504047 | U175: 4.092726158e-12 | V175: 4.104492746e-08
A176: 22.31986 | B176: 107.55486 | C176: 345.03864 | D176: 1165528.918 | E176: 32.44865546 | F176: 104.3710067 | G176: -16.43185071 | H176: 343.5681493 | I176: 32.44865546 | J176: 104.3710067 | K176: 104.3710067 | L176: 163.568149 | M176: 343.568149 | N176: 32.44865546 | O176: 5.780975698e-11 | P176: 1.267487448e-09 | Q176: 104.3710067 | R176: 8.952838471e-12 | S176: 6.650680007e-10 | T176: 343.5681493 | U176: 1.125499693e-11 | V176: 2.948382303e-07
A177: 11.62475 | B177: -125.80128 | C177: 130.08402 | D177: 2133546.645 | E177: -1.040999781 | F177: -111.2518568 | G177: 131.4414666 | H177: 131.4414666 | I177: -1.04099978 | J177: -111.2518568 | K177: -111.2518568 | L177: 311.441467 | M177: 131.441467 | N177: -1.040999782 | O177: 8.571010568e-11 | P177: 1.531190286e-09 | Q177: -111.2518568 | R177: 9.252687505e-11 | S177: 1.738527544e-09 | T177: 131.4414666 | U177: 2.330580173e-12 | V177: 4.363813275e-07
A178: -39.60991 | B178: -63.98298 | C178: 65.53415 | D178: 1948522.891 | E178: -30.77431757 | F178: -45.41942346 | G178: 54.74051513 | H178: 54.74051513 | I178: -30.77431757 | J178: -45.41942347 | K178: -45.41942347 | L178: 234.740515 | M178: 54.740515 | N178: -30.77431757 | O178: 4.96598318e-11 | P178: 2.29096031e-09 | Q178: -45.41942346 | R178: 7.688072401e-12 | S178: 3.054310582e-09 | T178: 54.74051513 | U178: 4.169464773e-11 | V178: 1.326988439e-07
A179: -46.98603 | B179: 9.58227 | C179: 213.37766 | D179: 2987346.844 | E179: -65.45835321 | F179: -27.0279848 | G179: -115.4869447 | H179: 244.5130553 | I179: -65.45835321 | J179: -27.0279848 | K179: -27.0279848 | L179: 64.513055 | M179: 244.513055 | N179: -65.45835321 | O179: 2.879119165e-11 | P179: 4.674092224e-10 | Q179: -27.0279848 | R179: 1.037605557e-10 | S179: 3.876039045e-09 | T179: 244.5130553 | U179: 1.312514541e-10 | V179: 3.207672421e-07
A180: 89.82347 | B180: 85.36163 | C180: 90.75359 | D180: 2388158.312 | E180: 68.60595293 | F180: 174.157258 | G180: 179.5158845 | H180: 179.5158845 | I180: 68.60595293 | J180: 174.157258 | K180: 174.157258 | L180: 359.515884 | M180: 179.515884 | N180: 68.60595293 | O180: 9.620748642e-12 | P180: 2.220275519e-09 | Q180: 174.157258 | R180: 3.410605132e-13 | S180: 3.626610123e-10 | T180: 179.5158845 | U180: 1.136868377e-13 | V180: 4.925888675e-07
A181: -45.13054 | B181: 109.06982 | C181: 23.03076 | D181: 1516703.969 | E181: -32.36523712 | F181: 115.3276016 | G181: 19.08717876 | H181: 19.08717876 | I181: -32.36523712 | J181: 115.3276016 | K181: 115.3276016 | L181: 199.087179 | M181: 19.087179 | N181: -32.36523712 | O181: 5.558575822e-11 | P181: 3.07771586e-09 | Q181: 115.3276016 | R181: 5.741185305e-12 | S181: 1.444277586e-09 | T181: 19.08717876 | U181: 1.216093892e-11 | V181: 2.442745526e-07
A182: -79.57438 | B182: 34.26979 | C182: 313.0317 | D182: 1158783.379 | E182: -70.93354645 | F182: 10.49669331 | G182: -23.89313907 | H182: 336.1068609 | I182: -70.93354645 | J182: 10.4966933 | K182: 10.4966933 | L182: 156.106861 | M182: 336.106861 | N182: -70.93354645 | O182: 2.799538379e-11 | P182: 3.561297035e-09 | Q182: 10.49669331 | R182: 4.398970077e-11 | S182: 4.840899237e-09 | T182: 336.1068609 | U182: 3.620925781e-11 | V182: 7.496299759e-08
A183: 38.25056 | B183: -173.99167 | C183: 181.36596 | D183: 1704611.013 | E183: 22.87872466 | F183: -174.3829589 | G183: -178.8348246 | H183: 181.1651754 | I183: 22.87872465 | J183: -174.3829589 | K183: -174.3829589 | L183: 1.165175 | M183: 181.165175 | N183: 22.87872466 | O183: 6.634337524e-11 | P183: 4.482359373e-09 | Q183: -174.3829589 | R183: 3.694822226e-13 | S183: 4.156390787e-10 | T183: 181.1651754 | U183: 2.842170943e-13 | V183: 4.039377188e-07
A184: 72.21713 | B184: 175.3751 | C184: 116.47589 | D184: 1416256.808 | E184: 64.02934277 | F184: -157.9476836 | G184: 141.3553134 | H184: 141.3553134 | I184: 64.02934278 | J184: 202.0523164 | K184: -157.9476836 | L184: 321.355313 | M184: 141.355313 | N184: 64.02934278 | O184: 8.057554624e-12 | P184: 2.999342996e-09 | Q184: -157.9476836 | R184: 3.007016858e-11 | S184: 5.098968359e-09 | T184: 141.3553134 | U184: 1.341504685e-11 | V184: 4.155175475e-07
A185: -51.30735 | B185: 37.7529 | C185: 262.05438 | D185: 37084.6507 | E185: -51.35224169 | F185: 37.22567643 | G185: -97.53398616 | H185: 262.4660138 | I185: -51.35224169 | J185: 37.22567643 | K185: 37.22567643 | L185: 82.466014 | M185: 262.466014 | N185: -51.35224169 | O185: 1.421085472e-14 | P185: 4.276898835e-10 | Q185: 37.22567643 | R185: 1.080024958e-12 | S185: 2.249294084e-10 | T185: 262.4660138 | U185: 3.97903932e-13 | V185: 1.56236581e-07
A186: -82.28505 | B186: 116.79396 | C186: 329.89498 | D186: 2760978.398 | E186: -58.35398282 | F186: 93.2080437 | G186: -7.380018104 | H186: 352.6199819 | I186: -58.35398282 | J186: 93.2080437 | K186: 93.2080437 | L186: 172.619982 | M186: 352.619982 | N186: -58.35398282 | O186: 2.308553348e-11 | P186: 2.322181558e-09 | Q186: 93.2080437 | R186: 6.252776075e-13 | S186: 3.876152732e-10 | T186: 352.6199819 | U186: 4.718003765e-12 | V186: 1.038015398e-07
A187: 9.47149 | B187: 48.05799 | C187: 122.84132 | D187: 2197247.204 | E187: -1.548417071 | F187: 64.54740386 | G187: 123.9938121 | H187: 123.9938121 | I187: -1.548417071 | J187: 64.54740386 | K187: 64.54740386 | L187: 303.993812 | M187: 123.993812 | N187: -1.548417071 | O187: 7.742717578e-11 | P187: 4.059570458e-10 | Q187: 64.54740386 | R187: 1.098499069e-10 | S187: 1.910507308e-10 | T187: 123.9938121 | U187: 2.884803507e-12 | V187: 5.561712157e-08
A188: 41.32079 | B188: 30.4912 | C188: 177.5402 | D188: 2332316.253 | E188: 20.29990302 | F188: 31.4283293 | G188: 178.0284209 | H188: 178.0284209 | I188: 20.29990302 | J188: 31.4283293 | K188: 31.4283293 | L188: 358.028421 | M188: 178.028421 | N188: 20.29990302 | O188: 8.191491929e-11 | P188: 3.468187515e-09 | Q188: 31.4283293 | R188: 1.563194019e-13 | S188: 7.054268281e-11 | T188: 178.0284209 | U188: 5.400124792e-13 | V188: 7.257543189e-08
A189: 2.62457 | B189: 79.61126 | C189: 349.54712 | D189: 934757.1679 | E189: 10.93468165 | F189: 78.06521777 | G189: -10.63588573 | H189: 349.3641143 | I189: 10.93468165 | J189: 78.06521777 | K189: 78.06521777 | L189: 169.364114 | M189: 349.364114 | N189: 10.93468165 | O189: 5.730527164e-12 | P189: 4.06968681e-10 | Q189: 78.06521777 | R189: 2.671640686e-12 | S189: 1.758166945e-10 | T189: 349.3641143 | U189: 6.252776075e-13 | V189: 2.691143095e-07
A190: 73.9572 | B190: -21.14536 | C190: 113.57873 | D190: 2202448.032 | E190: 60.13573158 | F190: 17.2813529 | G190: 149.4062211 | H190: 149.4062211 | I190: 60.13573159 | J190: 17.28135289 | K190: 17.28135289 | L190: 329.406221 | M190: 149.406221 | N190: 60.13573158 | O190: 5.748290732e-12 | P190: 3.524249337e-09 | Q190: 17.2813529 | R190: 1.314859333e-11 | S190: 4.093038797e-09 | T190: 149.4062211 | U190: 5.258016245e-12 | V190: 8.828624232e-08
A191: -26.62467 | B191: -129.90505 | C191: 15.76199 | D191: 1541236.286 | E191: -13.17863323 | F191: -126.0778772 | G191: 14.44970595 | H191: 14.44970595 | I191: -13.17863323 | J191: -126.0778772 | K191: -126.0778772 | L191: 194.449706 | M191: 14.449706 | N191: -13.17863323 | O191: 4.238032147e-11 | P191: 2.8186804e-09 | Q191: -126.0778772 | R191: 2.01794137e-12 | S191: 9.350173968e-10 | T191: 14.44970595 | U191: 2.557953849e-12 | V191: 4.530614994e-08
A192: 66.36652 | B192: -161.80237 | C192: 326.47484 | D192: 2847786.918 | E192: 76.11088543 | F192: 116.0695045 | G192: -112.7719515 | H192: 247.2280485 | I192: 76.11088543 | J192: -243.9304955 | K192: 116.0695045 | L192: 67.228049 | M192: 247.228049 | N192: 76.11088543 | O192: 5.115907697e-12 | P192: 8.438121313e-10 | Q192: 116.0695045 | R192: 2.070521532e-11 | S192: 7.145672498e-09 | T192: 247.2280485 | U192: 4.800426723e-11 | V192: 4.874260071e-07
A193: 27.10934 | B193: -107.87071 | C193: 65.25944 | D193: 2278616.405 | E193: 33.8905079 | F193: -85.39948021 | G193: 76.79466031 | H193: 76.79466031 | I193: 33.8905079 | J193: -85.39948021 | K193: -85.39948021 | L193: 256.79466 | M193: 76.79466 | N193: 33.8905079 | O193: 2.451372438e-11 | P193: 3.693116923e-10 | Q193: -85.39948021 | R193: 1.338662514e-11 | S193: 2.543217192e-09 | T193: 76.79466031 | U193: 6.966160981e-11 | V193: 3.131292345e-07
A194: 27.2421 | B194: -150.59839 | C194: 206.1298 | D194: 2226010.708 | E194: 8.940864521 | F194: -159.3661504 | G194: -156.633022 | H194: 203.366978 | I194: 8.940864519 | J194: -159.3661504 | K194: -159.3661504 | L194: 23.366978 | M194: 203.366978 | N194: 8.940864521 | O194: 7.086597975e-11 | P194: 2.013983647e-09 | Q194: -159.3661504 | R194: 1.369926395e-11 | S194: 5.572928785e-10 | T194: 203.366978 | U194: 4.888534022e-12 | V194: 2.852118541e-09
A195: -51.30691 | B195: -69.26811 | C195: 29.19476 | D195: 165961.9748 | E195: -49.99896387 | F195: -68.13907124 | G195: 28.32158373 | H195: 28.32158373 | I195: -49.99896387 | J195: -68.13907124 | K195: -68.13907124 | L195: 208.321584 | M195: 28.321584 | N195: -49.99896387 | O195: 4.163780432e-12 | P195: 3.375646429e-10 | Q195: -68.13907124 | R195: =ABS(F195-Q195) -> 1.98951966e-12 | S195: =ABS(K195-Q195) -> 1.881090839e-10 | T195: 28.32158373 | U195: =ABS(H195-T195) -> 2.632560836e-12 | V195: =ABS(M195-T195) -> 2.650592634e-07
A196: 72.25667 | B196: 43.0264 | C196: 199.46281 | D196: 176432.5575 | E196: 70.7588325 | F196: 41.42870985 | G196: -162.0525253 | H196: =NormalizeAzimuth(G196, TRUE) -> 197.9474747 | I196: 70.7588325 | J196: 41.42870985 | K196: =normalizelon(J196) -> 41.42870985 | L196: 17.947475 | M196: =NormalizeAzimuth(L196+180, TRUE) -> 197.947475 | N196: =vincentyDirLat(A196, $B196, $C196, $D196) -> 70.7588325 | O196: =ABS(E196-N196) -> 2.572164703e-12 | P196: =ABS(I196-N196) -> 1.531645921e-10 | Q196: =VincentyDirLon($A196, $B196, $C196, $D196) -> 41.42870985 | R196: 3.090860901e-12 | S196: 3.062154974e-10 | T196: =VincentyDirRevAzimuth($A196, $B196, $C196, $D196) -> 197.9474747 | U196: 1.875832822e-12 | V196: 3.06855128e-07
A197: -0.96489 | B197: 93.63996 | C197: 334.64444 | D197: 2913012.577 | E197: 22.68721613 | F197: 81.83654572 | G197: -27.63593063 | H197: 332.3640694 | I197: 22.68721613 | J197: 81.83654572 | K197: 81.83654572 | L197: 152.364069 | M197: 332.364069 | N197: 22.68721613 | O197: 1.335429545e-10 | P197: 1.821355511e-09 | Q197: 81.83654572 | R197: 6.851053058e-11 | S197: 1.538410288e-09 | T197: 332.3640694 | U197: 2.944489097e-11 | V197: 3.747159667e-07
A198: 79.0683 | B198: -14.22913 | C198: 217.73259 | D198: 55334.1145 | E198: 78.67233557 | F198: -15.77302257 | G198: -143.7822787 | H198: 216.2177213 | I198: 78.67233557 | J198: -15.77302257 | K198: -15.77302257 | L198: 36.217721 | M198: 216.217721 | N198: 78.67233557 | O198: 2.287947609e-12 | P198: 4.944809007e-10 | Q198: -15.77302257 | R198: 9.18909393e-12 | S198: 4.716866897e-10 | T198: 216.2177213 | U198: 9.009681889e-12 | V198: 2.75814017e-07
A199: 64.10736 | B199: -122.36005 | C199: 299.22041 | D199: 1237165.563 | E199: 67.49395181 | F199: -148.3519875 | G199: -84.56561864 | H199: 275.4343814 | I199: 67.49395182 | J199: -148.3519875 | K199: -148.3519875 | L199: 95.434381 | M199: 275.434381 | N199: 67.49395181 | O199: 3.268496584e-12 | P199: 5.530722547e-10 | Q199: -148.3519875 | R199: 1.112709924e-10 | S199: 2.280245326e-09 | T199: 275.4343814 | U199: 7.906919564e-11 | V199: 3.605198344e-07
A200: 80.77424 | B200: 127.7698 | C200: 218.86179 | D200: 106597.6541 | E200: 80.01307771 | F200: 124.3146071 | G200: -144.5450566 | H200: 215.4549434 | I200: 80.01307771 | J200: 124.3146071 | K200: 124.3146071 | L200: 35.454943 | M200: 215.454943 | N200: 80.01307771 | O200: 4.931166586e-12 | P200: 4.277325161e-10 | Q200: 124.3146071 | R200: 2.161471002e-11 | S200: 2.323758963e-10 | T200: 215.4549434 | U200: 2.052047421e-11 | V200: 4.01417509e-07
... 404 more rows

Sheet Inverse
A1: Input data | E1: GeodSolve Library (GL) results | J1: Geoscience Australia (GA) - normalized results | N1: Calculated Results And Comparison
A2: Lat1 | B2: Lon1 | C2: Lat2 | D2: Lon2 | E2: Distance [m] | F2: FwdAzimuth | G2: Norm FwdAzimuth | H2: RevAzimuth | I2: Norm RevAzimuth | J2: Distance [m] | K2: FwdAzimuth | L2: RevAzimuth | M2: Norm. RevAzimuth | N2: Calculated Distance | O2: Distance GL Δ | P2: Distance GL Δ | Q2: Distance GA Δ | R2: Distance GA Δ | S2: Calculated FwdAzimuth | T2: FwdAzimuth GL Δ | U2: FwdAzimuth GA Δ | V2: Calculated RevAzimuth | W2: RevAzimuth GL Δ | X2: RevAzimuth GA Δ
A3: -73.19034 | B3: -90.31707 | C3: -7.69722 | D3: -97.15051 | E3: 7288125.696 | F3: -7.449098761 | G3: =NormalizeAzimuth(F3, TRUE) -> 352.5509012 | H3: -2.17476783 | I3: =NormalizeAzimuth(H3, TRUE) -> 357.8252322 | J3: 7288125.696 | K3: 352.550901 | L3: 177.825232 | M3: =NormalizeAzimuth(L3+180, TRUE) -> 357.825232 | N3: =VincentyInvDistance($A3,$B3,$C3,$D3) -> 7288125.696 | O3: =ABS((E3-N3)/E3) -> 4.301286664e-12 | P3: =ABS(E3-N3) -> 3.134831786e-05 | Q3: =ABS((J3-N3)/J3) -> 5.293968933e-11 | R3: =ABS(J3-N3) -> 0.0003858311102 | S3: =VincentyInvFwdAzimuth($A3,$B3,$C3,$D3) -> 352.5509012 | T3: =ABS(G3-S3) -> 7.673861546e-12 | U3: =ABS(K3-S3) -> 2.394407943e-07 | V3: =VincentyInvRevAzimuth($A3,$B3,$C3,$D3) -> 357.8252322 | W3: =ABS(I3-V3) -> 2.216893336e-12 | X3: =ABS(M3-V3) -> 1.702779855e-07
A4: -27.46273 | B4: 64.61237 | C4: -23.95925 | D4: 155.74136 | E4: 8926024.122 | F4: 112.009205 | G4: =NormalizeAzimuth(F4, TRUE) -> 112.009205 | H4: 64.20524249 | I4: =NormalizeAzimuth(H4, TRUE) -> 64.20524249 | J4: 8926024.122 | K4: 112.009205 | L4: 244.205242 | M4: =NormalizeAzimuth(L4+180, TRUE) -> 64.205242 | N4: 8926024.122 | O4: 1.020841972e-12 | P4: 9.11206007e-06 | Q4: =ABS((J4-N4)/J4) -> 4.755888231e-11 | R4: =ABS(J4-N4) -> 0.0004245117307 | S4: =VincentyInvFwdAzimuth($A4,$B4,$C4,$D4) -> 112.009205 | T4: 2.432898327e-10 | U4: 3.527470938e-08 | V4: =VincentyInvRevAzimuth($A4,$B4,$C4,$D4) -> 64.20524249 | W4: 2.035278612e-10 | X4: 4.927130703e-07
A5: -83.24124 | B5: -117.00995 | C5: 64.20572 | D5: 121.59592 | E5: 17441757 | F5: -107.8462637 | G5: 252.1537363 | H5: -14.92772033 | I5: 345.0722797 | J5: 17441757 | K5: 252.153736 | L5: 165.07228 | M5: 345.07228 | N5: 17441757 | O5: 4.055971125e-12 | P5: 7.074326277e-05 | Q5: 8.591012456e-12 | R5: 0.0001498423517 | S5: 252.1537363 | T5: 5.57633939e-11 | U5: 3.46987207e-07 | V5: 345.0722797 | W5: 4.604316928e-12 | X5: 3.31930778e-07
A6: -33.33966 | B6: -52.97975 | C6: -18.05111 | D6: -51.95504 | E6: 1696868.681 | F6: 3.709398442 | G6: 3.709398442 | H6: 3.261090137 | I6: 3.261090137 | J6: 1696868.681 | K6: 3.709398 | L6: 183.26109 | M6: 3.26109 | N6: 1696868.681 | O6: 6.313807419e-12 | P6: 1.071370207e-05 | Q6: 1.165535847e-10 | R6: 0.0001977761276 | S6: 3.709398442 | T6: 1.833182495e-10 | U6: 4.416246417e-07 | V6: 3.261090137 | W6: 1.611075717e-10 | X6: 1.365499851e-07
A7: 4.8343 | B7: 51.63044 | C7: 31.7308 | D7: -136.5581 | E7: 15866490.84 | F7: 11.41651702 | G7: 11.41651702 | H7: 166.603493 | I7: 166.603493 | J7: 15866490.84 | K7: 11.416517 | L7: 346.603493 | M7: 166.603493 | N7: 15866490.84 | O7: 2.976899944e-12 | P7: 4.723295569e-05 | Q7: 3.170413701e-11 | R7: 0.0005030333996 | S7: 11.41651702 | T7: 1.556141882e-10 | U7: 1.814118455e-08 | V7: 166.603493 | W7: 1.8388846e-10 | X7: 1.388181659e-08
A8: -58.14701 | B8: -142.20697 | C8: -44.84688 | D8: -115.80561 | E8: 2329780.672 | F8: 62.12591978 | G8: 62.12591978 | H8: 41.18456722 | I8: 41.18456722 | J8: 2329780.672 | K8: 62.12592 | L8: 221.184567 | M8: 41.184567 | N8: 2329780.672 | O8: 3.125820795e-12 | P8: 7.282476872e-06 | Q8: 1.020963547e-10 | R8: 0.0002378621139 | S8: 62.12591978 | T8: 9.542588941e-12 | U8: 2.163470398e-07 | V8: 41.18456722 | W8: 4.35562697e-12 | X8: 2.16966427e-07
A9: -14.64314 | B9: -168.42305 | C9: 20.68601 | D9: 125.92728 | E9: 8171429.838 | F9: -62.88771912 | G9: 297.1122809 | H9: -66.97926194 | I9: 293.0207381 | J9: 8171429.838 | K9: 297.112281 | L9: 113.020738 | M9: 293.020738 | N9: 8171429.838 | O9: 6.023132435e-12 | P9: 4.92176041e-05 | Q9: 1.896214801e-11 | R9: 0.000154947862 | S9: 297.1122809 | T9: 2.705746738e-11 | U9: 1.244339387e-07 | V9: 293.0207381 | W9: 3.262812243e-11 | X9: 6.357066695e-08
A10: 57.65154 | B10: 157.96238 | C10: -69.68361 | D10: -12.81131 | E10: 18591406.4 | F10: -165.4008018 | G10: 194.5991982 | H10: -22.84379781 | I10: 337.1562022 | J10: 18591406.41 | K10: 194.599198 | L10: 157.156202 | M10: 337.156202 | N10: 18591406.4 | O10: 3.743443172e-12 | P10: 6.959587336e-05 | Q10: 2.435522359e-11 | R10: 0.0004527978599 | S10: 194.5991982 | T10: 1.02119202e-10 | U10: 2.397568721e-07 | V10: 337.1562022 | W10: 1.650732884e-10 | X10: 1.900129405e-07
A11: -1.85269 | B11: 113.12232 | C11: 14.28854 | D11: -58.39895 | E11: 18352200.14 | F11: -32.67947056 | G11: 327.3205294 | H11: -146.1671444 | I11: 213.8328556 | J11: 18352200.14 | K11: 327.320529 | L11: 33.832856 | M11: 213.832856 | N11: 18352200.14 | O11: 3.003421652e-12 | P11: 5.511939526e-05 | Q11: 1.951919591e-11 | R11: 0.0003582201898 | S11: 327.3205294 | T11: 1.317005172e-09 | U11: 4.402247669e-07 | V11: 213.8328555 | W11: 1.376207592e-09 | X11: 4.500311945e-07
A12: -34.5545 | B12: -89.88912 | C12: 8.94086 | D12: 26.80087 | E12: 13013464.1 | F12: 98.15876476 | G12: 98.15876476 | H12: 55.70040214 | I12: 55.70040214 | J12: 13013464.1 | K12: 98.158765 | L12: 235.700402 | M12: =NormalizeAzimuth(L12+180, TRUE) -> 55.700402 | N12: 13013464.1 | O12: 2.402186942e-12 | P12: 3.126077354e-05 | Q12: 3.464571043e-11 | R12: 0.000450860709 | S12: 98.15876476 | T12: 3.187210496e-10 | U12: 2.44271277e-07 | V12: 55.70040214 | W12: 6.694023114e-11 | X12: 1.378149648e-07
A13: -40.49139 | B13: -52.18973 | C13: -32.45612 | D13: -172.04351 | E13: 9843902.637 | F13: -132.9834207 | G13: 227.0165793 | H13: -41.27157796 | I13: 318.728422 | J13: 9843902.637 | K13: 227.016579 | L13: 138.728422 | M13: 318.728422 | N13: 9843902.637 | O13: 7.396537894e-13 | P13: 7.281079888e-06 | Q13: 1.391094072e-11 | R13: 0.0001369379461 | S13: 227.0165793 | T13: 2.422950729e-10 | U13: 2.668656975e-07 | V13: 318.728422 | W13: 1.983266884e-10 | X13: 3.86282295e-08
A14: -5.83531 | B14: -40.94056 | C14: 58.06669 | D14: 128.92748 | E14: 14144633.18 | F14: 6.696254633 | G14: =NormalizeAzimuth(F14, TRUE) -> 6.696254633 | H14: 167.3619579 | I14: 167.3619579 | J14: 14144633.18 | K14: 6.696255 | L14: 347.361958 | M14: =NormalizeAzimuth(L14+180, TRUE) -> 167.361958 | N14: 14144633.18 | O14: 3.125032051e-12 | P14: 4.420243204e-05 | Q14: 9.686796076e-13 | R14: 1.370161772e-05 | S14: 6.696254633 | T14: 1.200373134e-11 | U14: 3.673501734e-07 | V14: 167.3619579 | W14: 2.31921149e-11 | X14: 1.294387744e-07
A15: 22.30837 | B15: -15.41261 | C15: -77.91724 | D15: -21.18674 | E15: 11126939.11 | F15: -178.7686397 | G15: 181.2313603 | H15: -174.564834 | I15: 185.435166 | J15: 11126939.11 | K15: 181.23136 | L15: 5.435166 | M15: 185.435166 | N15: 11126939.11 | O15: 4.654713261e-12 | P15: 5.179271102e-05 | Q15: 2.516350778e-11 | R15: 0.0002799928188 | S15: 181.2313603 | T15: 8.810729923e-13 | U15: 3.390851191e-07 | V15: 185.435166 | W15: 5.883293852e-12 | X15: 3.750611199e-08
A16: 69.17075 | B16: -132.38274 | C16: -7.79234 | D16: -148.41025 | E16: 8628113.187 | F16: -163.7126557 | G16: 196.2873443 | H16: -174.206462 | I16: 185.793538 | J16: 8628113.187 | K16: 196.287344 | L16: 5.793538 | M16: 185.793538 | N16: 8628113.187 | O16: 4.709658496e-12 | P16: 4.063546658e-05 | Q16: 4.372063889e-11 | R16: 0.0003772266209 | S16: 196.2873443 | T16: 1.631406121e-11 | U16: 2.501573135e-07 | V16: 185.793538 | W16: 5.741185305e-12 | X16: 3.12662678e-08
A17: -63.51078 | B17: 97.62327 | C17: 71.74239 | D17: 116.67794 | E17: 15078802.09 | F17: 8.467174716 | G17: 8.467174716 | H17: 12.09643527 | I17: 12.09643527 | J17: 15078802.09 | K17: 8.467175 | L17: 192.096435 | M17: 12.096435 | N17: 15078802.09 | O17: 4.650929969e-12 | P17: 7.013045251e-05 | Q17: 2.758638502e-11 | R17: 0.00041596964 | S17: 8.467174716 | T17: 9.819700608e-12 | U17: 2.843919997e-07 | V17: 12.09643527 | W17: 1.41540113e-11 | X17: 2.731013122e-07
A18: -19.57667 | B18: 78.64998 | C18: 69.27858 | D18: 136.25336 | E18: 10848297.53 | F18: 17.61718348 | G18: 17.61718348 | H18: 53.50185868 | I18: 53.50185868 | J18: 10848297.54 | K18: 17.617183 | L18: 233.501859 | M18: 53.501859 | N18: 10848297.53 | O18: 4.676230577e-12 | P18: 5.072914064e-05 | Q18: 4.662752181e-11 | R18: 0.00050582923 | S18: 17.61718348 | T18: 1.313438247e-11 | U18: 4.755794336e-07 | V18: 53.50185868 | W18: 5.542943882e-11 | X18: 3.191219378e-07
A19: 39.89388 | B19: -26.36665 | C19: 43.53266 | D19: -1.88804 | E19: 2068921.011 | F19: 70.72994589 | G19: 70.72994589 | H19: 87.16570472 | I19: 87.16570472 | J19: 2068921.011 | K19: 70.729946 | L19: 267.165705 | M19: 87.165705 | N19: 2068921.011 | O19: 1.434399558e-12 | P19: 2.967659384e-06 | Q19: 6.808266203e-11 | R19: 0.00014085765 | S19: 70.72994589 | T19: 1.541877737e-11 | U19: 1.066718767e-07 | V19: 87.16570472 | W19: 1.088125146e-10 | X19: 2.843572844e-07
A20: -81.0146 | B20: 61.02025 | C20: 39.04028 | D20: 68.61012 | E20: 13329277.58 | F20: 6.819058872 | G20: 6.819058872 | H20: 1.370766448 | I20: 1.370766448 | J20: 13329277.57 | K20: 6.819059 | L20: 181.370766 | M20: 1.370766 | N20: 13329277.58 | O20: 4.66888297e-12 | P20: 6.223283708e-05 | Q20: 3.011178681e-11 | R20: 0.0004013683647 | S20: 6.819058872 | T20: 1.268318783e-12 | U20: 1.276769286e-07 | V20: 1.370766448 | W20: 2.429167978e-13 | X20: 4.483299538e-07
A21: -48.4641 | B21: 142.6176 | C21: 20.16439 | D21: -137.13472 | E21: 10971195.91 | F21: 69.58214599 | G21: 69.58214599 | H21: 41.52805789 | I21: 41.52805789 | J21: 10971195.91 | K21: 69.582146 | L21: 221.528058 | M21: 41.528058 | N21: 10971195.91 | O21: 4.562049408e-12 | P21: 5.00511378e-05 | Q21: 4.890548883e-11 | R21: 0.000536551699 | S21: 69.58214599 | T21: 1.378595016e-10 | U21: 1.003593297e-08 | V21: 41.52805789 | W21: 4.559552735e-11 | X21: 1.080300933e-07
A22: -11.96942 | B22: 19.34359 | C22: -63.41752 | D22: 71.2314 | E22: 6990777.019 | F22: 156.6133593 | G22: 156.6133593 | H22: 120.0550399 | I22: 120.0550399 | J22: 6990777.019 | K22: 156.613359 | L22: 300.05504 | M22: 120.05504 | N22: 6990777.019 | O22: 3.766308157e-12 | P22: 2.632942051e-05 | Q22: 3.979955654e-11 | R22: 0.0002782298252 | S22: 156.6133593 | T22: 2.302158464e-11 | U22: 3.390489667e-07 | V22: 120.0550399 | W22: 9.221423625e-11 | X22: 9.029723458e-08
A23: -69.89148 | B23: -112.86902 | C23: 14.28862 | D23: 105.75986 | E23: 13278834.89 | F23: -136.0729386 | G23: 223.9270614 | H23: -14.28830656 | I23: 345.7116934 | J23: 13278834.89 | K23: 223.927061 | L23: 165.711693 | M23: 345.711693 | N23: 13278834.89 | O23: 3.515349839e-12 | P23: 4.667975008e-05 | Q23: 2.406684162e-11 | R23: 0.0003195796162 | S23: 223.9270614 | T23: 8.887468539e-11 | U23: 3.88291113e-07 | V23: 345.7116934 | W23: 2.336264515e-11 | X23: 4.437904977e-07
A24: -89.1759 | B24: 154.12211 | C24: 56.21465 | D24: -75.16152 | E24: 16293897.99 | F24: 129.7721348 | G24: 129.7721348 | H24: 1.140257859 | I24: 1.140257859 | J24: 16293897.99 | K24: 129.772135 | L24: 181.140258 | M24: 1.140258 | N24: 16293897.99 | O24: 4.197322334e-12 | P24: 6.839074194e-05 | Q24: 2.390520079e-11 | R24: 0.000389508903 | S24: 129.7721348 | T24: 3.024069883e-11 | U24: 1.739292372e-07 | V24: 1.140257859 | W24: 6.308287226e-13 | X24: 1.406524464e-07
A25: 70.15869 | B25: 46.31041 | C25: -3.0711 | D25: -70.82818 | E25: 11321064.52 | F25: -65.12415397 | G25: 294.875846 | H25: -161.9839806 | I25: 198.0160194 | J25: 11321064.53 | K25: 294.875846 | L25: 18.016019 | M25: 198.016019 | N25: 11321064.52 | O25: 3.35195242e-12 | P25: 3.794766963e-05 | Q25: 2.260811534e-11 | R25: 0.0002559479326 | S25: 294.875846 | T25: 1.143689587e-10 | U25: 2.79646315e-08 | V25: 198.0160194 | W25: 1.674038685e-11 | X25: 4.023752638e-07
A26: 16.06744 | B26: -33.32609 | C26: -64.48018 | D26: 108.66274 | E26: 13912911.09 | F26: 161.0554194 | G26: 161.0554194 | H26: 46.247766 | I26: 46.247766 | J26: 13912911.09 | K26: 161.055419 | L26: 226.247766 | M26: 46.247766 | N26: 13912911.09 | O26: 3.523424732e-12 | P26: 4.902109504e-05 | Q26: 1.588299035e-11 | R26: 0.0002209786326 | S26: 161.0554194 | T26: 4.226308192e-11 | U26: 3.753482645e-07 | V26: 46.247766 | W26: 1.297379981e-10 | X26: 3.927951298e-09
A27: -65.58488 | B27: -9.09296 | C27: -23.25885 | D27: -108.1495 | E27: 8079548.193 | F27: -108.080377 | G27: 251.919623 | H27: -25.38262614 | I27: 334.6173739 | J27: 8079548.193 | K27: 251.919623 | L27: 154.617374 | M27: 334.617374 | N27: 8079548.193 | O27: 2.199450467e-12 | P27: 1.777056605e-05 | Q27: 4.191439535e-11 | R27: 0.0003386493772 | S27: 251.919623 | T27: 1.202238309e-10 | U27: 2.612921435e-08 | V27: 334.6173739 | W27: 1.858779797e-11 | X27: 1.435485615e-07
A28: 51.17777 | B28: 117.54172 | C28: -9.32704 | D28: -118.73787 | E28: 13124386.16 | F28: 68.20405675 | G28: 68.20405675 | H28: 143.769238 | I28: 143.769238 | J28: 13124386.16 | K28: 68.204057 | L28: 323.769238 | M28: 143.769238 | N28: 13124386.16 | O28: 2.985196991e-12 | P28: 3.917887807e-05 | Q28: 3.494102543e-11 | R28: 0.0004585795105 | S28: 68.20405675 | T28: 3.036859653e-10 | U28: 2.494056872e-07 | V28: 143.769238 | W28: 8.898837223e-11 | X28: 1.078697665e-08
A29: 73.5045 | B29: -166.58958 | C29: 5.81885 | D29: 163.43952 | E29: 7776083.775 | F29: -148.0275448 | G29: 211.9724552 | H29: -171.2809058 | I29: 188.7190942 | J29: 7776083.775 | K29: 211.972455 | L29: 8.719094 | M29: 188.719094 | N29: 7776083.775 | O29: 4.299415843e-12 | P29: 3.343261778e-05 | Q29: 3.770498348e-11 | R29: 0.0002931971103 | S29: 211.9724552 | T29: 1.80762072e-11 | U29: 1.766909179e-07 | V29: 188.7190942 | W29: 4.774847184e-12 | X29: 1.589582155e-07
A30: -65.1988 | B30: -174.18019 | C30: -28.90961 | D30: 29.75726 | E30: 9368637.249 | F30: -159.1041054 | G30: 200.8958946 | H30: -9.860555198 | I30: 350.1394448 | J30: 9368637.249 | K30: 200.895895 | L30: 170.139445 | M30: 350.139445 | N30: 9368637.249 | O30: 1.917789603e-12 | P30: 1.796707511e-05 | Q30: 2.485273209e-11 | R30: 0.0002328362316 | S30: 200.8958946 | T30: 4.408207133e-11 | U30: 4.42666078e-07 | V30: 350.1394448 | W30: 1.98951966e-11 | X30: 1.978144724e-07
A31: -56.73138 | B31: -169.91386 | C31: -69.35453 | D31: 13.2489 | E31: 6014625.472 | F31: -178.6199554 | G31: 181.3800446 | H31: -2.146147678 | I31: 357.8538523 | J31: 6014625.472 | K31: 181.380045 | L31: 177.853852 | M31: 357.853852 | N31: 6014625.472 | O31: 8.629399673e-13 | P31: 5.190260708e-06 | Q31: 1.933292116e-11 | R31: 0.0001162802801 | S31: 181.3800446 | T31: 2.131628207e-12 | U31: 3.580551322e-07 | V31: 357.8538523 | W31: 2.728484105e-12 | X31: 3.218134452e-07
A32: -6.88687 | B32: -8.08623 | C32: -41.40906 | D32: -68.35751 | E32: 7044804.275 | F32: -133.0927108 | G32: 226.9072892 | H32: -105.1462564 | I32: 254.8537436 | J32: 7044804.275 | K32: 226.907289 | L32: 74.853744 | M32: 254.853744 | N32: 7044804.275 | O32: 2.861863908e-12 | P32: 2.01612711e-05 | Q32: 5.242467221e-11 | R32: 0.0003693215549 | S32: 226.9072892 | T32: 5.258016245e-11 | U32: 1.956765914e-07 | V32: 254.8537436 | W32: 1.808189154e-10 | X32: 4.372421927e-07
A33: 18.2308 | B33: 77.88579 | C33: 34.19574 | D33: 92.44337 | E33: 2284594.022 | F33: 36.41764407 | G33: 36.41764407 | H33: 42.93932448 | I33: 42.93932448 | J33: 2284594.022 | K33: 36.417644 | L33: 222.939324 | M33: 42.939324 | N33: 2284594.022 | O33: 4.527602749e-12 | P33: 1.034373417e-05 | Q33: 2.633135376e-11 | R33: 6.01564534e-05 | S33: 36.41764407 | T33: 7.672440461e-11 | U33: 7.474492492e-08 | V33: 42.93932448 | W33: 9.679723689e-11 | X33: 4.818137995e-07
A34: -43.99951 | B34: -106.45717 | C34: -24.05743 | D34: -127.96367 | E34: 2954440.679 | F34: -48.55841378 | G34: 311.4415862 | H34: -36.23984265 | I34: 323.7601574 | J34: 2954440.679 | K34: 311.441586 | L34: 143.760157 | M34: 323.760157 | N34: 2954440.679 | O34: 3.480590516e-12 | P34: 1.028319821e-05 | Q34: 2.572623402e-11 | R34: 7.60066323e-05 | S34: 311.4415862 | T34: 1.117541615e-10 | U34: 2.161778525e-07 | V34: 323.7601574 | W34: 7.241851563e-11 | X34: 3.513724778e-07
A35: 67.07137 | B35: 64.74052 | C35: -13.06862 | D35: 97.42777 | E35: 9276811.591 | F35: 147.9700512 | G35: 147.9700512 | H35: 167.7203695 | I35: 167.7203695 | J35: 9276811.591 | K35: 147.970051 | L35: 347.720369 | M35: 167.720369 | N35: 9276811.591 | O35: 4.81362097e-12 | P35: 4.465505481e-05 | Q35: 8.220943397e-12 | R35: 7.626414299e-05 | S35: 147.9700512 | T35: 3.28554961e-11 | U35: 2.265551302e-07 | V35: 167.7203695 | W35: 1.162447916e-11 | X35: 4.963953586e-07
A36: -63.16404 | B36: 171.13805 | C36: 66.35171 | D36: -36.605 | E36: 18654328.23 | F36: 62.60758767 | G36: 62.60758767 | H36: 92.42182057 | I36: 92.42182057 | J36: 18654328.23 | K36: 62.607588 | L36: 272.421821 | M36: 92.421821 | N36: 18654328.23 | O36: 3.862619123e-12 | P36: 7.205456495e-05 | Q36: 2.677392957e-12 | R36: 4.994496703e-05 | S36: 62.60758767 | T36: 1.750777301e-11 | U36: 3.274549059e-07 | V36: 92.42182057 | W36: 2.144986411e-10 | X36: 4.291397175e-07
A37: 68.74997 | B37: -16.91616 | C37: -81.48964 | D37: -54.97925 | E37: 16831309.19 | F37: -168.931683 | G37: 191.068317 | H37: -151.9654499 | I37: 208.0345501 | J37: 16831309.19 | K37: 191.068317 | L37: 28.03455 | M37: 208.03455 | N37: 16831309.19 | O37: 4.301346429e-12 | P37: 7.239729166e-05 | Q37: 1.498986252e-11 | R37: 0.0002522990108 | S37: 191.068317 | T37: 1.222133506e-12 | U37: 4.220879646e-08 | V37: 208.0345501 | W37: 2.557953849e-12 | X37: 1.006905563e-07
A38: 68.79884 | B38: -132.99174 | C38: 45.92479 | D38: 49.90748 | E38: 7278952.718 | F38: -2.218809735 | G38: 357.7811903 | H38: -178.845281 | I38: 181.154719 | J38: 7278952.718 | K38: 357.78119 | L38: 1.154719 | M38: 181.154719 | N38: 7278952.718 | O38: 1.23021359e-12 | P38: 8.954666555e-06 | Q38: 2.647997968e-12 | R38: 1.9274652e-05 | S38: 357.7811903 | T38: 5.570655048e-12 | U38: 2.649863404e-07 | V38: 181.154719 | W38: 2.927436071e-12 | X38: 1.286707629e-08
A39: 46.28192 | B39: -68.09947 | C39: 3.94219 | D39: 169.94654 | E39: 12060516.68 | F39: -62.96901217 | G39: 297.0309878 | H39: -141.819112 | I39: 218.180888 | J39: 12060516.68 | K39: 297.030988 | L39: 38.180888 | M39: 218.180888 | N39: 12060516.68 | O39: 2.012991443e-12 | P39: 2.427771688e-05 | Q39: 3.138978609e-11 | R39: 0.0003785770386 | S39: 297.0309878 | T39: 3.441869012e-10 | U39: 1.726090773e-07 | V39: 218.180888 | W39: 1.382716164e-10 | X39: 1.037327024e-08
A40: 29.88075 | B40: 43.05528 | C40: 56.30645 | D40: 37.67671 | E40: 2966149.701 | F40: -6.674108591 | G40: 353.3258914 | H40: -10.45025933 | I40: 349.5497407 | J40: 2966149.701 | K40: 353.325891 | L40: 169.549741 | M40: 349.549741 | N40: 2966149.701 | O40: 4.073938143e-12 | P40: 1.208391041e-05 | Q40: 1.870981603e-11 | R40: 5.549611524e-05 | S40: 353.3258914 | T40: 3.802824722e-11 | U40: 4.086977583e-07 | V40: 349.5497407 | W40: 6.002665032e-11 | X40: 3.32920024e-07
A41: -16.53242 | B41: -63.16033 | C41: -18.92779 | D41: 58.51119 | E41: 12533853.74 | F41: 119.4045639 | G41: 119.4045639 | H41: 61.98536883 | I41: 61.98536883 | J41: 12533853.74 | K41: 119.404564 | L41: 241.985369 | M41: 61.985369 | N41: 12533853.74 | O41: 5.899782617e-14 | P41: 7.394701242e-07 | Q41: 8.374124697e-12 | R41: 0.0001049600542 | S41: 119.4045639 | T41: 3.556976935e-10 | U41: 7.37332897e-08 | V41: 61.98536883 | W41: 3.769997647e-10 | X41: 1.699022931e-07
A42: -59.59586 | B42: -11.01537 | C42: -62.37769 | D42: 36.85268 | E42: 2549123.515 | F42: 117.6430057 | G42: 117.6430057 | H42: 75.20334556 | I42: 75.20334556 | J42: 2549123.515 | K42: 117.643006 | L42: 255.203346 | M42: 75.203346 | N42: 2549123.515 | O42: 1.494281979e-13 | P42: 3.80910933e-07 | Q42: 1.067390461e-10 | R42: 0.0002720910124 | S42: 117.6430057 | T42: 1.922728643e-11 | U42: 2.61008779e-07 | V42: 75.20334556 | W42: 3.791456038e-11 | X42: 4.364069213e-07
A43: -9.32988 | B43: 58.54634 | C43: 36.54892 | D43: -49.88832 | E43: 12271081.06 | F43: -54.43248847 | G43: 305.5675115 | H43: -93.57286399 | I43: 266.427136 | J43: 12271081.06 | K43: 305.567512 | L43: 86.427136 | M43: 266.427136 | N43: 12271081.06 | O43: 2.698700134e-12 | P43: 3.311596811e-05 | Q43: 2.504953531e-11 | R43: 0.0003073848784 | S43: 305.5675115 | T43: 2.398792276e-11 | U43: 4.735189236e-07 | V43: 266.427136 | W43: 2.74269496e-10 | X43: 1.041240694e-08
A44: -84.07493 | B44: -20.86846 | C44: -88.65931 | D44: -77.09891 | E44: 591727.5088 | F44: -167.8395293 | G44: 192.1604707 | H44: -111.6667392 | I44: 248.3332608 | J44: 591727.509 | K44: 192.160471 | L44: 68.333261 | M44: 248.333261 | N44: 591727.5088 | O44: 4.888940778e-13 | P44: 2.892920747e-07 | Q44: 3.330767476e-10 | R44: 0.0001970906742 | S44: 192.1604707 | T44: 3.97903932e-13 | U44: 3.415815968e-07 | V44: 248.3332608 | W44: 1.705302566e-12 | X44: 1.637382923e-07
A45: -70.92851 | B45: -35.97439 | C45: 54.71416 | D45: -101.14644 | E45: 14851083.61 | F45: -46.67748871 | G45: 313.3225113 | H45: -24.3193568 | I45: 335.6806432 | J45: 14851083.61 | K45: 313.322511 | L45: 155.680643 | M45: 335.680643 | N45: 14851083.61 | O45: 4.619399184e-12 | P45: 6.860308349e-05 | Q45: 1.077333039e-11 | R45: 0.0001599956304 | S45: 313.3225113 | T45: 6.08793016e-11 | U45: 2.947227244e-07 | V45: 335.6806432 | W45: 2.603428584e-11 | X45: 1.965064484e-07
A46: 44.04228 | B46: 149.45542 | C46: 44.36455 | D46: -13.95912 | E46: 10074604.48 | F46: -11.76380769 | G46: 348.2361923 | H46: -168.1709593 | I46: 191.8290407 | J46: 10074604.48 | K46: 348.236192 | L46: 11.829041 | M46: 191.829041 | N46: 10074604.48 | O46: 1.682270331e-12 | P46: 1.694820821e-05 | Q46: 4.51284408e-11 | R46: 0.0004546511918 | S46: 348.2361923 | T46: 3.115019354e-11 | U46: 3.126502293e-07 | V46: 191.8290407 | W46: 3.174704943e-11 | X46: 2.876707299e-07
A47: -46.16543 | B47: -161.16449 | C47: -31.39342 | D47: -53.70387 | E47: 8754736.19 | F47: 123.875129 | G47: 123.875129 | H47: 42.391395 | I47: 42.391395 | J47: 8754736.19 | K47: 123.875129 | L47: 222.391395 | M47: 42.391395 | N47: 8754736.19 | O47: 8.182694588e-13 | P47: 7.163733244e-06 | Q47: 3.874163346e-11 | R47: 0.0003391727805 | S47: 123.875129 | T47: 2.087432449e-10 | U47: 4.471326065e-08 | V47: 42.391395 | W47: 1.278550599e-10 | X47: 8.806466667e-10
A48: -89.39807 | B48: 81.8686 | C48: -13.23263 | D48: -96.45023 | E48: 8605721.786 | F48: -178.3229592 | G48: 181.6770408 | H48: -0.01815374132 | I48: 359.9818463 | J48: 8605721.786 | K48: 181.677041 | L48: 179.981846 | M48: 359.981846 | N48: 8605721.786 | O48: 3.219151397e-12 | P48: 2.77031213e-05 | Q48: 4.729574721e-11 | R48: 0.0004070140421 | S48: 181.6770408 | T48: 5.96855898e-13 | U48: 1.548744137e-07 | V48: 359.9818463 | W48: 0 | X48: 2.5868286e-07
A49: 78.9649 | B49: 64.74648 | C49: 86.20707 | D49: -24.31113 | E49: 1295718.677 | F49: -19.2029106 | G49: 340.7970894 | H49: -107.8940834 | I49: 252.1059166 | J49: 1295718.677 | K49: 340.797089 | L49: 72.105917 | M49: 252.105917 | N49: 1295718.677 | O49: 3.137427213e-13 | P49: 4.065223038e-07 | Q49: 1.380133746e-10 | R49: 0.0001788265072 | S49: 340.7970894 | T49: 1.136868377e-13 | U49: 4.014945603e-07 | V49: 252.1059166 | W49: 4.064304449e-12 | X49: 4.007120538e-07
A50: -55.4948 | B50: 78.02308 | C50: 79.25122 | D50: -129.02636 | E50: 17177097.93 | F50: 11.41738272 | G50: 11.41738272 | H50: 143.0810116 | I50: 143.0810116 | J50: 17177097.93 | K50: 11.417383 | L50: 323.081012 | M50: 143.081012 | N50: 17177097.93 | O50: 3.956024505e-12 | P50: 6.795302033e-05 | Q50: 6.110248034e-12 | R50: 0.0001049563289 | S50: 11.41738272 | T50: 1.785416259e-11 | U50: 2.758650535e-07 | V50: 143.0810116 | W50: 6.72173428e-11 | X50: 3.965227791e-07
A51: 22.12128 | B51: -121.46489 | C51: 36.99526 | D51: 133.47765 | E51: 9805356.254 | F51: -50.51411043 | G51: 309.4858896 | H51: -116.5528974 | I51: 243.4471026 | J51: 9805356.254 | K51: 309.48589 | L51: 63.447103 | M51: 243.447103 | N51: 9805356.254 | O51: 3.852429493e-13 | P51: 3.777444363e-06 | Q51: 3.322815419e-12 | R51: 3.258138895e-05 | S51: 309.4858896 | T51: 1.753619472e-10 | U51: 4.337546216e-07 | V51: 243.4471026 | W51: 2.895603757e-10 | X51: 3.637235579e-07
A52: 66.24308 | B52: -44.36896 | C52: 39.01021 | D52: -18.76487 | E52: 3435870.113 | F52: 139.0540718 | G52: 139.0540718 | H52: 160.1065315 | I52: 160.1065315 | J52: 3435870.113 | K52: 139.054072 | L52: 340.106531 | M52: 160.106531 | N52: 3435870.113 | O52: 3.015799383e-12 | P52: 1.036189497e-05 | Q52: 1.10185101e-10 | R52: 0.0003785816953 | S52: 139.0540718 | T52: 3.808509064e-12 | U52: 1.520551791e-07 | V52: 160.1065315 | W52: 1.98951966e-12 | X52: 4.726099689e-07
A53: -28.9402 | B53: 154.92586 | C53: -39.29828 | D53: 38.95881 | E53: 9964216.649 | F53: -135.9252387 | G53: 224.0747613 | H53: -51.82999858 | I53: 308.1700014 | J53: 9964216.649 | K53: 224.074761 | L53: 128.170001 | M53: 308.170001 | N53: 9964216.649 | O53: 6.985702106e-13 | P53: 6.960704923e-06 | Q53: 2.628097027e-11 | R53: 0.0002618692815 | S53: 224.0747613 | T53: 1.982982667e-10 | U53: 2.915247137e-07 | V53: 308.1700014 | W53: 2.606839189e-10 | X53: 4.221312793e-07
A54: 32.50235 | B54: -149.48728 | C54: 76.77299 | D54: -106.60453 | E54: 5384030.202 | F54: 12.05952945 | G54: 12.05952945 | H54: 50.2089039 | I54: 50.2089039 | J54: 5384030.202 | K54: 12.059529 | L54: 230.208904 | M54: 50.208904 | N54: 5384030.202 | O54: 2.685321424e-12 | P54: 1.445785165e-05 | Q54: 5.945122427e-11 | R54: 0.000320087187 | S54: 12.05952945 | T54: 4.915179375e-12 | U54: 4.532984157e-07 | V54: 50.2089039 | W54: 2.722089221e-11 | X54: 9.61722435e-08
A55: -38.18925 | B55: -115.41135 | C55: -41.62528 | D55: 170.0462 | E55: 6179877.603 | F55: -118.9679221 | G55: 241.0320779 | H55: -66.88696129 | I55: 293.1130387 | J55: 6179877.603 | K55: 241.032078 | L55: 113.113039 | M55: 293.113039 | N55: 6179877.603 | O55: 8.534278636e-13 | P55: 5.27407974e-06 | Q55: 2.667433019e-11 | R55: 0.0001648440957 | S55: 241.0320779 | T55: 1.299156338e-10 | U55: 1.107289336e-07 | V55: 293.1130387 | W55: 1.683133632e-10 | X55: 2.916410722e-07
A56: 20.63661 | B56: -166.07919 | C56: 64.65931 | D56: 140.75031 | E56: 6233671.172 | F56: -24.4753318 | G56: 335.5246682 | H56: -64.65924352 | I56: 295.3407565 | J56: 6233671.172 | K56: 335.524668 | L56: 115.340756 | M56: 295.340756 | N56: 6233671.172 | O56: 3.190627859e-12 | P56: 1.98893249e-05 | Q56: 4.223996266e-11 | R56: 0.0002633100376 | S56: 335.5246682 | T56: 2.029310053e-11 | U56: 1.960945042e-07 | V56: 295.3407565 | W56: 9.384848454e-11 | X56: 4.848500339e-07
A57: -87.27567 | B57: -40.8868 | C57: -61.0534 | D57: 126.21026 | E57: 3527724.894 | F57: 168.100322 | G57: 168.100322 | H57: 1.161209848 | I57: 1.161209848 | J57: 3527724.894 | K57: 168.100322 | L57: 181.16121 | M57: 1.16121 | N57: 3527724.894 | O57: 7.992627485e-13 | P57: 2.819579095e-06 | Q57: 5.556545908e-11 | R57: 0.0001960196532 | S57: 168.100322 | T57: 5.030642569e-12 | U57: 3.869803322e-08 | V57: 1.161209848 | W57: 5.264677583e-13 | X57: 1.515803063e-07
A58: -65.26835 | B58: 22.99807 | C58: -13.56738 | D58: 116.74199 | E58: 8818419.364 | F58: 99.21775085 | G58: 99.21775085 | H58: 25.20894601 | I58: 25.20894601 | J58: 8818419.364 | K58: 99.217751 | L58: 205.208946 | M58: 25.208946 | N58: 8818419.364 | O58: 2.814112178e-12 | P58: 2.481602132e-05 | Q58: 3.133733476e-11 | R58: 0.0002763457596 | S58: 99.21775085 | T58: 1.307824959e-10 | U58: 1.485473291e-07 | V58: 25.20894601 | W58: 9.929834732e-12 | X58: 7.092399557e-09
A59: 12.13145 | B59: -7.64494 | C59: 3.04059 | D59: -160.11855 | E59: 16552270.06 | F59: -62.38410291 | G59: 297.6158971 | H59: -119.8157773 | I59: 240.1842227 | J59: 16552270.06 | K59: 297.615897 | L59: 60.184223 | M59: 240.184223 | N59: 16552270.06 | O59: 1.63451422e-12 | P59: 2.705492079e-05 | Q59: 6.189885659e-12 | R59: 0.0001024566591 | S59: 297.6158971 | T59: 7.32427452e-10 | U59: 9.547670743e-08 | V59: 240.1842227 | W59: 6.687344012e-10 | X59: 2.655297351e-07
A60: 47.68625 | B60: 52.70501 | C60: 44.65729 | D60: 149.32465 | E60: 6949214.265 | F60: 52.9129353 | G60: 52.9129353 | H60: 130.9668785 | I60: 130.9668785 | J60: 6949214.265 | K60: 52.912935 | L60: 310.966879 | M60: 130.966879 | N60: 6949214.265 | O60: 5.687740881e-13 | P60: 3.952533007e-06 | Q60: 5.595053756e-11 | R60: 0.0003888122737 | S60: 52.9129353 | T60: 1.236060143e-10 | U60: 2.994453965e-07 | V60: 130.9668785 | W60: 1.075193268e-10 | X60: 4.90365494e-07
A61: 80.82172 | B61: 54.91928 | C61: -47.02494 | D61: -139.65668 | E61: 16197045.8 | F61: 17.7643659 | G61: 17.7643659 | H61: 175.9000286 | I61: 175.9000286 | J61: 16197045.79 | K61: 17.764366 | L61: 355.900029 | M61: 175.900029 | N61: 16197045.8 | O61: 4.008867464e-12 | P61: 6.49318099e-05 | Q61: 3.344287858e-12 | R61: 5.416758358e-05 | S61: 17.7643659 | T61: 2.589928272e-11 | U61: 9.684519853e-08 | V61: 175.9000286 | W61: 6.167510946e-12 | X61: 4.375008587e-07
A62: 55.42576 | B62: -86.43305 | C62: -82.72469 | D62: 134.173 | E62: 16726146.3 | F62: -170.3284212 | G62: 189.6715788 | H62: -48.76838976 | I62: 311.2316102 | J62: 16726146.3 | K62: 189.671579 | L62: 131.23161 | M62: 311.23161 | N62: 16726146.3 | O62: 4.047648635e-12 | P62: 6.770156324e-05 | Q62: 9.792888702e-12 | R62: 0.0001637972891 | S62: 189.6715788 | T62: 1.097077984e-11 | U62: 1.519929924e-07 | V62: 311.2316102 | W62: 7.742073649e-11 | X62: 2.435756414e-07
A63: 18.85826 | B63: 17.28383 | C63: 56.32137 | D63: -163.41587 | E63: 11673348.67 | F63: 0.4012174959 | G63: 0.4012174959 | H63: 179.3166553 | I63: 179.3166553 | J63: 11673348.67 | K63: 0.401217 | L63: 359.316655 | M63: 179.316655 | N63: 11673348.67 | O63: 2.408457648e-12 | P63: 2.811476588e-05 | Q63: 2.048992073e-11 | R63: 0.0002391859889 | S63: 0.4012174959 | T63: 1.433908547e-12 | U63: 4.958587801e-07 | V63: 179.3166553 | W63: 2.387423592e-12 | X63: 3.317013011e-07
A64: 17.26771 | B64: 157.71124 | C64: -81.17156 | D64: 59.53421 | E64: 12028828.32 | F64: -170.765141 | G64: 189.234859 | H64: -84.58695402 | I64: 275.413046 | J64: 12028828.32 | K64: 189.234859 | L64: 95.413046 | M64: 275.413046 | N64: 12028828.32 | O64: 4.022187901e-12 | P64: 4.838220775e-05 | Q64: 2.788975026e-11 | R64: 0.0003354810178 | S64: 189.234859 | T64: 5.684341886e-14 | U64: 1.750393608e-08 | V64: 275.413046 | W64: 3.200284482e-11 | X64: 1.821240403e-08
A65: -26.74848 | B65: -149.95333 | C65: 14.54387 | D65: 83.49962 | E65: 14339963.47 | F65: -92.76961629 | G65: 267.2303837 | H65: -67.20643216 | I65: 292.7935678 | J65: 14339963.47 | K65: 267.230384 | L65: 112.793568 | M65: 292.793568 | N65: 14339963.47 | O65: 3.628140644e-12 | P65: 5.202740431e-05 | Q65: 1.424394612e-12 | R65: 2.042576671e-05 | S65: 267.2303837 | T65: 2.010551725e-10 | U65: 2.912893819e-07 | V65: 292.7935678 | W65: 2.313527148e-11 | X65: 1.59335741e-07
A66: 1.47439 | B66: -90.10711 | C66: 37.68104 | D66: -63.98358 | E66: 4818719.41 | F66: 30.59914414 | G66: 30.59914414 | H66: 39.95329383 | I66: 39.95329383 | J66: 4818719.41 | K66: 30.599144 | L66: 219.953294 | M66: 39.953294 | N66: 4818719.41 | O66: 5.499549072e-12 | P66: 2.650078386e-05 | Q66: 4.803326067e-11 | R66: 0.0002314588055 | S66: 30.59914414 | T66: 4.365219297e-11 | U66: 1.43507954e-07 | V66: 39.95329383 | W66: 6.183853429e-11 | X66: 1.689491924e-07
A67: 19.72255 | B67: 66.42151 | C67: 80.06413 | D67: -12.07429 | E67: 7633895.752 | F67: -10.4940932 | G67: 349.5059068 | H67: -82.21929832 | I67: 277.7807017 | J67: 7633895.752 | K67: 349.505907 | L67: 97.780702 | M67: 277.780702 | N67: =VincentyInvDistance($A67,$B67,$C67,$D67) -> 7633895.752 | O67: =ABS((E67-N67)/E67) -> 2.984201283e-12 | P67: =ABS(E67-N67) -> 2.27810815e-05 | Q67: 4.298086756e-11 | R67: 0.0003281114623 | S67: 349.5059068 | T67: =ABS(G67-S67) -> 1.250555215e-12 | U67: =ABS(K67-S67) -> 2.007857347e-07 | V67: 277.7807017 | W67: =ABS(I67-V67) -> 4.479261406e-11 | X67: =ABS(M67-V67) -> 3.191461246e-07
A68: -88.28717 | B68: 104.3566 | C68: -27.90477 | D68: -58.98726 | E68: 7097483.634 | F68: -163.5948431 | G68: =NormalizeAzimuth(F68, TRUE) -> 196.4051569 | H68: -0.5487623552 | I68: =NormalizeAzimuth(H68, TRUE) -> 359.4512376 | J68: 7097483.634 | K68: 196.405157 | L68: 179.451238 | M68: =NormalizeAzimuth(L68+180, TRUE) -> 359.451238 | N68: 7097483.634 | O68: 2.430432758e-12 | P68: 1.724995673e-05 | Q68: =ABS((J68-N68)/J68) -> 5.401211001e-11 | R68: =ABS(J68-N68) -> 0.0003833500668 | S68: =VincentyInvFwdAzimuth($A68,$B68,$C68,$D68) -> 196.4051569 | T68: 1.816147233e-11 | U68: 8.33508409e-08 | V68: =VincentyInvRevAzimuth($A68,$B68,$C68,$D68) -> 359.4512376 | W68: 5.684341886e-13 | X68: 3.552048042e-07
A69: 43.51418 | B69: -6.93198 | C69: -34.24805 | D69: -108.17846 | E69: 13364872.9 | F69: -109.945334 | G69: 250.054666 | H69: -124.3976531 | I69: 235.6023469 | J69: 13364872.9 | K69: 250.054666 | L69: 55.602347 | M69: 235.602347 | N69: 13364872.9 | O69: 4.323078141e-12 | P69: 5.777738988e-05 | Q69: 3.484343283e-11 | R69: 0.0004656780511 | S69: 250.054666 | T69: 1.543298822e-10 | U69: 3.841932994e-08 | V69: 235.6023469 | W69: 8.16839929e-11 | X69: 8.772434512e-08
A70: -42.51504 | B70: 163.76437 | C70: 14.84228 | D70: 117.39414 | E70: 7924499.614 | F70: -47.7325841 | G70: 312.2674159 | H70: -34.40453584 | I70: 325.5954642 | J70: 7924499.614 | K70: 312.267416 | L70: 145.595464 | M70: 325.595464 | N70: 7924499.614 | O70: 5.508019084e-12 | P70: 4.36482951e-05 | Q70: 2.12431346e-11 | R70: 0.000168341212 | S70: 312.2674159 | T70: 6.349409887e-11 | U70: 1.030314252e-07 | V70: 325.5954642 | W70: 3.961986295e-11 | X70: 1.621149863e-07
A71: 53.73513 | B71: -89.04362 | C71: 67.82536 | D71: -152.99635 | E71: 3610421.093 | F71: -39.3402126 | G71: 320.6597874 | H71: -96.87593914 | I71: 263.1240609 | J71: 3610421.093 | K71: 320.659787 | L71: 83.124061 | M71: 263.124061 | N71: 3610421.093 | O71: 8.899413114e-13 | P71: 3.213062882e-06 | Q71: 9.636465088e-11 | R71: 0.0003479169682 | S71: 320.6597874 | T71: 5.00222086e-12 | U71: 3.968041824e-07 | V71: 263.1240609 | W71: 5.138645065e-11 | X71: 1.444517466e-07
A72: 33.10338 | B72: 50.5702 | C72: 26.74669 | D72: 114.93257 | E72: 6159231.567 | F72: 78.31265914 | G72: 78.31265914 | H72: 113.2341462 | I72: 113.2341462 | J72: 6159231.567 | K72: 78.312659 | L72: 293.234146 | M72: 113.234146 | N72: 6159231.567 | O72: 1.466713644e-12 | P72: 9.033828974e-06 | Q72: 1.638772763e-11 | R72: 0.0001009358093 | S72: 78.31265914 | T72: 1.874553845e-10 | U72: 1.444659432e-07 | V72: 113.2341462 | W72: 9.057998795e-11 | X72: 1.928605684e-07
A73: -43.66365 | B73: 132.49026 | C73: 46.37881 | D73: 168.42698 | E73: 10584894.54 | F73: 24.09810301 | G73: 24.09810301 | H73: 25.34509466 | I73: 25.34509466 | J73: 10584894.54 | K73: 24.098103 | L73: 205.345095 | M73: 25.345095 | N73: 10584894.54 | O73: 5.491382488e-12 | P73: 5.812570453e-05 | Q73: 7.5507829e-12 | R73: 7.992424071e-05 | S73: 24.09810301 | T73: 4.087752359e-11 | U73: 7.117979095e-09 | V73: 25.34509466 | W73: 4.328981618e-11 | X73: 3.446882246e-07
A74: -83.63017 | B74: 15.75479 | C74: -89.42356 | D74: -12.1672 | E74: 655243.6805 | F74: -177.3581717 | G74: 182.6418283 | H74: -149.451198 | I74: 210.548802 | J74: 655243.68 | K74: 182.641828 | L74: 30.548802 | M74: 210.548802 | N74: 655243.6805 | O74: 4.608687635e-13 | P74: 3.019813448e-07 | Q74: 7.555920287e-10 | R74: 0.0004950969014 | S74: 182.6418283 | T74: 5.96855898e-13 | U74: 2.719935992e-07 | V74: 210.548802 | W74: 8.810729923e-13 | X74: 4.733712444e-08
A75: 52.38446 | B75: 175.12578 | C75: 51.06218 | D75: 133.12858 | E75: 2864739.09 | F75: -76.00058229 | G75: 283.9994177 | H75: -109.5415356 | I75: 250.4584644 | J75: 2864739.09 | K75: 283.999418 | L75: 70.458464 | M75: 250.458464 | N75: 2864739.09 | O75: 5.825766331e-13 | P75: 1.668930054e-06 | Q75: 2.179980955e-11 | R75: 6.245076656e-05 | S75: 283.9994177 | T75: 6.485834092e-11 | U75: 2.93987398e-07 | V75: 250.4584644 | W75: 4.590106073e-11 | X75: 3.596250906e-07
A76: 80.15605 | B76: 20.96157 | C76: 18.22913 | D76: 6.37317 | E76: 6924158.09 | F76: -164.3070676 | G76: 195.6929324 | H76: -177.2011695 | I76: 182.7988305 | J76: 6924158.089 | K76: 195.692932 | L76: 2.798831 | M76: 182.798831 | N76: 6924158.089 | O76: 3.543760202e-12 | P76: 2.453755587e-05 | Q76: 6.903842608e-11 | R76: 0.0004780329764 | S76: 195.6929324 | T76: 8.043343769e-12 | U76: 4.444930255e-07 | V76: 182.7988305 | W76: 1.307398634e-12 | X76: 4.641877069e-07
A77: 45.80458 | B77: -59.00088 | C77: 85.7035 | D77: 22.08818 | E77: 4871626.567 | F77: 6.160616052 | G77: 6.160616052 | H77: 85.53071063 | I77: 85.53071063 | J77: 4871626.567 | K77: 6.160616 | L77: 265.530711 | M77: 85.530711 | N77: 4871626.567 | O77: 1.65651246e-12 | P77: 8.069910109e-06 | Q77: 7.197197749e-11 | R77: 0.0003506205976 | S77: 6.160616052 | T77: 1.145750161e-13 | U77: 5.200742415e-08 | V77: 85.53071063 | W77: 1.534772309e-12 | X77: 3.746531263e-07
A78: 56.1806 | B78: 79.64396 | C78: -61.49727 | D78: -72.03834 | E78: 18288955.13 | F78: -121.7893452 | G78: 238.2106548 | H78: -82.35110833 | I78: 277.6488917 | J78: 18288955.13 | K78: 238.210655 | L78: 97.648892 | M78: 277.648892 | N78: 18288955.13 | O78: 3.764611746e-12 | P78: 6.88508153e-05 | Q78: 4.666757911e-12 | R78: 8.535012603e-05 | S78: 238.2106548 | T78: 6.994582691e-11 | U78: 2.144049631e-07 | V78: 277.6488917 | W78: 3.217337508e-10 | X78: 3.310080388e-07
A79: 47.96719 | B79: -62.15574 | C79: 82.8889 | D79: 69.65645 | E79: 5243855.964 | F79: 7.254971792 | G79: 7.254971792 | H79: 136.9970141 | I79: 136.9970141 | J79: 5243855.964 | K79: 7.254972 | L79: 316.997014 | M79: 136.997014 | N79: 5243855.964 | O79: 1.305556883e-12 | P79: 6.846152246e-06 | Q79: 4.71302305e-11 | R79: 0.0002471441403 | S79: 7.254971792 | T79: 1.727507026e-12 | U79: 2.080342076e-07 | V79: 136.9970141 | W79: 1.304556463e-11 | X79: 1.049890557e-07
A80: -24.09962 | B80: 141.74152 | C80: -67.92684 | D80: -95.95838 | E80: 8771186.416 | F80: 161.0725932 | G80: 161.0725932 | H80: 51.82270555 | I80: 51.82270555 | J80: 8771186.416 | K80: 161.072593 | L80: 231.822706 | M80: 51.822706 | N80: 8771186.416 | O80: 2.062011174e-12 | P80: 1.80862844e-05 | Q80: 9.642397463e-12 | R80: 8.457526565e-05 | S80: 161.0725932 | T80: 2.9245939e-11 | U80: 2.181742218e-07 | V80: 51.82270555 | W80: 1.101909675e-10 | X80: 4.535832332e-07
A81: 0.09089 | B81: -41.97739 | C81: 83.37262 | D81: 61.2701 | E81: 10161458.53 | F81: 6.472875422 | G81: 6.472875422 | H81: 103.2060259 | I81: 103.2060259 | J81: 10161458.53 | K81: 6.472875 | L81: 283.206026 | M81: 103.206026 | N81: 10161458.53 | O81: 3.567479983e-12 | P81: 3.625079989e-05 | Q81: 7.91712198e-12 | R81: 8.044950664e-05 | S81: 6.472875422 | T81: 7.434053373e-13 | U81: 4.219788563e-07 | V81: 103.2060259 | W81: 3.10365067e-11 | X81: 1.145749735e-07
A82: -73.71131 | B82: 22.66018 | C82: -46.2195 | D82: 5.28449 | E82: 3183285.984 | F82: -25.61966111 | G82: 334.3803389 | H82: -10.1087905 | I82: 349.8912095 | J82: 3183285.984 | K82: 334.380339 | L82: 169.891209 | M82: 349.891209 | N82: 3183285.984 | O82: 2.43005666e-12 | P82: 7.735565305e-06 | Q82: 1.406278997e-11 | R82: 4.476588219e-05 | S82: 334.3803389 | T82: 8.071765478e-12 | U82: 1.076555805e-07 | V82: 349.8912095 | W82: 3.069544618e-12 | X82: 4.973721275e-07
A83: -22.00409 | B83: -44.46014 | C83: 29.54902 | D83: 118.34869 | E83: 18112446.32 | F83: 60.00797861 | G83: 60.00797861 | H83: 112.6688965 | I83: 112.6688965 | J83: 18112446.32 | K83: 60.007979 | L83: 292.668897 | M83: 112.668897 | N83: 18112446.32 | O83: 2.41998043e-12 | P83: 4.383176565e-05 | Q83: 1.81992154e-11 | R83: 0.0003296323121 | S83: 60.00797861 | T83: 8.02607758e-10 | U83: 3.901487062e-07 | V83: 112.6688965 | W83: 1.109327741e-09 | X83: 4.565086869e-07
A84: 51.16355 | B84: 160.15751 | C84: -16.7995 | D84: -174.80132 | E84: 7914420.654 | F84: 154.5986699 | G84: 154.5986699 | H84: 163.6512107 | I84: 163.6512107 | J84: 7914420.654 | K84: 154.59867 | L84: 343.651211 | M84: 163.651211 | N84: 7914420.654 | O84: 5.480084291e-12 | P84: 4.33716923e-05 | Q84: 2.879956688e-11 | R84: 0.0002279318869 | S84: 154.5986699 | T84: 3.211653166e-11 | U84: 9.954112556e-08 | V84: 163.6512107 | W84: 2.015099199e-11 | X84: 2.678741282e-07
A85: -20.3343 | B85: -128.91397 | C85: -78.71621 | D85: 33.71542 | E85: 8958543.552 | F85: 176.5968982 | G85: 176.5968982 | H85: 16.47898915 | I85: 16.47898915 | J85: 8958543.552 | K85: 176.596898 | L85: 196.478989 | M85: 16.478989 | N85: 8958543.552 | O85: 2.485663281e-12 | P85: 2.226792276e-05 | Q85: 2.20445378e-11 | R85: 0.0001974869519 | S85: 176.5968982 | T85: 5.087485988e-12 | U85: 1.756620804e-07 | V85: 16.47898915 | W85: 2.532729582e-11 | X85: 1.546862585e-07
A86: 58.3115 | B86: 96.55998 | C86: 68.62551 | D86: -2.80535 | E86: 4511895.857 | F86: -33.68995989 | G86: 326.3100401 | H86: -126.9553285 | I86: 233.0446715 | J86: 4511895.857 | K86: 326.31004 | L86: 53.044672 | M86: 233.044672 | N86: 4511895.857 | O86: 6.008738013e-13 | P86: 2.711080015e-06 | Q86: 3.235471139e-11 | R86: 0.0001459810883 | S86: 326.3100401 | T86: 1.949729267e-11 | U86: 1.087347528e-07 | V86: 233.0446715 | W86: 3.859668141e-11 | X86: 4.887995715e-07
A87: -89.46337 | B87: 112.70293 | C87: -81.78616 | D87: -166.90851 | E87: 909274.8605 | F87: 84.08958388 | G87: 84.08958388 | H87: 3.739011555 | I87: 3.739011555 | J87: 909274.861 | K87: 84.089584 | L87: 183.739012 | M87: 3.739012 | N87: 909274.8605 | O87: 4.01505051e-13 | P87: 3.650784492e-07 | Q87: 5.171812678e-10 | R87: 0.0004702599254 | S87: 84.08958388 | T87: 1.278976924e-12 | U87: 1.183097282e-07 | V87: 3.739011555 | W87: 6.066258607e-13 | X87: 4.452000759e-07
A88: 76.6398 | B88: -84.53647 | C88: -1.82647 | D88: 75.82941 | E88: 11607157.09 | F88: 20.2613538 | G88: 20.2613538 | H88: 175.3932562 | I88: 175.3932562 | J88: 11607157.09 | K88: 20.261354 | L88: 355.393256 | M88: 175.393256 | N88: 11607157.09 | O88: 3.22006821e-12 | P88: 3.737583756e-05 | Q88: 3.454103269e-11 | R88: 0.0004009231925 | S88: 20.2613538 | T88: 2.700417667e-11 | U88: 2.022977057e-07 | V88: 175.3932562 | W88: 5.513811629e-12 | X88: 1.659434474e-07
A89: 24.83473 | B89: -104.82879 | C89: 27.55943 | D89: 163.46988 | E89: 8931844.856 | F89: -64.05098876 | G89: 295.9490112 | H89: -113.021397 | I89: 246.978603 | J89: 8931844.856 | K89: 295.949011 | L89: 66.978603 | M89: 246.978603 | N89: 8931844.856 | O89: 1.055211393e-12 | P89: 9.424984455e-06 | Q89: 4.818541497e-11 | R89: 0.0004303846508 | S89: 295.9490112 | T89: 2.127649168e-10 | U89: 2.399290793e-07 | V89: 246.978603 | W89: 2.433466761e-10 | X89: 2.382637376e-08
A90: 73.39275 | B90: 101.94214 | C90: 12.9153 | D90: 154.44694 | E90: 7496752.537 | F90: 123.0651465 | G90: 123.0651465 | H90: 165.7320198 | I90: 165.7320198 | J90: 7496752.537 | K90: 123.065147 | L90: 345.73202 | M90: 165.73202 | N90: 7496752.537 | O90: 3.776968774e-12 | P90: 2.831500024e-05 | Q90: 4.960745301e-11 | R90: 0.0003718947992 | S90: 123.0651465 | T90: 2.65174549e-11 | U90: 4.694835098e-07 | V90: 165.7320198 | W90: 4.121147867e-12 | X90: 2.386750282e-07
A91: 70.47559 | B91: -168.26903 | C91: -56.33708 | D91: 100.75643 | E91: 15762230.51 | F91: -115.7966816 | G91: 244.2033184 | H91: -147.0980524 | I91: 212.9019476 | J91: 15762230.52 | K91: 244.203318 | L91: 32.901948 | M91: 212.901948 | N91: 15762230.51 | O91: 4.41819302e-12 | P91: 6.964057684e-05 | Q91: 2.973192906e-11 | R91: 0.0004686415195 | S91: 244.2033184 | T91: 9.023892744e-11 | U91: 3.815632397e-07 | V91: 212.9019476 | W91: 2.867750482e-11 | X91: 3.700783395e-07
A92: -23.36444 | B92: -58.08665 | C92: -80.31915 | D92: -108.47099 | E92: 6754537.304 | F92: -171.4305676 | G92: 188.5694324 | H92: -125.7842224 | I92: 234.2157776 | J92: 6754537.304 | K92: 188.569432 | L92: 54.215778 | M92: 234.215778 | N92: 6754537.304 | O92: 3.042344973e-12 | P92: 2.054963261e-05 | Q92: 5.717512757e-12 | R92: 3.86191532e-05 | S92: 188.5694324 | T92: 3.154809747e-12 | U92: 4.186281615e-07 | V92: 234.2157776 | W92: 2.950173439e-11 | X92: 4.066415045e-07
A93: 28.44896 | B93: -71.63758 | C93: 89.66514 | D93: -169.04756 | E93: 6858651.072 | F93: -0.3784960011 | G93: 359.621504 | H93: -97.59089203 | I93: 262.409108 | J93: 6858651.072 | K93: 359.621504 | L93: 82.409108 | M93: 262.409108 | N93: 6858651.072 | O93: 2.476094347e-12 | P93: 1.698266715e-05 | Q93: 4.870892413e-11 | R93: 0.0003340775147 | S93: 359.621504 | T93: 1.136868377e-13 | U93: 1.141813755e-09 | V93: 262.409108 | W93: 1.307398634e-12 | X93: 2.665279908e-08
A94: 8.68468 | B94: -168.56728 | C94: -67.72555 | D94: 31.9606 | E94: 13273425.58 | F94: -171.2217286 | G94: 188.7782714 | H94: -23.38408489 | I94: 336.6159151 | J94: 13273425.58 | K94: 188.778271 | L94: 156.615915 | M94: 336.615915 | N94: 13273425.58 | O94: 3.251420504e-12 | P94: 4.315748811e-05 | Q94: 1.000180168e-11 | R94: 0.0001327581704 | S94: 188.7782714 | T94: 2.012257028e-11 | U94: 4.059908747e-07 | V94: 336.6159151 | W94: 5.644551493e-11 | X94: 1.09374696e-07
A95: -67.91624 | B95: -62.03752 | C95: -42.90264 | D95: -169.37138 | E95: 6324868.245 | F95: -123.2692383 | G95: 236.7307617 | H95: -25.44852616 | I95: 334.5514738 | J95: 6324868.245 | K95: 236.730762 | L95: 154.551474 | M95: 334.551474 | N95: 6324868.245 | O95: 1.277963163e-12 | P95: 8.082948625e-06 | Q95: 1.504651063e-11 | R95: 9.516719729e-05 | S95: 236.7307617 | T95: 6.431832844e-11 | U95: 3.172643233e-07 | V95: 334.5514738 | W95: 1.98951966e-11 | X95: 1.570696782e-07
A96: 8.78751 | B96: 12.0727 | C96: 47.91579 | D96: 178.19513 | E96: 13576996.58 | F96: 10.90136016 | G96: 10.90136016 | H96: 163.8371637 | I96: 163.8371637 | J96: 13576996.58 | K96: 10.90136 | L96: 343.837164 | M96: 163.837164 | N96: 13576996.58 | O96: 2.836017546e-12 | P96: 3.850460052e-05 | Q96: 2.674337657e-11 | R96: 0.0003630947322 | S96: 10.90136016 | T96: 1.977795705e-11 | U96: 1.600498223e-07 | V96: 163.8371637 | W96: 2.972910806e-11 | X96: 2.975183122e-07
A97: -1.93261 | B97: -49.4728 | C97: 52.70204 | D97: -178.83775 | E97: 12711428.21 | F97: -30.93738163 | G97: 329.0626184 | H97: -122.2067876 | I97: 237.7932124 | J97: 12711428.21 | K97: 329.062618 | L97: 57.793212 | M97: 237.793212 | N97: 12711428.21 | O97: 2.852413583e-12 | P97: 3.625825047e-05 | Q97: 1.804701823e-12 | R97: 2.294033766e-05 | S97: 329.0626184 | T97: 9.742961993e-11 | U97: 3.677794211e-07 | V97: 237.7932124 | W97: 2.58523869e-10 | X97: 3.987374839e-07
A98: 63.47177 | B98: 15.39042 | C98: -25.44063 | D98: 27.82426 | E98: 9916507.919 | F98: 168.7570034 | G98: 168.7570034 | H98: 174.4547422 | I98: 174.4547422 | J98: 9916507.919 | K98: 168.757003 | L98: 354.454742 | M98: 174.454742 | N98: 9916507.919 | O98: 5.209917536e-12 | P98: 5.16641885e-05 | Q98: 3.266524567e-11 | R98: 0.0003239251673 | S98: 168.7570034 | T98: 1.389821591e-11 | U98: 3.610751094e-07 | V98: 174.4547422 | W98: 6.622258297e-12 | X98: 1.680813568e-07
A99: -19.58109 | B99: -91.32051 | C99: -64.3446 | D99: -136.7434 | E99: 5999956.623 | F99: -157.4988697 | G99: 202.5011303 | H99: -123.8138959 | I99: 236.1861041 | J99: 5999956.623 | K99: 202.50113 | L99: 56.186104 | M99: 236.186104 | N99: 5999956.623 | O99: 3.474168761e-12 | P99: 2.084486187e-05 | Q99: 6.063124537e-11 | R99: 0.0003637848422 | S99: 202.5011303 | T99: 2.336264515e-11 | U99: 2.502543737e-07 | V99: 236.1861041 | W99: 8.230927051e-11 | X99: 1.266863023e-07
A100: -2.57153 | B100: -1.34456 | C100: -55.96553 | D100: -109.17691 | E100: 10868721.92 | F100: -147.4169667 | G100: 212.5830333 | H100: -73.53652753 | I100: 286.4634725 | J100: 10868721.92 | K100: 212.583033 | L100: 106.463472 | M100: 286.463472 | N100: 10868721.92 | O100: 2.809891549e-12 | P100: 3.053992987e-05 | Q100: 3.196688648e-11 | R100: 0.0003474391997 | S100: 212.5830333 | T100: 4.195044312e-11 | U100: 2.686740572e-07 | V100: 286.4634725 | W100: 2.201545612e-10 | X100: 4.672681371e-07
A101: -67.83719 | B101: -47.37088 | C101: -5.5325 | D101: -50.83385 | E101: 6920914.51 | F101: -3.899773605 | G101: 356.1002264 | H101: -1.481270997 | I101: 358.518729 | J101: 6920914.51 | K101: 356.100226 | L101: 178.518729 | M101: 358.518729 | N101: 6920914.51 | O101: 4.586426731e-12 | P101: 3.174226731e-05 | Q101: 6.6630151e-11 | R101: 0.0004611415789 | S101: 356.1002264 | T101: 1.722355591e-11 | U101: 3.949950838e-07 | V101: 358.518729 | W101: 6.536993169e-12 | X101: 2.677722932e-09
A102: -43.76535 | B102: 120.7183 | C102: -13.83961 | D102: 139.33964 | E102: 3762439.146 | F102: 33.88584062 | G102: 33.88584062 | H102: 24.53620783 | I102: 24.53620783 | J102: 3762439.146 | K102: 33.885841 | L102: 204.536208 | M102: 24.536208 | N102: 3762439.146 | O102: 4.866471219e-12 | P102: 1.830980182e-05 | Q102: 3.522981094e-11 | R102: 0.0001325500198 | S102: 33.88584062 | T102: 7.85149723e-11 | U102: 3.81426581e-07 | V102: 24.53620783 | W102: 5.332267961e-11 | X102: 1.710174651e-07
A103: -46.86458 | B103: -124.83391 | C103: -45.47589 | D103: -124.42449 | E103: 157563.5395 | F103: 11.72385198 | G103: 11.72385198 | H103: 11.42847382 | I103: 11.42847382 | J103: 157563.539 | K103: 11.723852 | L103: 191.428474 | M103: 11.428474 | N103: 157563.5395 | O103: 3.6255214e-12 | P103: 5.712499842e-07 | Q103: 3.079759268e-09 | R103: 0.0004852577695 | S103: 11.72385198 | T103: 5.735500963e-11 | U103: 2.164225599e-08 | V103: 11.42847382 | W103: 5.581846096e-11 | X103: 1.812461132e-07
A104: -51.32503 | B104: -26.1731 | C104: -43.87043 | D104: -21.44997 | E104: 901247.9102 | F104: 24.97177583 | G104: 24.97177583 | H104: 21.47577529 | I104: 21.47577529 | J104: 901247.91 | K104: 24.971776 | L104: 201.475775 | M104: 21.475775 | N104: 901247.9102 | O104: 3.934685538e-12 | P104: 3.546127118e-06 | Q104: 2.325495903e-10 | R104: 0.0002095848322 | S104: 24.97177583 | T104: 8.49560422e-11 | U104: 1.676913541e-07 | V104: 21.47577529 | W104: 7.167955118e-11 | X104: 2.900639231e-07
A105: 17.04181 | B105: -23.13026 | C105: 17.16122 | D105: -31.74838 | E105: 917232.2389 | F105: -87.90676067 | G105: 272.0932393 | H105: -90.44545516 | I105: 269.5545448 | J105: 917232.239 | K105: 272.093239 | L105: 89.554545 | M105: 269.554545 | N105: 917232.2389 | O105: 2.479132748e-12 | P105: 2.273940481e-06 | Q105: 1.002743388e-10 | R105: 9.197485633e-05 | S105: 272.0932393 | T105: 1.818989404e-12 | U105: 3.332456231e-07 | V105: 269.5545448 | W105: 8.412825991e-12 | X105: 1.606233013e-07
A106: 15.50744 | B106: -166.73916 | C106: 9.94684 | D106: -157.50866 | E106: 1175722.288 | F106: 120.4500942 | G106: 120.4500942 | H106: 122.4902828 | I106: 122.4902828 | J106: 1175722.288 | K106: 120.450094 | L106: 302.490283 | M106: 122.490283 | N106: 1175722.288 | O106: 5.683320552e-12 | P106: 6.682006642e-06 | Q106: 1.824512442e-10 | R106: 0.0002145119943 | S106: 120.4500942 | T106: 3.91935373e-11 | U106: 2.239847987e-07 | V106: 122.4902828 | W106: 3.633715551e-11 | X106: 2.337073113e-07
A107: -51.03851 | B107: -144.04768 | C107: -47.69309 | D107: -147.16191 | E107: 435337.993 | F107: -32.48981655 | G107: 327.5101834 | H107: -30.12522451 | I107: 329.8747755 | J107: 435337.993 | K107: 327.510183 | L107: 149.874775 | M107: 329.874775 | N107: 435337.993 | O107: 3.981521839e-12 | P107: 1.733307727e-06 | Q107: 2.667731946e-11 | R107: 1.161365071e-05 | S107: 327.5101834 | T107: 7.196376828e-11 | U107: 4.490958645e-07 | V107: 329.8747755 | W107: 6.548361853e-11 | X107: 4.922073913e-07
A108: -12.56946 | B108: 153.40758 | C108: -21.1512 | D108: 155.96993 | E108: 988119.7377 | F108: 164.3157972 | G108: 164.3157972 | H108: 163.5704022 | I108: 163.5704022 | J108: 988119.738 | K108: 164.315797 | L108: 343.570402 | M108: 163.570402 | N108: 988119.7377 | O108: 6.416322436e-12 | P108: 6.340094842e-06 | Q108: 3.111708437e-10 | R108: 0.0003074740525 | S108: 164.3157972 | T108: 2.077626959e-11 | U108: 1.906492173e-07 | V108: 163.5704022 | W108: 2.188471626e-11 | X108: 1.963760496e-07
A109: 70.03686 | B109: 88.46113 | C109: 79.33889 | D109: 96.56698 | E109: 1062926.968 | F109: 9.076893342 | G109: 9.076893342 | H109: 16.92166658 | I109: 16.92166658 | J109: 1062926.968 | K109: 9.076893 | L109: 196.921667 | M109: 16.921667 | N109: 1062926.968 | O109: 1.001481508e-12 | P109: 1.064501703e-06 | Q109: 4.306837054e-10 | R109: 0.0004577853251 | S109: 9.076893342 | T109: 2.15827356e-12 | U109: 3.419822878e-07 | V109: 16.92166658 | W109: 4.025224598e-12 | X109: 4.21367087e-07
A110: -25.37777 | B110: 162.96799 | C110: -18.86743 | D110: 160.58103 | E110: 761747.2245 | F110: -19.32281912 | G110: 340.6771809 | H110: -18.42234398 | I110: 341.577656 | J110: 761747.224 | K110: 340.677181 | L110: 161.577656 | M110: 341.577656 | N110: 761747.2245 | O110: 6.115207956e-12 | P110: 4.658242688e-06 | Q110: 6.281306141e-10 | R110: 0.0004784767516 | S110: 340.6771809 | T110: 4.797584552e-11 | U110: 1.159115754e-07 | V110: 341.577656 | W110: 4.564526535e-11 | X110: 2.139938715e-08
A111: -24.74773 | B111: 121.9104 | C111: -16.02477 | D111: 125.33676 | E111: 1029662.387 | F111: 20.94519186 | G111: 20.94519186 | H111: 19.7478341 | I111: 19.7478341 | J111: 1029662.387 | K111: 20.945192 | L111: 199.747834 | M111: 19.747834 | N111: 1029662.387 | O111: 6.180740871e-12 | P111: 6.364076398e-06 | Q111: 9.561781486e-11 | R111: 9.845406748e-05 | S111: 20.94519186 | T111: 4.338218673e-11 | U111: 1.446451172e-07 | V111: 19.7478341 | W111: 4.065725534e-11 | X111: 9.981944515e-08
A112: 29.14093 | B112: 173.23385 | C112: 37.93865 | D112: 169.67572 | E112: 1029995.487 | F112: -17.74622149 | G112: 342.2537785 | H112: -19.71841244 | I112: 340.2815876 | J112: 1029995.487 | K112: 342.253779 | L112: 160.281588 | M112: 340.281588 | N112: 1029995.487 | O112: 4.765363404e-12 | P112: 4.908302799e-06 | Q112: 3.35863857e-10 | R112: 0.0003459382569 | S112: 342.2537785 | T112: 5.411493476e-11 | U112: 4.937909353e-07 | V112: 340.2815876 | W112: 6.059508451e-11 | X112: 4.447862807e-07
A113: -22.44654 | B113: 123.52539 | C113: -28.32085 | D113: 123.92205 | E113: 651973.0198 | F113: 176.5734401 | G113: 176.5734401 | H113: 176.4031756 | I113: 176.4031756 | J113: 651973.02 | K113: 176.57344 | L113: 356.403176 | M113: 176.403176 | N113: 651973.0198 | O113: 6.465603139e-12 | P113: 4.215398803e-06 | Q113: 3.342154363e-10 | R113: 0.0002178994473 | S113: 176.5734401 | T113: 1.795115168e-10 | U113: 5.810250059e-08 | V113: 176.4031756 | W113: 1.883222467e-10 | X113: 4.167817167e-07
A114: -33.69231 | B114: 35.29391 | C114: -27.45753 | D114: 40.54741 | E114: 855080.9345 | F114: 37.46623246 | G114: 37.46623246 | H114: 34.78859361 | I114: 34.78859361 | J114: 855080.934 | K114: 37.466232 | L114: 214.788594 | M114: 34.788594 | N114: 855080.9345 | O114: 4.188785017e-12 | P114: 3.581750207e-06 | Q114: 5.401912545e-10 | R114: 0.0004619072424 | S114: 37.46623246 | T114: 9.352163488e-11 | U114: 4.577708239e-07 | V114: 34.78859361 | W114: 8.480327551e-11 | X114: 3.870232845e-07
A115: -20.6748 | B115: 105.92502 | C115: -17.06724 | D115: 115.33927 | E115: 1069049.197 | F115: 69.64764946 | G115: 69.64764946 | H115: 66.59501232 | I115: 66.59501232 | J115: 1069049.197 | K115: 69.647649 | L115: 246.595012 | M115: 66.595012 | N115: 1069049.197 | O115: 3.13773313e-12 | P115: 3.354391083e-06 | Q115: 7.535612293e-13 | R115: 8.05594027e-07 | S115: 69.64764946 | T115: 8.034817256e-11 | U115: 4.608451434e-07 | V115: 66.59501232 | W115: 6.889422366e-11 | X115: 3.210301998e-07
A116: 58.57587 | B116: 35.0594 | C116: 51.47959 | D116: 25.97032 | E116: 978958.2976 | F116: -139.8475546 | G116: 220.1524454 | H116: -147.3148518 | I116: 212.6851482 | J116: 978958.298 | K116: 220.152445 | L116: 32.685148 | M116: 212.685148 | N116: 978958.2976 | O116: 2.977457605e-12 | P116: 2.914806828e-06 | Q116: 4.454558647e-10 | R116: 0.0004360827152 | S116: 220.1524454 | T116: 1.134026206e-11 | U116: 3.591786708e-07 | V116: 212.6851482 | W116: 9.208633855e-12 | X116: 2.375487895e-07
A117: 11.13489 | B117: 69.0879 | C117: 20.03739 | D117: 78.12756 | E117: 1381289.97 | F117: 43.41069606 | G117: 43.41069606 | H117: 45.85163834 | I117: 45.85163834 | J117: 1381289.97 | K117: 43.410696 | L117: 225.851638 | M117: 45.851638 | N117: 1381289.97 | O117: 5.832354738e-12 | P117: 8.056173101e-06 | Q117: 6.466866253e-11 | R117: 8.932617493e-05 | S117: 43.41069606 | T117: 4.403943876e-11 | U117: 6.065063474e-08 | V117: 45.85163834 | W117: 4.779820983e-11 | X117: 3.375063216e-07
A118: 12.22848 | B118: 33.50832 | C118: 4.24665 | D118: 33.87851 | E118: 883720.91 | F118: 177.3259383 | G118: 177.3259383 | H118: 177.3791079 | I118: 177.3791079 | J118: 883720.91 | K118: 177.325938 | L118: 357.379108 | M118: 177.379108 | N118: 883720.9099 | O118: 6.231635731e-12 | P118: 5.507026799e-06 | Q118: 5.895755769e-11 | R118: 5.210202653e-05 | S118: 177.3259383 | T118: 3.1124614e-10 | U118: 2.523922262e-07 | V118: 177.3791079 | W118: 3.048228336e-10 | X118: 5.245314583e-08
A119: -38.40908 | B119: 56.48505 | C119: -34.31016 | D119: 64.22019 | E119: 829495.2779 | F119: 59.11113414 | G119: 59.11113414 | H119: 54.51786077 | I119: 54.51786077 | J119: 829495.278 | K119: 59.111134 | L119: 234.517861 | M119: 54.517861 | N119: 829495.2779 | O119: 1.565124846e-12 | P119: 1.298263669e-06 | Q119: 1.719735659e-10 | R119: 0.0001426512608 | S119: 59.11113414 | T119: 1.254107929e-10 | U119: 1.385993116e-07 | V119: 54.51786077 | W119: 1.051887466e-10 | X119: 2.300657513e-07
A120: 15.40639 | B120: 164.11288 | C120: 13.30926 | D120: 162.2586 | E120: 306329.7868 | F120: -139.0046782 | G120: 220.9953218 | H120: -139.464612 | I120: 220.535388 | J120: 306329.787 | K120: 220.995322 | L120: 40.535388 | M120: 220.535388 | N120: 306329.7868 | O120: 6.197762536e-12 | P120: 1.898559276e-06 | Q120: 7.552761357e-10 | R120: 0.0002313635778 | S120: 220.9953218 | T120: 3.402078619e-11 | U120: 2.252489537e-07 | V120: 220.535388 | W120: 3.316813491e-11 | X120: 7.231165e-09
A121: 9.24082 | B121: 131.63161 | C121: 12.18455 | D121: 138.36069 | E121: 804814.5473 | F121: 65.53849536 | G121: 65.53849536 | H121: 66.7911387 | I121: 66.7911387 | J121: 804814.547 | K121: 65.538495 | L121: 246.791139 | M121: 66.791139 | N121: 804814.5473 | O121: 5.845540444e-12 | P121: 4.704575986e-06 | Q121: 3.442860159e-10 | R121: 0.0002770863939 | S121: 65.53849536 | T121: 2.502531515e-11 | U121: 3.562714284e-07 | V121: 66.7911387 | W121: 2.656008746e-11 | X121: 2.9883482e-07
A122: 41.12114 | B122: 98.41758 | C122: 36.02553 | D122: 88.56015 | E122: 1027495.907 | F122: -120.2098995 | G122: 239.7901005 | H122: -126.3715748 | I122: 233.6284252 | J122: 1027495.907 | K122: 239.790101 | L122: 53.628425 | M122: 233.628425 | N122: 1027495.907 | O122: 1.494087556e-12 | P122: 1.535168849e-06 | Q122: 1.886769614e-10 | R122: 0.0001938648056 | S122: 239.7901005 | T122: 1.219575552e-10 | U122: 4.869050372e-07 | V122: 233.6284252 | W122: 9.629275155e-11 | X122: 2.066383047e-07
A123: 71.45403 | B123: -99.23717 | C123: 61.9215 | D123: -107.97436 | E123: 1128214.537 | F123: -155.9605449 | G123: 204.0394551 | H123: -164.0146623 | I123: 195.9853377 | J123: 1128214.537 | K123: 204.039455 | L123: 15.985338 | M123: 195.985338 | N123: 1128214.537 | O123: 1.97620769e-12 | P123: 2.229586244e-06 | Q123: 2.399274215e-10 | R123: 0.0002706896048 | S123: 204.0394551 | T123: 7.531752999e-12 | U123: 9.560753256e-08 | V123: 195.9853377 | W123: 4.291678124e-12 | X123: 2.847317262e-07
A124: 89.78355 | B124: 66.10397 | C124: 82.13979 | D124: 59.49623 | E124: 853871.6109 | F124: -173.2067416 | G124: 186.7932584 | H124: -179.8127707 | I124: 180.1872293 | J124: 853871.611 | K124: 186.793258 | L124: 0.187229 | M124: 180.187229 | N124: 853871.6109 | O124: 4.019250252e-13 | P124: 3.431923687e-07 | Q124: 1.186288256e-10 | R124: 0.0001012937864 | S124: 186.7932584 | T124: 2.015099199e-11 | U124: 3.814868421e-07 | V124: 180.1872293 | W124: 8.526512829e-14 | X124: 2.791969109e-07
A125: -53.71157 | B125: 136.44644 | C125: -61.27499 | D125: 132.93424 | E125: 867936.5315 | F125: -167.4325065 | G125: 192.5674935 | H125: -164.4638306 | I125: 195.5361694 | J125: 867936.532 | K125: 192.567494 | L125: 15.536169 | M125: 195.536169 | N125: 867936.5315 | O125: 2.756347701e-12 | P125: 2.392334864e-06 | Q125: 5.285943886e-10 | R125: 0.0004587863805 | S125: 192.5674935 | T125: 3.325340003e-12 | U125: 4.523203359e-07 | V125: 195.5361694 | W125: 4.092726158e-12 | X125: 4.246379035e-07
A126: 65.37101 | B126: 11.16059 | C126: 64.10688 | D126: 10.71933 | E126: 142494.0552 | F126: -171.3175274 | G126: 188.6824726 | H126: -171.7166156 | I126: 188.2833844 | J126: 142494.055 | K126: 188.682473 | L126: 8.283384 | M126: 188.283384 | N126: 142494.0552 | O126: 2.318599768e-12 | P126: 3.303866833e-07 | Q126: 1.425670889e-09 | R126: 0.000203149626 | S126: 188.6824726 | T126: 2.700062396e-12 | U126: 3.981742793e-07 | V126: 188.2833844 | W126: 2.103206498e-12 | X126: 3.867280896e-07
A127: 82.49241 | B127: 173.25789 | C127: 87.59504 | D127: 174.79836 | E127: 570028.8626 | F127: 0.726603886 | G127: 0.726603886 | H127: 2.262837276 | I127: 2.262837276 | J127: 570028.863 | K127: 0.726604 | L127: 182.262837 | M127: 2.262837 | N127: 570028.8626 | O127: 3.59031181e-13 | P127: 2.046581358e-07 | Q127: 6.959635635e-10 | R127: 0.0003967193188 | S127: 0.726603886 | T127: 3.741451593e-14 | U127: 1.139533946e-07 | V127: 2.262837276 | W127: 7.416289804e-14 | X127: 2.757481936e-07
A128: -3.48731 | B128: -153.85941 | C128: 2.70948 | D128: -161.7517 | E128: 1113827.079 | F128: -52.13250205 | G128: 307.867498 | H128: -52.07876646 | I128: 307.9212335 | J128: 1113827.079 | K128: 307.867498 | L128: 127.921234 | M128: 307.921234 | N128: 1113827.079 | O128: 7.386517869e-12 | P128: 8.227303624e-06 | Q128: 3.023204604e-10 | R128: 0.0003367327154 | S128: 307.867498 | T128: 1.375610736e-11 | U128: 4.601594128e-08 | V128: 307.9212335 | W128: 1.381295078e-11 | X128: 4.624014309e-07
A129: -5.14903 | B129: -176.71263 | C129: -8.37581 | D129: -172.6439 | E129: 574111.4048 | F129: 128.6511367 | G129: 128.6511367 | H129: 128.171642 | I129: 128.171642 | J129: 574111.405 | K129: 128.651137 | L129: 308.171642 | M129: 128.171642 | N129: 574111.4048 | O129: 6.97829176e-12 | P129: 4.006316885e-06 | Q129: 3.143315495e-10 | R129: 0.0001804613275 | S129: 128.6511367 | T129: 2.842170943e-13 | U129: 2.803942891e-07 | V129: 128.171642 | W129: 1.136868377e-12 | X129: 4.49708466e-08
A130: -17.81653 | B130: -105.12562 | C130: -21.09653 | D130: -101.88431 | E130: 497614.0586 | F130: 137.380741 | G130: 137.380741 | H130: 136.3003861 | I130: 136.3003861 | J130: 497614.059 | K130: 137.380741 | L130: 316.300386 | M130: 136.300386 | N130: 497614.0585 | O130: 5.288840087e-12 | P130: 2.631801181e-06 | Q130: 9.095277267e-10 | R130: 0.0004525937838 | S130: 137.380741 | T130: 6.625100468e-11 | U130: 8.129745765e-09 | V130: 136.3003861 | W130: 6.801315067e-11 | X130: 5.96199925e-08
A131: -70.74075 | B131: -12.84168 | C131: -72.5902 | D131: -7.20139 | E131: 285845.2667 | F131: 138.8232277 | G131: 138.8232277 | H131: 133.4681362 | I131: 133.4681362 | J131: 285845.267 | K131: 138.823228 | L131: 313.468136 | M131: 133.468136 | N131: =VincentyInvDistance($A131,$B131,$C131,$D131) -> 285845.2667 | O131: =ABS((E131-N131)/E131) -> 7.909123618e-13 | P131: =ABS(E131-N131) -> 2.26078555e-07 | Q131: 1.038639186e-09 | R131: 0.0002968900953 | S131: 138.8232277 | T131: =ABS(G131-S131) -> 1.094235813e-11 | U131: =ABS(K131-S131) -> 2.513639288e-07 | V131: 133.4681362 | W131: =ABS(I131-V131) -> 1.358557711e-11 | X131: =ABS(M131-V131) -> 1.562623879e-07
A132: -83.23292 | B132: -152.45443 | C132: -79.93417 | D132: -160.65608 | E132: 391097.7075 | F132: -24.09210192 | G132: =NormalizeAzimuth(F132, TRUE) -> 335.9078981 | H132: -15.97513228 | I132: =NormalizeAzimuth(H132, TRUE) -> 344.0248677 | J132: 391097.708 | K132: 335.907898 | L132: 164.024868 | M132: =NormalizeAzimuth(L132+180, TRUE) -> 344.024868 | N132: 391097.7075 | O132: 6.697417782e-15 | P132: 2.619344741e-09 | Q132: =ABS((J132-N132)/J132) -> 1.165057644e-09 | R132: =ABS(J132-N132) -> 0.0004556513741 | S132: =VincentyInvFwdAzimuth($A132,$B132,$C132,$D132) -> 335.9078981 | T132: 4.718003765e-12 | U132: 8.187652156e-08 | V132: =VincentyInvRevAzimuth($A132,$B132,$C132,$D132) -> 344.0248677 | W132: 2.899014362e-12 | X132: 2.788394795e-07
A133: 87.3874 | B133: 114.24518 | C133: 89.51985 | D133: 121.92308 | E133: 238768.0565 | F133: 1.720018699 | G133: 1.720018699 | H133: 9.396456009 | I133: 9.396456009 | J133: 238768.057 | K133: 1.720019 | L133: 189.396456 | M133: 9.396456 | N133: 238768.0565 | O133: 5.563134539e-13 | P133: 1.328298822e-07 | Q133: 2.026042279e-09 | R133: 0.0004837541783 | S133: 1.720018699 | T133: 2.414957123e-12 | U133: 3.005477149e-07 | V133: 9.396456009 | W133: 1.500310987e-11 | X133: 8.812076402e-09
A134: -30.74857 | B134: -83.26269 | C134: -27.83836 | D134: -79.41597 | E134: 493633.8052 | F134: 50.15955038 | G134: 50.15955038 | H134: 48.27626585 | I134: 48.27626585 | J134: 493633.805 | K134: 50.15955 | L134: 228.276266 | M134: 48.276266 | N134: 493633.8052 | O134: 3.191886692e-12 | P134: 1.575623173e-06 | Q134: 3.820815367e-10 | R134: 0.0001886083628 | S134: 50.15955038 | T134: 1.131610361e-10 | U134: 3.839898568e-07 | V134: 48.27626585 | W134: 1.059135002e-10 | X134: 1.480100522e-07
A135: -86.09504 | B135: -122.08154 | C135: -79.95864 | D135: -123.32622 | E135: 685458.1236 | F135: -2.030096848 | G135: 357.9699032 | H135: -0.7928493523 | I135: 359.2071506 | J135: 685458.124 | K135: 357.969903 | L135: 179.207151 | M135: 359.207151 | N135: 685458.1236 | O135: 1.486063161e-13 | P135: 1.018634066e-07 | Q135: 5.665088458e-10 | R135: 0.0003883180907 | S135: 357.9699032 | T135: 5.684341886e-14 | U135: 1.522448088e-07 | V135: 359.2071506 | W135: 0 | X135: 3.52346035e-07
A136: -81.75999 | B136: -91.06091 | C136: -79.22942 | D136: -93.85499 | E136: 287149.4952 | F136: -11.71634933 | G136: 348.2836507 | H136: -8.959944277 | I136: 351.0400557 | J136: 287149.495 | K136: 348.283651 | L136: 171.040056 | M136: 351.040056 | N136: 287149.4952 | O136: 1.623695572e-13 | P136: 4.662433639e-08 | Q136: 6.958165955e-10 | R136: 0.000199803384 | S136: 348.2836507 | T136: 6.707523426e-12 | U136: 3.261728239e-07 | V136: 351.0400557 | W136: 5.115907697e-12 | X136: 2.773603569e-07
A137: 26.21778 | B137: 39.9747 | C137: 31.68894 | D137: 34.08101 | E137: 835019.1204 | F137: -42.06114748 | G137: 317.9388525 | H137: -44.91947254 | I137: 315.0805275 | J137: 835019.12 | K137: 317.938853 | L137: 135.080527 | M137: 315.080527 | N137: 835019.1204 | O137: 3.817080374e-12 | P137: 3.187335096e-06 | Q137: 4.766677233e-10 | R137: 0.0003980266629 | S137: 317.9388525 | T137: 9.475797924e-11 | U137: 4.827558655e-07 | V137: 315.0805275 | W137: 1.047055775e-10 | X137: 4.607492201e-07
A138: -45.80874 | B138: 121.35634 | C138: -51.18545 | D138: 125.66355 | E138: 677065.1191 | F138: 153.5637454 | G138: 153.5637454 | H138: 150.3337515 | I138: 150.3337515 | J138: 677065.119 | K138: 153.563745 | L138: 330.333752 | M138: 150.333752 | N138: 677065.1191 | O138: 4.006399588e-12 | P138: 2.712593414e-06 | Q138: 1.423414402e-10 | R138: 9.637442417e-05 | S138: 153.5637454 | T138: 7.074163477e-11 | U138: 3.788077265e-07 | V138: 150.3337515 | W138: 8.13713541e-11 | X138: 4.962176376e-07
A139: 59.46224 | B139: -93.41772 | C139: 57.37474 | D139: -97.69494 | E139: 341268.407 | F139: -131.0914172 | G139: 228.9085828 | H139: -134.7362338 | I139: 225.2637662 | J139: 341268.407 | K139: 228.908583 | L139: 45.263766 | M139: 225.263766 | N139: 341268.407 | O139: 2.244775694e-12 | P139: 7.660710253e-07 | Q139: 1.266977259e-10 | R139: 4.32379311e-05 | S139: 228.9085828 | T139: 1.239186531e-11 | U139: 2.361695977e-07 | V139: 225.2637662 | W139: 1.074340616e-11 | X139: 1.715557403e-07
A140: 56.53101 | B140: 134.18918 | C140: 55.45573 | D140: 128.55419 | E140: 371335.852 | F140: -106.451451 | G140: 253.548549 | H140: -111.1240908 | I140: 248.8759092 | J140: 371335.852 | K140: 253.548549 | L140: 68.875909 | M140: 248.875909 | N140: 371335.852 | O140: 1.26201086e-12 | P140: 4.68629878e-07 | Q140: 1.27203829e-10 | R140: 4.723534221e-05 | S140: 253.548549 | T140: 2.134470378e-11 | U140: 9.068656937e-09 | V140: 248.8759092 | W140: 1.648459147e-11 | X140: 2.122484943e-07
A141: -6.64667 | B141: 19.34654 | C141: 0.74246 | D141: 16.24834 | E141: 886618.2617 | F141: -22.9566807 | G141: 337.0433193 | H141: -22.79674691 | I141: 337.2032531 | J141: 886618.262 | K141: 337.043319 | L141: 157.203253 | M141: 337.203253 | N141: 886618.2617 | O141: 6.620279302e-12 | P141: 5.869660527e-06 | Q141: 3.648094272e-10 | R141: 0.0003234467003 | S141: 337.0433193 | T141: 3.001332516e-11 | U141: 3.004759037e-07 | V141: 337.2032531 | W141: 2.978595148e-11 | X141: 9.472176998e-08
A142: 41.65129 | B142: -150.10507 | C142: 40.65954 | D142: -144.91209 | E142: 449504.4312 | F142: 102.4618549 | G142: 102.4618549 | H142: 105.8808346 | I142: 105.8808346 | J142: 449504.431 | K142: 102.461855 | L142: 285.880835 | M142: 105.880835 | N142: 449504.4312 | O142: 1.273174817e-12 | P142: 5.722977221e-07 | Q142: 4.255648986e-10 | R142: 0.0001912933076 | S142: 102.4618549 | T142: 8.671463547e-11 | U142: 7.672571201e-08 | V142: 105.8808346 | W142: 6.748734904e-11 | X142: 3.983744818e-07
A143: 74.6346 | B143: -110.99214 | C143: 70.51173 | D143: -109.96983 | E143: 461332.0547 | F143: 175.2613844 | G143: 175.2613844 | H143: 176.2374047 | I143: 176.2374047 | J143: 461332.055 | K143: 175.261384 | L143: 356.237405 | M143: 176.237405 | N143: 461332.0547 | O143: 1.520637299e-12 | P143: 7.015187293e-07 | Q143: 7.155832457e-10 | R143: 0.0003301214892 | S143: 175.2613844 | T143: 1.232081104e-10 | U143: 3.776162032e-07 | V143: 176.2374047 | W143: 9.836753634e-11 | X143: 2.904617133e-07
A144: -10.3453 | B144: 170.51176 | C144: -1.09834 | D144: 169.86118 | E144: 1025130.229 | F144: -4.067949675 | G144: 355.9320503 | H144: -4.002874317 | I144: 355.9971257 | J144: 1025130.229 | K144: 355.93205 | L144: 175.997126 | M144: 355.997126 | N144: 1025130.229 | O144: 5.864996995e-12 | P144: 6.012385711e-06 | Q144: 2.3785512e-10 | R144: 0.0002438324736 | S144: 355.9320503 | T144: 6.878053682e-12 | U144: 3.249598421e-07 | V144: 355.9971257 | W144: 6.821210263e-12 | X144: 3.167804721e-07
A145: -62.21591 | B145: -136.4099 | C145: -61.63833 | D145: -134.16087 | E145: 134515.3704 | F145: 62.40916277 | G145: 62.40916277 | H145: 60.42465005 | I145: 60.42465005 | J145: 134515.37 | K145: 62.409163 | L145: 240.42465 | M145: 60.42465 | N145: 134515.3704 | O145: 1.041127358e-12 | P145: 1.400476322e-07 | Q145: 2.786476774e-09 | R145: 0.0003748239542 | S145: 62.40916277 | T145: 2.319922032e-11 | U145: 2.318721002e-07 | V145: 60.42465005 | W145: 2.134470378e-11 | X145: 5.480109877e-08
A146: -61.21919 | B146: 146.68601 | C146: -67.65264 | D146: 145.70181 | E146: 718764.1271 | F146: -176.6610186 | G146: 183.3389814 | H146: -175.7717624 | I146: 184.2282376 | J146: 718764.127 | K146: 183.338981 | L146: 4.228238 | M146: 184.228238 | N146: 718764.1271 | O146: 2.336197006e-12 | P146: 1.679174602e-06 | Q146: 1.873657858e-10 | R146: 0.0001346718054 | S146: 183.3389814 | T146: 9.947598301e-13 | U146: 3.799059982e-07 | V146: 184.2282376 | W146: 8.526512829e-13 | X146: 4.017301478e-07
A147: -5.2585 | B147: 22.31585 | C147: -13.99702 | D147: 12.33495 | E147: 1460060.216 | F147: -132.1603324 | G147: 227.8396676 | H147: -130.4820224 | I147: 229.5179776 | J147: 1460060.216 | K147: 227.839668 | L147: 49.517978 | M147: 229.517978 | N147: 1460060.216 | O147: 6.609087706e-12 | P147: 9.649666026e-06 | Q147: 2.193952405e-10 | R147: 0.0003203302622 | S147: 227.8396676 | T147: 1.381295078e-11 | U147: 4.314791795e-07 | V147: 229.5179776 | W147: 1.480771061e-11 | X147: 3.95372183e-07
A148: -4.44231 | B148: 114.01277 | C148: -13.06206 | D148: 117.63001 | E148: 1032952.816 | F148: 157.5905285 | G148: 157.5905285 | H148: 157.0383774 | I148: 157.0383774 | J148: 1032952.816 | K148: 157.590528 | L148: 337.038377 | M148: 157.038377 | N148: 1032952.816 | O148: 6.58120353e-12 | P148: 6.798072718e-06 | Q148: 1.002447073e-10 | R148: 0.0001035480527 | S148: 157.5905285 | T148: 1.122657523e-11 | U148: 4.500902264e-07 | V148: 157.0383774 | W148: 1.080024958e-11 | X148: 3.684737067e-07
A149: 39.65273 | B149: 120.16179 | C149: 34.30322 | D149: 113.30732 | E149: 850898.2653 | F149: -132.0989627 | G149: 227.9010373 | H149: -136.2296439 | I149: 223.7703561 | J149: 850898.265 | K149: 227.901037 | L149: 43.770356 | M149: 223.770356 | N149: 850898.2653 | O149: 2.796490809e-12 | P149: 2.379529178e-06 | Q149: 3.942521201e-10 | R149: 0.000335468445 | S149: 227.9010373 | T149: 1.041087216e-10 | U149: 3.326350964e-07 | V149: 223.7703561 | W149: 9.006839718e-11 | X149: 6.451807621e-08
A150: 28.54571 | B150: -104.90599 | C150: 26.67799 | D150: -106.61301 | E150: 266878.6559 | F150: -140.4502238 | G150: 219.5497762 | H150: -141.2415439 | I150: 218.7584561 | J150: 266878.656 | K150: 219.549776 | L150: 38.758456 | M150: 218.758456 | N150: 266878.6559 | O150: 4.352728339e-12 | P150: 1.161650289e-06 | Q150: 2.060061676e-10 | R150: 5.497864913e-05 | S150: 219.5497762 | T150: 9.259792932e-11 | U150: 1.906975911e-07 | V150: 218.7584561 | W150: 8.984102351e-11 | X150: 6.80858534e-08
A151: 83.34608 | B151: 163.97328 | C151: 78.22466 | D151: 162.5267 | E151: 572419.9464 | F151: -176.6941534 | G151: 183.3058466 | H151: -178.1234951 | I151: 181.8765049 | J151: 572419.946 | K151: 183.305847 | L151: 1.876505 | M151: 181.876505 | N151: 572419.9464 | O151: 1.277188584e-13 | P151: 7.310882211e-08 | Q151: 7.161664158e-10 | R151: 0.0004099479411 | S151: 183.3058466 | T151: 1.676880856e-12 | U151: 3.774566721e-07 | V151: 181.8765049 | W151: 7.673861546e-13 | X151: 8.303976529e-08
A152: 23.91618 | B152: 60.61006 | C152: 24.40583 | D152: 50.71551 | E152: 1006778.569 | F152: -84.89124671 | G152: 275.1087533 | H152: -88.94958914 | I152: 271.0504109 | J152: 1006778.569 | K152: 275.108753 | L152: 91.050411 | M152: 271.050411 | N152: 1006778.569 | O152: 3.325562105e-13 | P152: 3.348104656e-07 | Q152: 4.497168271e-10 | R152: 0.0004527652636 | S152: 275.1087533 | T152: 6.650680007e-12 | U152: 2.881616865e-07 | V152: 271.0504109 | W152: 3.217337508e-11 | X152: 1.355663812e-07
A153: 78.3759 | B153: 47.25355 | C153: 74.36287 | D153: 55.25743 | E153: 494006.0284 | F153: 150.8850338 | G153: 150.8850338 | H153: 158.6689476 | I153: 158.6689476 | J153: 494006.028 | K153: 150.885034 | L153: 338.668948 | M153: 158.668948 | N153: 494006.0284 | O153: 1.67480485e-12 | P153: 8.273636922e-07 | Q153: 7.637854793e-10 | R153: 0.0003773146309 | S153: 150.8850338 | T153: 1.503224212e-10 | U153: 2.217406632e-07 | V153: 158.6689476 | W153: 1.046771558e-10 | X153: 3.85830333e-07
A154: 28.51589 | B154: -44.68958 | C154: 35.69252 | D154: -35.83572 | E154: 1152949.124 | F154: 44.11465893 | G154: 44.11465893 | H154: 48.83617402 | I154: 48.83617402 | J154: 1152949.124 | K154: 44.114659 | L154: 228.836174 | M154: 48.836174 | N154: 1152949.124 | O154: 3.169302135e-12 | P154: 3.654044122e-06 | Q154: 2.200841434e-10 | R154: 0.0002537458204 | S154: 44.11465893 | T154: 9.661960121e-11 | U154: 7.376428357e-08 | V154: 48.83617402 | W154: 1.13857368e-10 | X154: 2.474433103e-08
A155: 11.04585 | B155: -141.9044 | C155: 6.75118 | D155: -138.75908 | E155: 587572.5699 | F155: 143.6767097 | G155: 143.6767097 | H155: 144.1637063 | I155: 144.1637063 | J155: 587572.57 | K155: 143.67671 | L155: 324.163706 | M155: 144.163706 | N155: 587572.5699 | O155: 6.845168001e-12 | P155: 4.022032954e-06 | Q155: 1.310747933e-10 | R155: 7.701595314e-05 | S155: 143.6767097 | T155: 1.648459147e-12 | U155: 3.329433582e-07 | V155: 144.1637063 | W155: 1.591615728e-12 | X155: 3.425816146e-07
A156: -60.36734 | B156: 102.53056 | C156: -52.4024 | D156: 103.50996 | E156: 888916.2272 | F156: 4.31429335 | G156: 4.31429335 | H156: 3.496690507 | I156: 3.496690507 | J156: 888916.227 | K156: 4.314293 | L156: 183.496691 | M156: 3.496691 | N156: 888916.2272 | O156: 2.792397546e-12 | P156: 2.482207492e-06 | Q156: 2.749526741e-10 | R156: 0.0002444098936 | S156: 4.31429335 | T156: 1.869615573e-12 | U156: 3.503088504e-07 | V156: 3.496690507 | W156: 1.516120562e-12 | X156: 4.927015644e-07
A157: -69.81647 | B157: -55.59771 | C157: -71.18252 | D157: -49.14994 | E157: 284354.5436 | F157: 125.3943714 | G157: 125.3943714 | H157: 119.3153085 | I157: 119.3153085 | J157: 284354.544 | K157: 125.394371 | L157: 299.315309 | M157: 119.315309 | N157: 284354.5436 | O157: 4.386742543e-13 | P157: 1.247390173e-07 | Q157: 1.567760167e-09 | R157: 0.0004457997275 | S157: 125.3943714 | T157: 1.310240805e-11 | U157: 4.139548935e-07 | V157: 119.3153085 | W157: 1.625721779e-11 | X157: 4.855892684e-07
A158: 73.04046 | B158: 109.00128 | C158: 70.52713 | D158: 102.26978 | E158: 365437.7304 | F158: -136.8107573 | G158: 223.1892427 | H158: -143.2071541 | I158: 216.7928459 | J158: 365437.73 | K158: 223.189243 | L158: 36.792846 | M158: 216.792846 | N158: 365437.7304 | O158: 8.954835323e-13 | P158: 3.272434697e-07 | Q158: 1.058811798e-09 | R158: 0.0003869297798 | S158: 223.1892427 | T158: 1.210764822e-11 | U158: 3.268988849e-07 | V158: 216.7928459 | W158: 1.008970685e-11 | X158: 6.138691333e-08
A159: 72.02595 | B159: -115.48669 | C159: 79.24715 | D159: -124.58986 | E159: 842173.9161 | F159: -12.99868439 | G159: 347.0013156 | H159: -21.83592111 | I159: 338.1640789 | J159: 842173.916 | K159: 347.001316 | L159: 158.164079 | M159: 338.164079 | N159: 842173.9161 | O159: 8.169506783e-13 | P159: 6.88014552e-07 | Q159: 1.352155664e-10 | R159: 0.0001138750231 | S159: 347.0013156 | T159: 2.899014362e-12 | U159: 3.897315537e-07 | V159: 338.1640789 | W159: 5.00222086e-12 | X159: 1.081390337e-07
A160: -60.63451 | B160: -28.29419 | C160: -53.69995 | D160: -29.58136 | E160: 776125.6801 | F160: -6.303548677 | G160: 353.6964513 | H160: -5.219996232 | I160: 354.7800038 | J160: 776125.68 | K160: 353.696451 | L160: 174.780004 | M160: 354.780004 | N160: 776125.6801 | O160: 2.763966185e-12 | P160: 2.145185135e-06 | Q160: 9.064870117e-11 | R160: 7.035478484e-05 | S160: 353.6964513 | T160: 2.330580173e-12 | U160: 3.230247785e-07 | V160: 354.7800038 | W160: 1.932676241e-12 | X160: 2.324891852e-07
A161: -79.12195 | B161: -59.92566 | C161: -74.02701 | D161: -54.78937 | E161: 583597.7035 | F161: 15.69149465 | G161: 15.69149465 | H161: 10.69044873 | I161: 10.69044873 | J161: 583597.703 | K161: 15.691495 | L161: 190.690449 | M161: 10.690449 | N161: 583597.7035 | O161: 9.760493681e-13 | P161: 5.696201697e-07 | Q161: 8.23610924e-10 | R161: 0.0004806574434 | S161: 15.69149465 | T161: 7.778311328e-11 | U161: 3.491352825e-07 | V161: 10.69044873 | W161: 5.2244431e-11 | X161: 2.727546455e-07
A162: -84.82935 | B162: -78.92373 | C162: -76.4918 | D162: -72.02729 | E162: 937689.1006 | F162: 11.07379363 | G162: 11.07379363 | H162: 4.250542731 | I162: 4.250542731 | J162: 937689.101 | K162: 11.073794 | L162: 184.250543 | M162: 4.250543 | N162: 937689.1006 | O162: 1.545683698e-13 | P162: 1.449370757e-07 | Q162: 3.799756096e-10 | R162: 0.0003562989878 | S162: 11.07379363 | T162: 2.730260462e-12 | U162: 3.69712529e-07 | V162: 4.250542731 | W162: 9.778844401e-13 | X162: 2.692678311e-07
A163: -54.32421 | B163: -8.81775 | C163: -51.52891 | D163: -9.66351 | E163: 316225.2542 | F163: -10.70041455 | G163: 349.2995854 | H163: -10.02540794 | I163: 349.9745921 | J163: 316225.254 | K163: 349.299585 | L163: 169.974592 | M163: 349.974592 | N163: 316225.2542 | O163: 2.989116755e-12 | P163: 9.452342056e-07 | Q163: 6.515157223e-10 | R163: 0.0002060257248 | S163: 349.2995854 | T163: 1.409716788e-11 | U163: 4.499499937e-07 | V163: 349.9745921 | W163: 1.313082976e-11 | X163: 6.110542472e-08
A164: 29.94391 | B164: 94.4651 | C164: 31.79965 | D164: 104.16052 | E164: 949375.9522 | F164: 75.02631927 | G164: 75.02631927 | H164: 80.01067841 | I164: 80.01067841 | J164: 949375.952 | K164: 75.026319 | L164: 260.010678 | M164: 80.010678 | N164: 949375.9522 | O164: 1.182944025e-12 | P164: 1.12305861e-06 | Q164: 1.787373609e-10 | R164: 0.0001696889522 | S164: 75.02631927 | T164: 6.505729289e-11 | U164: 2.652000575e-07 | V164: 80.01067841 | W164: 9.876544027e-11 | X164: 4.068031814e-07
A165: -77.13309 | B165: 118.06853 | C165: -84.16388 | D165: 108.68982 | E165: 800748.6972 | F165: -172.3702232 | G165: 187.6297768 | H165: -163.0982386 | I165: 196.9017614 | J165: 800748.697 | K165: 187.629777 | L165: 16.901761 | M165: 196.901761 | N165: 800748.6972 | O165: 1.472730726e-13 | P165: 1.17928721e-07 | Q165: 2.549339048e-10 | R165: 0.0002041379921 | S165: 187.6297768 | T165: 2.273736754e-12 | U165: 1.548822581e-07 | V165: 196.9017614 | W165: 5.00222086e-12 | X165: 4.106379947e-07
A166: 15.55741 | B166: 93.43646 | C166: 12.54777 | D166: 99.41416 | E166: 726364.3934 | F166: 116.5314171 | G166: 116.5314171 | H166: 117.9846281 | I166: 117.9846281 | J166: 726364.393 | K166: 116.531417 | L166: 297.984628 | M166: 117.984628 | N166: 726364.3934 | O166: 5.106241698e-12 | P166: 3.708992153e-06 | Q166: 5.586933614e-10 | R166: 0.0004058149643 | S166: 116.5314171 | T166: 4.808953236e-11 | U166: 1.362459017e-07 | V166: 117.9846281 | W166: 4.516209628e-11 | X166: 9.594684514e-08
A167: 56.87082 | B167: 93.77069 | C167: 47.84957 | D167: 92.60878 | E167: 1006904.09 | F167: -175.0252526 | G167: 184.9747474 | H167: -175.9482041 | I167: 184.0517959 | J167: 1006904.09 | K167: 184.974747 | L167: 4.051796 | M167: 184.051796 | N167: 1006904.09 | O167: 2.986158226e-12 | P167: 3.006774932e-06 | Q167: 3.318322661e-10 | R167: 0.0003341232659 | S167: 184.9747474 | T167: 6.934897101e-12 | U167: 3.707000644e-07 | V167: 184.0517959 | W167: 5.826450433e-12 | X167: 1.114828194e-07
A168: -32.13025 | B168: 25.5467 | C168: -30.50968 | D168: 19.60276 | E168: 593510.8735 | F168: -73.94226665 | G168: 286.0577334 | H168: -70.85016305 | I168: 289.149837 | J168: 593510.874 | K168: 286.057733 | L168: 109.149837 | M168: 289.149837 | N168: 593510.8735 | O168: 5.239083873e-13 | P168: 3.109453246e-07 | Q168: 7.865971505e-10 | R168: 0.0004668539623 | S168: 286.0577334 | T168: 1.138005246e-10 | U168: 3.503521384e-07 | V168: 289.149837 | W168: 9.436007531e-11 | X168: 4.641611895e-08
A169: 14.0237 | B169: 105.60255 | C169: 15.25897 | D169: 96.28585 | E169: 1012836.411 | F169: -81.08243745 | G169: 278.9175625 | H169: -83.44243327 | I169: 276.5575667 | J169: 1012836.411 | K169: 278.917563 | L169: 96.557567 | M169: 276.557567 | N169: 1012836.411 | O169: 3.718076078e-12 | P169: 3.76580283e-06 | Q169: 3.044344325e-11 | R169: 3.08342278e-05 | S169: 278.9175625 | T169: 1.944044925e-11 | U169: 4.525905979e-07 | V169: 276.5575667 | W169: 2.648903319e-11 | X169: 2.685192726e-07
A170: 16.59408 | B170: -168.68614 | C170: 15.42199 | D170: -161.33268 | E170: 797599.8504 | F170: 98.32991879 | G170: 98.32991879 | H170: 100.3604966 | I170: 100.3604966 | J170: 797599.85 | K170: 98.329919 | L170: 280.360497 | M170: 100.360497 | N170: 797599.8504 | O170: 3.216017656e-12 | P170: 2.565095201e-06 | Q170: 4.433036738e-10 | R170: 0.0003535789438 | S170: 98.32991879 | T170: 3.525713055e-11 | U170: 2.117429574e-07 | V170: 100.3604966 | W170: 2.805222721e-11 | X170: 3.687160586e-07
A171: 25.1623 | B171: 32.96971 | C171: 15.16952 | D171: 42.55295 | E171: 1491183.785 | F171: 136.0731925 | G171: 136.0731925 | H171: 139.3964287 | I171: 139.3964287 | J171: 1491183.785 | K171: 136.073192 | L171: 319.396429 | M171: 139.396429 | N171: 1491183.785 | O171: 5.227816777e-12 | P171: 7.795635611e-06 | Q171: 2.411871898e-10 | R171: 0.0003596544266 | S171: 136.0731925 | T171: 7.335643204e-11 | U171: 4.596856513e-07 | V171: 139.3964287 | W171: 6.534150998e-11 | X171: 3.491683458e-07
A172: -8.4286 | B172: -81.49525 | C172: -8.99448 | D172: -91.00892 | E172: 1048756.311 | F172: -94.13534556 | G172: 265.8646544 | H172: -92.6911235 | I172: 267.3088765 | J172: 1048756.311 | K172: 265.864654 | L172: 87.308877 | M172: 267.308877 | N172: 1048756.311 | O172: 5.962648675e-12 | P172: 6.253365427e-06 | Q172: 2.220470563e-10 | R172: 0.0002328732517 | S172: 265.8646544 | T172: 2.671640686e-12 | U172: 4.438751944e-07 | V172: 267.3088765 | W172: 4.035882739e-12 | X172: 4.967501468e-07
A173: -24.05081 | B173: 79.36939 | C173: -15.2516 | D173: 87.07666 | E173: 1265036.879 | F173: 41.05775878 | G173: 41.05775878 | H173: 38.45466475 | I173: 38.45466475 | J173: 1265036.879 | K173: 41.057759 | L173: 218.454665 | M173: 38.454665 | N173: 1265036.879 | O173: 5.458753159e-12 | P173: 6.90552406e-06 | Q173: 1.00000699e-10 | R173: 0.0001265045721 | S173: 41.05775878 | T173: 6.634337524e-11 | U173: 2.154099548e-07 | V173: 38.45466475 | W173: 6.04885031e-11 | X173: 2.460441877e-07
A174: -53.1694 | B174: 69.62902 | C174: -52.35373 | D174: 70.88526 | E174: 124217.1163 | F174: 43.55567276 | G174: 43.55567276 | H174: 42.55550966 | I174: 42.55550966 | J174: 124217.116 | K174: 43.555673 | L174: 222.55551 | M174: 42.55551 | N174: 124217.1163 | O174: 3.411379881e-12 | P174: 4.237517715e-07 | Q174: 2.43762903e-09 | R174: 0.000302795248 | S174: 43.55567276 | T174: 2.521716169e-11 | U174: 2.368050147e-07 | V174: 42.55550966 | W174: 2.442845926e-11 | X174: 3.411534522e-07
A175: -50.51388 | B175: 63.46119 | C175: -45.35988 | D175: 67.69164 | E175: 654197.8644 | F175: 30.47071812 | G175: 30.47071812 | H175: 27.32617423 | I175: 27.32617423 | J175: 654197.864 | K175: 30.470718 | L175: 207.326174 | M175: 27.326174 | N175: 654197.8644 | O175: 4.1798967e-12 | P175: 2.734479494e-06 | Q175: 5.448162316e-10 | R175: 0.000356417615 | S175: 30.47071812 | T175: 9.214318197e-11 | U175: 1.235610547e-07 | V175: 27.32617423 | W175: 8.088107961e-11 | X175: 2.30412482e-07
A176: 55.77236 | B176: 95.44722 | C176: 60.04375 | D176: 98.93223 | E176: 518482.889 | F176: 22.0087186 | G176: 22.0087186 | H176: 24.96351887 | I176: 24.96351887 | J176: 518482.889 | K176: 22.008719 | L176: 204.963519 | M176: 24.963519 | N176: 518482.889 | O176: 2.735569685e-12 | P176: 1.418346073e-06 | Q176: 4.553022145e-11 | R176: 2.360664075e-05 | S176: 22.0087186 | T176: 3.424815986e-12 | U176: 4.01021925e-07 | V176: 24.96351887 | W176: 3.858247055e-12 | X176: 1.334805759e-07
A177: -88.57758 | B177: -27.12125 | C177: -89.04633 | D177: -36.98312 | E177: 56931.96417 | F177: -161.3104467 | G177: 198.6895533 | H177: -151.4506041 | I177: 208.5493959 | J177: 56931.964 | K177: 198.689553 | L177: 28.549396 | M177: 208.549396 | N177: 56931.96417 | O177: 3.055720088e-13 | P177: 1.739681466e-08 | Q177: 3.05698571e-09 | R177: 0.0001740402004 | S177: 198.6895533 | T177: 2.89333002e-11 | U177: 3.326830722e-07 | V177: 208.5493959 | W177: 4.82316409e-11 | X177: 1.238652203e-07
A178: -77.38426 | B178: 13.02515 | C178: -77.26919 | D178: 5.45759 | E178: 185725.1685 | F178: -89.73413333 | G178: 270.2658667 | H178: -82.35042181 | I178: 277.6495782 | J178: 185725.168 | K178: 270.265867 | L178: 97.649578 | M178: 277.649578 | N178: 185725.1685 | O178: 3.704163254e-12 | P178: 6.879563443e-07 | Q178: 2.450782728e-09 | R178: 0.000455172034 | S178: 270.2658667 | T178: 2.972910806e-11 | U178: 3.265298574e-07 | V178: 277.6495782 | W178: 1.023181539e-12 | X178: 1.887386816e-07
A179: 25.87314 | B179: 152.1365 | C179: 16.34149 | D179: 142.54756 | E179: 1450056.569 | F179: -134.8140597 | G179: 225.1859403 | H179: -138.2863052 | I179: 221.7136948 | J179: 1450056.569 | K179: 225.18594 | L179: 41.713695 | M179: 221.713695 | N179: 1450056.569 | O179: 4.997795789e-12 | P179: 7.247086614e-06 | Q179: 2.317361304e-11 | R179: 3.360304981e-05 | S179: 225.1859403 | T179: 7.992184692e-11 | U179: 2.806159216e-07 | V179: 221.7136948 | W179: 7.136691238e-11 | X179: 1.744436418e-07
A180: 60.63519 | B180: -18.58577 | C180: 56.19925 | D180: -21.83446 | E180: 529160.8792 | F180: -157.5852697 | G180: 202.4147303 | H180: -160.3550585 | I180: 199.6449415 | J180: 529160.879 | K180: 202.41473 | L180: 19.644942 | M180: 199.644942 | N180: 529160.8792 | O180: 2.706438336e-12 | P180: 1.432141289e-06 | Q180: 3.669771544e-10 | R180: 0.0001941899536 | S180: 202.4147303 | T180: 3.154809747e-12 | U180: 3.242938647e-07 | V180: 199.6449415 | W180: 2.046363079e-12 | X180: 4.5391306e-07
A181: 69.06225 | B181: 176.82599 | C181: 63.58613 | D181: -174.9509 | E181: 711943.0104 | F181: 145.0589298 | G181: 145.0589298 | H181: 152.6005956 | I181: 152.6005956 | J181: 711943.01 | K181: 145.05893 | L181: 332.600596 | M181: 152.600596 | N181: 711943.0104 | O181: 1.799185844e-12 | P181: 1.280917786e-06 | Q181: 6.168303373e-10 | R181: 0.000439148047 | S181: 145.0589298 | T181: 1.358557711e-11 | U181: 1.82742582e-07 | V181: 152.6005956 | W181: 1.006128514e-11 | X181: 4.002410492e-07
A182: -26.06676 | B182: -120.9024 | C182: -17.47777 | D182: -113.44263 | E182: 1223926.821 | F182: 40.50545244 | G182: 40.50545244 | H182: 37.72726488 | I182: 37.72726488 | J182: 1223926.821 | K182: 40.505452 | L182: 217.727265 | M182: 37.727265 | N182: 1223926.821 | O182: 5.185737609e-12 | P182: 6.346963346e-06 | Q182: 3.982840521e-11 | R182: 4.874705337e-05 | S182: 40.50545244 | T182: 7.663913948e-11 | U182: 4.436027439e-07 | V182: 37.72726488 | W182: 6.937739272e-11 | X182: 1.216423087e-07
A183: -89.24421 | B183: 76.12988 | C183: -82.44422 | D183: 85.38474 | E183: 760688.0555 | F183: 10.27186944 | G183: 10.27186944 | H183: 1.025032268 | I183: 1.025032268 | J183: 760688.055 | K183: 10.271869 | L183: 181.025032 | M183: 1.025032 | N183: 760688.0555 | O183: 4.04483406e-13 | P183: 3.076856956e-07 | Q183: 5.961768617e-10 | R183: 0.0004535046173 | S183: 10.27186944 | T183: 2.753353101e-13 | U183: 4.368064754e-07 | V183: 1.025032268 | W183: 1.243449788e-13 | X183: 2.679999642e-07
A184: 45.35607 | B184: -62.40872 | C184: 54.44751 | D184: -53.78741 | E184: 1183858.361 | F184: 28.25124739 | G184: 28.25124739 | H184: 34.87204132 | I184: 34.87204132 | J184: 1183858.361 | K184: 28.251247 | L184: 214.872041 | M184: 34.872041 | N184: 1183858.361 | O184: 3.803814398e-12 | P184: 4.503177479e-06 | Q184: 6.817266927e-11 | R184: 8.07067845e-05 | S184: 28.25124739 | T184: 4.894573635e-11 | U184: 3.879137545e-07 | V184: 34.87204132 | W184: 6.345857173e-11 | X184: 3.225639773e-07
A185: -9.56595 | B185: 20.89078 | C185: -9.6599 | D185: 12.41325 | E185: 930584.1029 | F185: -91.3477177 | G185: 268.6522823 | H185: -89.92951211 | I185: 270.0704879 | J185: 930584.103 | K185: 268.652282 | L185: 90.070488 | M185: 270.070488 | N185: 930584.1029 | O185: 5.635218322e-12 | P185: 5.244044587e-06 | Q185: 1.443911167e-10 | R185: 0.0001343680779 | S185: 268.6522823 | T185: 1.136868377e-13 | U185: 2.998224886e-07 | V185: 270.0704879 | W185: 1.762145985e-12 | X185: 1.126624625e-07
A186: -68.51283 | B186: 88.40501 | C186: -61.03101 | D186: 83.63429 | E186: 863834.6273 | F186: -17.4031985 | G186: 342.5968015 | H186: -13.0778499 | I186: 346.9221501 | J186: 863834.627 | K186: 342.596802 | L186: 166.92215 | M186: 346.92215 | N186: 863834.6273 | O186: 2.238324349e-12 | P186: 1.93354208e-06 | Q186: 3.641211555e-10 | R186: 0.0003145404626 | S186: 342.5968015 | T186: 4.320099833e-12 | U186: 4.988818318e-07 | V186: 346.9221501 | W186: 3.240074875e-12 | X186: 1.043630959e-07
A187: 67.75607 | B187: -7.8779 | C187: 61.46738 | D187: -6.88398 | E187: 702689.6776 | F187: 175.6669664 | G187: 175.6669664 | H187: 176.5662557 | I187: 176.5662557 | J187: 702689.678 | K187: 175.666966 | L187: 356.566256 | M187: 176.566256 | N187: 702689.6776 | O187: 2.32370185e-12 | P187: 1.632841304e-06 | Q187: 6.204356832e-10 | R187: 0.0004359737504 | S187: 175.6669664 | T187: 5.115907697e-13 | U187: 4.135974905e-07 | V187: 176.5662557 | W187: 9.094947018e-13 | X187: 2.943619677e-07
A188: -52.44216 | B188: 20.65675 | C188: -60.02686 | D188: 14.25952 | E188: 932048.7951 | F188: -157.4652598 | G188: 202.5347402 | H188: -152.1337349 | I188: 207.8662651 | J188: 932048.795 | K188: 202.53474 | L188: 27.866265 | M188: 207.866265 | N188: 932048.7951 | O188: 2.86514084e-12 | P188: 2.670451067e-06 | Q188: 6.176021604e-11 | R188: 5.756353494e-05 | S188: 202.5347402 | T188: 6.849631973e-12 | U188: 2.071791414e-07 | V188: 207.8662651 | W188: 8.753886505e-12 | X188: 8.628524029e-08
A189: 16.62362 | B189: 176.03188 | C189: 12.38795 | D189: -177.78276 | E189: 814807.4228 | F189: 124.2950978 | G189: 124.2950978 | H189: 125.8468778 | I189: 125.8468778 | J189: 814807.423 | K189: 124.295098 | L189: 305.846878 | M189: 125.846878 | N189: 814807.4228 | O189: 5.441952379e-12 | P189: 4.434143193e-06 | Q189: 2.33114129e-10 | R189: 0.0001899431227 | S189: 124.2950978 | T189: 5.121592039e-11 | U189: 2.237792103e-07 | V189: 125.8468778 | W189: 4.783373697e-11 | X189: 2.167908377e-07
A190: -25.84301 | B190: -14.81764 | C190: -26.60894 | D190: -6.65613 | E190: 819800.4623 | F190: 97.73613005 | G190: 97.73613005 | H190: 94.12443396 | I190: 94.12443396 | J190: 819800.462 | K190: 97.73613 | L190: 274.124434 | M190: 94.124434 | N190: 819800.4623 | O190: 8.345602105e-13 | P190: 6.841728464e-07 | Q190: 3.851939137e-10 | R190: 0.0003157821484 | S190: 97.73613005 | T190: 2.712852165e-11 | U190: 5.01875661e-08 | V190: 94.12443396 | W190: 5.118749868e-11 | X190: 4.485148963e-08
A191: -30.38682 | B191: -76.66879 | C191: -23.24018 | D191: -75.04718 | E191: 808065.8772 | F191: 11.88215101 | G191: 11.88215101 | H191: 11.14919338 | I191: 11.14919338 | J191: 808065.877 | K191: 11.882151 | L191: 191.149193 | M191: 11.149193 | N191: 808065.8772 | O191: 5.93871432e-12 | P191: 4.798872396e-06 | Q191: 2.204265429e-10 | R191: 0.0001781191677 | S191: 11.88215101 | T191: 4.019717892e-11 | U191: 1.336089639e-08 | V191: 11.14919338 | W191: 3.765343592e-11 | X191: 3.771593846e-07
A192: 55.91003 | B192: 165.71516 | C192: 55.67723 | D192: 161.47691 | E192: 267061.4748 | F192: -93.81334538 | G192: 266.1866546 | H192: -97.31896818 | I192: 262.6810318 | J192: 267061.475 | K192: 266.186655 | L192: 82.681032 | M192: 262.681032 | N192: 267061.4748 | O192: 7.077032549e-13 | P192: 1.89000275e-07 | Q192: 6.366735613e-10 | R192: 0.0001700309804 | S192: 266.1866546 | T192: 1.011812856e-11 | U192: 3.835903613e-07 | V192: 262.6810318 | W192: 5.115907697e-12 | X192: 1.78117773e-07
A193: -59.09515 | B193: 129.89176 | C193: -50.12819 | D193: 136.99707 | E193: 1097226.774 | F193: 27.65448218 | G193: 27.65448218 | H193: 21.84162945 | I193: 21.84162945 | J193: 1097226.774 | K193: 27.654482 | L193: 201.841629 | M193: 21.841629 | N193: 1097226.774 | O193: 3.009196855e-12 | P193: 3.301771358e-06 | Q193: 3.974724435e-11 | R193: 4.361174069e-05 | S193: 27.65448218 | T193: 1.655209303e-11 | U193: 1.818645465e-07 | V193: 21.84162945 | W193: 1.263344984e-11 | X193: 4.509088534e-07
A194: -77.11087 | B194: -3.87942 | C194: -81.10062 | D194: -2.64908 | E194: 446199.7302 | F194: 177.2673371 | G194: 177.2673371 | H194: 176.0584363 | I194: 176.0584363 | J194: 446199.73 | K194: 177.267337 | L194: 356.058436 | M194: 176.058436 | N194: 446199.7302 | O194: 3.663093023e-13 | P194: 1.634471118e-07 | Q194: 3.523950279e-10 | R194: 0.0001572385663 | S194: 177.2673371 | T194: 4.035882739e-12 | U194: 9.244604371e-08 | V194: 176.0584363 | W194: 5.172751116e-12 | X194: 3.095601357e-07
A195: -54.16944 | B195: 71.15004 | C195: -54.49899 | D195: 78.35346 | E195: 469804.1571 | F195: 97.3978532 | G195: 97.3978532 | H195: 91.54291452 | I195: 91.54291452 | J195: 469804.157 | K195: 97.397853 | L195: 271.542915 | M195: 91.542915 | N195: =VincentyInvDistance($A195,$B195,$C195,$D195) -> 469804.1571 | O195: =ABS((E195-N195)/E195) -> 9.751989039e-13 | P195: =ABS(E195-N195) -> 4.58152499e-07 | Q195: 2.305105812e-10 | R195: 0.0001082948293 | S195: 97.3978532 | T195: =ABS(G195-S195) -> 1.961097951e-12 | U195: =ABS(K195-S195) -> 1.955122428e-07 | V195: 91.54291452 | W195: =ABS(I195-V195) -> 9.634959497e-12 | X195: =ABS(M195-V195) -> 4.778634235e-07
A196: -63.89984 | B196: 41.55904 | C196: -67.11991 | D196: 33.25622 | E196: 525080.6501 | F196: -136.7872849 | G196: =NormalizeAzimuth(F196, TRUE) -> 223.2127151 | H196: -129.2261947 | I196: =NormalizeAzimuth(H196, TRUE) -> 230.7738053 | J196: 525080.65 | K196: 223.212715 | L196: 50.773805 | M196: =NormalizeAzimuth(L196+180, TRUE) -> 230.773805 | N196: 525080.6501 | O196: 1.379697667e-12 | P196: 7.244525477e-07 | Q196: =ABS((J196-N196)/J196) -> 1.572853123e-10 | R196: =ABS(J196-N196) -> 8.258747403e-05 | S196: =VincentyInvFwdAzimuth($A196,$B196,$C196,$D196) -> 223.2127151 | T196: 1.500666258e-11 | U196: 1.029169994e-07 | V196: =VincentyInvRevAzimuth($A196,$B196,$C196,$D196) -> 230.7738053 | W196: 1.901412361e-11 | X196: 3.089490122e-07
A197: 73.51418 | B197: -130.86909 | C197: 76.48955 | D197: -123.543 | E197: 393228.4153 | F197: 29.01540363 | G197: 29.01540363 | H197: 36.09495139 | I197: 36.09495139 | J197: 393228.415 | K197: 29.015404 | L197: 216.094951 | M197: 36.094951 | N197: 393228.4153 | O197: 6.696653847e-13 | P197: 2.63331458e-07 | Q197: 6.959713631e-10 | R197: 0.000273675716 | S197: 29.01540363 | T197: 6.757261417e-12 | U197: 3.739083425e-07 | V197: 36.09495139 | W197: 8.832046205e-12 | X197: 3.925646936e-07
A198: 45.18775 | B198: -103.866 | C198: 50.50656 | D198: -101.60582 | E198: 615023.2176 | F198: 15.13154098 | G198: 15.13154098 | H198: 16.80904986 | I198: 16.80904986 | J198: 615023.218 | K198: 15.131541 | L198: 196.80905 | M198: 16.80905 | N198: 615023.2176 | O198: 3.574288676e-12 | P198: 2.198270522e-06 | Q198: 6.080636753e-10 | R198: 0.0003739732783 | S198: 15.13154098 | T198: 5.279154891e-11 | U198: 1.808089145e-08 | V198: 16.80904986 | W198: 5.899991606e-11 | X198: 1.435904124e-07
A199: -71.40592 | B199: 178.10623 | C199: -64.21027 | D199: 175.41218 | E199: 810345.0918 | F199: -9.312953615 | G199: 350.6870464 | H199: -6.813474848 | I199: 353.1865252 | J199: 810345.092 | K199: 350.687046 | L199: 173.186525 | M199: 353.186525 | N199: 810345.0918 | O199: 1.982527515e-12 | P199: 1.606531441e-06 | Q199: 2.634376815e-10 | R199: 0.0002134754322 | S199: 350.6870464 | T199: 2.785327524e-12 | U199: 3.851370138e-07 | V199: 353.1865252 | W199: 2.046363079e-12 | X199: 1.520511432e-07
A200: -30.22111 | B200: 29.88451 | C200: -34.16193 | D200: 33.61278 | E200: 560753.5853 | F200: 142.1622936 | G200: 142.1622936 | H200: 140.1743705 | I200: 140.1743705 | J200: 560753.585 | K200: 142.162294 | L200: 320.17437 | M200: 140.17437 | N200: 560753.5853 | O200: 3.800419538e-12 | P200: 2.131098881e-06 | Q200: 5.372092113e-10 | R200: 0.0003012419911 | S200: 142.1622936 | T200: 8.975575838e-11 | U200: 4.093197674e-07 | V200: 140.1743705 | W200: 9.598011275e-11 | X200: 4.924719974e-07
... 404 more rows

Sheet DirectTestData
A1: point 1 id | B1: latitude 1 | C1: longitude 1 | D1: azimuth1to2 | E1: ellipsoidal distance | F1: point id 2
A2: 1 | B2: 37.93204 | C2: 40.93572 | D2: 358.74231 | E2: 22085892.74 | F2: 601
A3: 2 | B3: -47.3325 | C3: 52.2398 | D3: 231.23897 | E3: 19786754.97 | F3: 602
A4: 3 | B4: 71.02614 | C4: -11.58161 | D4: 341.87816 | E4: 13647633.2 | F4: 603
A5: 4 | B5: -73.14621 | C5: -166.31255 | D5: 349.94654 | E5: 5057004.357 | F5: 604
A6: 5 | B6: 66.38028 | C6: 29.74333 | D6: 140.27108 | E6: 26211926.04 | F6: 605
A7: 6 | B7: -78.89715 | C7: 151.49567 | D7: 242.19583 | E7: 5877843.395 | F7: 606
A8: 7 | B8: 33.79546 | C8: -134.20804 | D8: 164.3986 | E8: 17353851.46 | F8: 607
A9: 8 | B9: 25.90362 | C9: -116.54492 | D9: 251.01541 | E9: 11211606.78 | F9: 608
A10: 9 | B10: 88.82487 | C10: -171.29023 | D10: 236.64452 | E10: 13413100.69 | F10: 609
A11: 10 | B11: -84.62611 | C11: -104.26258 | D11: 334.79195 | E11: 10061299.77 | F11: 610
A12: 11 | B12: 51.38601 | C12: -111.37733 | D12: 293.94512 | E12: 13574546.63 | F12: 611
A13: 12 | B13: 73.61243 | C13: 21.2996 | D13: 351.57213 | E13: 5397158.528 | F13: 612
A14: 13 | B14: -63.83888 | C14: -172.55153 | D14: 309.01081 | E14: 1974293.521 | F14: 613
A15: 14 | B15: -46.89855 | C15: 173.49565 | D15: 328.50568 | E15: 15153458.34 | F15: 614
A16: 15 | B16: 82.99066 | C16: -95.84995 | D16: 330.465 | E16: 11924411.23 | F16: 615
A17: 16 | B17: -55.50224 | C17: -151.16015 | D17: 290.10536 | E17: 24906146.87 | F17: 616
A18: 17 | B18: 86.37289 | C18: -16.15495 | D18: 151.89457 | E18: 22990024.52 | F18: 617
A19: 18 | B19: -22.98502 | C19: 163.42873 | D19: 109.00563 | E19: 6642422.875 | F19: 618
A20: 19 | B20: 43.96354 | C20: 75.04604 | D20: 193.59317 | E20: 12967928.03 | F20: 619
A21: 20 | B21: 33.43607 | C21: -128.50958 | D21: 177.97383 | E21: 28559805.61 | F21: 620
A22: 21 | B22: -82.79867 | C22: 2.33506 | D22: 90.62013 | E22: 19798139.99 | F22: 621
A23: 22 | B23: -30.6114 | C23: -113.41504 | D23: 138.88733 | E23: 29611069.56 | F23: 622
A24: 23 | B24: -87.84541 | C24: -13.64112 | D24: 193.00731 | E24: 23819608.18 | F24: 623
A25: 24 | B25: -53.74601 | C25: -101.11091 | D25: 326.17998 | E25: 9694952.336 | F25: 624
A26: 25 | B26: -88.25021 | C26: -140.20064 | D26: 13.93619 | E26: 792391.5846 | F26: 625
A27: 26 | B27: 10.46365 | C27: -67.85207 | D27: 99.00061 | E27: 29956582.73 | F27: 626
A28: 27 | B28: 67.80254 | C28: -156.02513 | D28: 155.36896 | E28: 110882.5068 | F28: 627
A29: 28 | B29: -53.21975 | C29: -37.61912 | D29: 193.45201 | E29: 6349519.364 | F29: 628
A30: 29 | B30: -32.08322 | C30: 43.79468 | D30: 185.92912 | E30: 10318810.03 | F30: 629
A31: 30 | B31: 35.12396 | C31: 93.1178 | D31: 266.50542 | E31: 4453734.688 | F31: 630
A32: 31 | B32: 79.2941 | C32: 46.86943 | D32: 4.37468 | E32: 16192411.12 | F32: 631
A33: 32 | B33: 54.90717 | C33: -9.19916 | D33: 159.90084 | E33: 47791.9216 | F33: 632
A34: 33 | B34: -83.44626 | C34: 129.38958 | D34: 259.11182 | E34: 16379592.86 | F34: 633
A35: 34 | B35: 10.2753 | C35: 101.86165 | D35: 18.37228 | E35: 25941909.83 | F35: 634
A36: 35 | B36: -70.47984 | C36: -59.32464 | D36: 269.09639 | E36: 19983063.06 | F36: 635
A37: 36 | B37: -43.31085 | C37: 142.96419 | D37: 132.10337 | E37: 14969044.28 | F37: 636
A38: 37 | B38: 66.89793 | C38: 62.62509 | D38: 295.13056 | E38: 20971884.74 | F38: 637
A39: 38 | B39: -14.44898 | C39: -131.36622 | D39: 357.3988 | E39: 5018737.575 | F39: 638
A40: 39 | B40: 56.26164 | C40: 160.04601 | D40: 207.2295 | E40: 5688651.016 | F40: 639
A41: 40 | B41: -52.43038 | C41: -158.68407 | D41: 295.40204 | E41: 24475326.59 | F41: 640
A42: 41 | B42: 18.91492 | C42: -16.34651 | D42: 214.55985 | E42: 11418445.47 | F42: 641
A43: 42 | B43: -18.66128 | C43: -176.80045 | D43: 293.2995 | E43: 21962851.26 | F43: 642
A44: 43 | B44: -17.82623 | C44: 131.55552 | D44: 146.41114 | E44: 23153552.51 | F44: 643
A45: 44 | B45: 12.14262 | C45: -36.63598 | D45: 146.83186 | E45: 27457648.37 | F45: 644
A46: 45 | B46: 69.92618 | C46: 87.82499 | D46: 48.88392 | E46: 1594501.665 | F46: 645
A47: 46 | B47: -55.5651 | C47: 30.07778 | D47: 165.26965 | E47: 7281691.938 | F47: 646
A48: 47 | B48: 54.7424 | C48: -122.9849 | D48: 12.37074 | E48: 23518265.96 | F48: 647
A49: 48 | B49: -16.65599 | C49: -3.15256 | D49: 278.37556 | E49: 3921469.098 | F49: 648
A50: 49 | B50: 41.28819 | C50: -163.27911 | D50: 93.86545 | E50: 8374879.001 | F50: 649
A51: 50 | B51: -55.10799 | C51: -30.4592 | D51: 218.89684 | E51: 2583078.804 | F51: 650
A52: 51 | B52: 80.34284 | C52: 13.14785 | D52: 216.89024 | E52: 14011974.03 | F52: 651
A53: 52 | B53: 50.84966 | C53: -177.45111 | D53: 93.09108 | E53: 18934734.43 | F53: 652
A54: 53 | B54: 7.96821 | C54: -91.26638 | D54: 351.80046 | E54: 77993.0782 | F54: 653
A55: 54 | B55: 80.79667 | C55: -132.59368 | D55: 52.51181 | E55: 12601924.45 | F55: 654
A56: 55 | B56: 13.14395 | C56: 15.64518 | D56: 331.1143 | E56: 12336200.92 | F56: 655
A57: 56 | B57: -6.61548 | C57: 30.14874 | D57: 164.33973 | E57: 12949182.97 | F57: 656
A58: 57 | B58: -63.98087 | C58: 144.50285 | D58: 213.13917 | E58: 3218075.011 | F58: 657
A59: 58 | B59: 13.03885 | C59: -82.28487 | D59: 7.65268 | E59: 14250505.17 | F59: 658
A60: 59 | B60: -69.49145 | C60: -12.71739 | D60: 100.01456 | E60: 29644160.63 | F60: 659
A61: 60 | B61: 31.4524 | C61: 82.23437 | D61: 281.89106 | E61: 2846281.097 | F61: 660
A62: 61 | B62: 34.21333 | C62: 134.32218 | D62: 149.26883 | E62: 24776891.98 | F62: 661
A63: 62 | B63: -41.72983 | C63: -59.25983 | D63: 255.12926 | E63: 21636948.27 | F63: 662
A64: 63 | B64: -17.98255 | C64: 5.01387 | D64: 76.43695 | E64: 5257481.781 | F64: 663
A65: 64 | B65: 86.66334 | C65: 87.54109 | D65: 41.69123 | E65: 21811258.48 | F65: 664
A66: 65 | B66: 30.64991 | C66: -27.87691 | D66: 89.16325 | E66: 27630061.08 | F66: 665
A67: 66 | B67: -87.73037 | C67: 85.13301 | D67: 61.30809 | E67: 27449795.26 | F67: 666
A68: 67 | B68: 32.49314 | C68: 100.0766 | D68: 292.42207 | E68: 15896057.13 | F68: 667
A69: 68 | B69: 13.1216 | C69: -87.12497 | D69: 348.05227 | E69: 27915776.06 | F69: 668
A70: 69 | B70: 86.42554 | C70: -58.17102 | D70: 248.41925 | E70: 27388054.56 | F70: 669
A71: 70 | B71: 54.7683 | C71: -101.0252 | D71: 84.26818 | E71: 15232450.55 | F71: 670
A72: 71 | B72: -60.39222 | C72: -43.86837 | D72: 36.2211 | E72: 19523196.99 | F72: 671
A73: 72 | B73: -22.34434 | C73: -31.85858 | D73: 96.5979 | E73: 19262446.87 | F73: 672
A74: 73 | B74: -55.73415 | C74: 10.40617 | D74: 167.79789 | E74: 12572332.93 | F74: 673
A75: 74 | B75: 21.87129 | C75: -169.21358 | D75: 78.86538 | E75: 15827008.98 | F75: 674
A76: 75 | B76: 53.80467 | C76: 66.21582 | D76: 35.77715 | E76: 12061587.57 | F76: 675
A77: 76 | B77: -31.83679 | C77: -60.50971 | D77: 345.67816 | E77: 15839191.95 | F77: 676
A78: 77 | B78: 25.75399 | C78: 107.30107 | D78: 36.41404 | E78: 14247699.16 | F78: 677
A79: 78 | B79: 67.81804 | C79: 81.32062 | D79: 238.44236 | E79: 10751079.3 | F79: 678
A80: 79 | B80: 76.96108 | C80: -54.38558 | D80: 279.42409 | E80: 7288327.989 | F80: 679
A81: 80 | B81: -51.09056 | C81: 11.74319 | D81: 291.74024 | E81: 12223215.57 | F81: 680
A82: 81 | B82: 25.46168 | C82: 70.65137 | D82: 273.28306 | E82: 27794550.93 | F82: 681
A83: 82 | B83: 27.53249 | C83: 66.86407 | D83: 241.31356 | E83: 21855867.12 | F83: 682
A84: 83 | B84: -74.06646 | C84: -160.1971 | D84: 169.49235 | E84: 11149450.67 | F84: 683
A85: 84 | B85: 6.82072 | C85: -5.55007 | D85: 253.76505 | E85: 13419455.06 | F85: 684
A86: 85 | B86: -8.99198 | C86: -101.8196 | D86: 173.00154 | E86: 15406147.54 | F86: 685
A87: 86 | B87: 41.64598 | C87: -166.89362 | D87: 198.12486 | E87: 12387170.21 | F87: 686
A88: 87 | B88: 7.41741 | C88: 15.89446 | D88: 135.06274 | E88: 2739129.822 | F88: 687
A89: 88 | B89: -88.8212 | C89: 176.71506 | D89: 114.91654 | E89: 10992541.66 | F89: 688
A90: 89 | B90: -31.76643 | C90: 175.65602 | D90: 230.52977 | E90: 26809519.6 | F90: 689
A91: 90 | B91: -33.89461 | C91: 177.00147 | D91: 243.01021 | E91: 16426525.89 | F91: 690
A92: 91 | B92: -32.47385 | C92: 16.28563 | D92: 24.15812 | E92: 3009187.45 | F92: 691
A93: 92 | B93: 72.12079 | C93: -154.69437 | D93: 137.78511 | E93: 14766525.04 | F93: 692
A94: 93 | B94: 25.50112 | C94: 97.48163 | D94: 8.13389 | E94: 11388563.96 | F94: 693
A95: 94 | B95: 41.90083 | C95: -160.6241 | D95: 266.49375 | E95: 11341171.71 | F95: 694
A96: 95 | B96: 48.39043 | C96: -167.33677 | D96: 292.34511 | E96: 8308069.491 | F96: 695
A97: 96 | B97: -38.66077 | C97: 54.64192 | D97: 59.21122 | E97: 4874355.479 | F97: 696
A98: 97 | B98: -0.07457 | C98: 46.47208 | D98: 278.01759 | E98: 20547852.62 | F98: 697
A99: 98 | B99: 45.63044 | C99: -129.56118 | D99: 147.68849 | E99: 2696126.929 | F99: 698
A100: 99 | B100: -31.68774 | C100: 45.14707 | D100: 172.66594 | E100: 4461921.027 | F100: 699
A101: 100 | B101: -58.96753 | C101: 85.03836 | D101: 115.29264 | E101: 8938931.995 | F101: 700
A102: 101 | B102: 15.35918 | C102: 147.9986 | D102: 17.10506 | E102: 736539.3763 | F102: 701
A103: 102 | B103: 16.97861 | C103: -69.48251 | D103: 337.9323 | E103: 2680862.162 | F103: 702
A104: 103 | B104: 10.92965 | C104: -135.72478 | D104: 249.20694 | E104: 2593134.823 | F104: 703
A105: 104 | B105: -59.24292 | C105: 64.60122 | D105: 245.32204 | E105: 1124977.181 | F105: 704
A106: 105 | B106: 2.35068 | C106: -118.36722 | D106: 318.8005 | E106: 8704.334 | F106: 705
A107: 106 | B107: -62.10389 | C107: 145.56889 | D107: 255.88317 | E107: 13395.2941 | F107: 706
A108: 107 | B108: 77.64426 | C108: -149.10625 | D108: 106.19928 | E108: 2002954.959 | F108: 707
A109: 108 | B109: 63.34713 | C109: -89.70778 | D109: 173.62157 | E109: 2686520.691 | F109: 708
A110: 109 | B110: -35.52337 | C110: 84.47988 | D110: 19.50551 | E110: 798705.3761 | F110: 709
A111: 110 | B111: -84.51618 | C111: -15.54405 | D111: 200.2892 | E111: 665017.8678 | F111: 710
A112: 111 | B112: -52.91257 | C112: -154.2667 | D112: 248.05546 | E112: 1950926.775 | F112: 711
A113: 112 | B113: -7.64142 | C113: 157.20014 | D113: 124.09694 | E113: 2303142.228 | F113: 712
A114: 113 | B114: -3.24092 | C114: 136.62436 | D114: 48.93152 | E114: 2125350.601 | F114: 713
A115: 114 | B115: 78.89543 | C115: 61.84067 | D115: 273.64731 | E115: 1313369.752 | F115: 714
A116: 115 | B116: -48.02119 | C116: 42.15779 | D116: 7.61224 | E116: 1139720.717 | F116: 715
A117: 116 | B117: -82.62983 | C117: 66.27034 | D117: 319.08736 | E117: 783546.7098 | F117: 716
A118: 117 | B118: -72.9553 | C118: 51.11226 | D118: 98.025 | E118: 963166.2024 | F118: 717
A119: 118 | B119: 1.99555 | C119: 18.54959 | D119: 205.93687 | E119: 2610595.476 | F119: 718
A120: 119 | B120: -45.64898 | C120: -35.09258 | D120: 205.41823 | E120: 2662309.769 | F120: 719
A121: 120 | B121: 79.0302 | C121: -49.26318 | D121: 305.83574 | E121: 1821170.49 | F121: 720
A122: 121 | B122: 37.44891 | C122: -25.21469 | D122: 299.32281 | E122: 2787665.4 | F122: 721
A123: 122 | B123: -35.9591 | C123: -53.57335 | D123: 317.02665 | E123: 2445529.306 | F123: 722
A124: 123 | B124: -38.20439 | C124: -71.39351 | D124: 266.36977 | E124: 344966.307 | F124: 723
A125: 124 | B125: 30.1263 | C125: -91.78906 | D125: 12.69722 | E125: 2319961.368 | F125: 724
A126: 125 | B126: 16.64533 | C126: -152.07943 | D126: 262.28956 | E126: 181575.4404 | F126: 725
A127: 126 | B127: -88.87481 | C127: 84.81613 | D127: 155.5087 | E127: 2189603.945 | F127: 726
A128: 127 | B128: 16.28764 | C128: -146.46427 | D128: 108.7463 | E128: 428196.2837 | F128: 727
A129: 128 | B129: -51.53119 | C129: -66.09511 | D129: 343.22848 | E129: 1626173.762 | F129: 728
A130: 129 | B130: 44.17254 | C130: -15.46427 | D130: 30.42384 | E130: 52780.7088 | F130: 729
A131: 130 | B131: -8.74058 | C131: -91.28766 | D131: 111.05248 | E131: 873745.9848 | F131: 730
A132: 131 | B132: 7.59024 | C132: -126.13188 | D132: 183.72388 | E132: 1467787.239 | F132: 731
A133: 132 | B133: 30.95782 | C133: 107.38434 | D133: 302.95084 | E133: 633511.361 | F133: 732
A134: 133 | B134: -27.11685 | C134: -95.37788 | D134: 284.91935 | E134: 77703.401 | F134: 733
A135: 134 | B135: 36.55128 | C135: -105.62241 | D135: 356.37335 | E135: 2618918.112 | F135: 734
A136: 135 | B136: 87.71513 | C136: -55.23417 | D136: 208.72172 | E136: 1139643.146 | F136: 735
A137: 136 | B137: 20.04429 | C137: 39.64796 | D137: 32.21836 | E137: 1149778.372 | F137: 736
A138: 137 | B138: -39.77995 | C138: 89.82447 | D138: 12.89039 | E138: 617458.0677 | F138: 737
A139: 138 | B139: 85.09304 | C139: 2.53427 | D139: 308.66299 | E139: 2770816.597 | F139: 738
A140: 139 | B140: 43.89448 | C140: -46.91609 | D140: 345.82888 | E140: 1509940.105 | F140: 739
A141: 140 | B141: 63.40118 | C141: 167.19977 | D141: 94.49713 | E141: 2044625.383 | F141: 740
A142: 141 | B142: 16.41653 | C142: -30.20589 | D142: 159.85739 | E142: 81952.523 | F142: 741
A143: 142 | B143: 89.18136 | C143: -12.85374 | D143: 333.07477 | E143: 1367935.171 | F143: 742
A144: 143 | B144: 47.41887 | C144: -138.48464 | D144: 128.64584 | E144: 497647.9246 | F144: 743
A145: 144 | B145: -77.30041 | C145: -174.85292 | D145: 347.72065 | E145: 2549616.412 | F145: 744
A146: 145 | B146: 10.73125 | C146: 153.64383 | D146: 294.47432 | E146: 923961.6454 | F146: 745
A147: 146 | B147: 40.89346 | C147: 13.135 | D147: 250.38964 | E147: 436314.1891 | F147: 746
A148: 147 | B148: 3.4208 | C148: 68.39911 | D148: 318.18174 | E148: 235621.6657 | F148: 747
A149: 148 | B149: -76.69763 | C149: 144.84649 | D149: 343.57543 | E149: 1297329.239 | F149: 748
A150: 149 | B150: -66.05588 | C150: 76.34856 | D150: 348.79195 | E150: 487865.0338 | F150: 749
A151: 150 | B151: 63.9123 | C151: -166.40602 | D151: 35.08649 | E151: 2107759.411 | F151: 750
A152: 151 | B152: -15.63666 | C152: 172.95704 | D152: 249.2085 | E152: 932904.5536 | F152: 751
A153: 152 | B153: 34.47056 | C153: 149.87987 | D153: 123.46666 | E153: 1885709.708 | F153: 752
A154: 153 | B154: 70.72988 | C154: 38.88579 | D154: 191.17985 | E154: 1874375.611 | F154: 753
A155: 154 | B155: -4.06525 | C155: -141.67541 | D155: 353.87957 | E155: 1483495.49 | F155: 754
A156: 155 | B156: 79.54457 | C156: 116.16714 | D156: 38.64468 | E156: 2689115.548 | F156: 755
A157: 156 | B157: 19.88641 | C157: 113.63709 | D157: 292.6876 | E157: 1829661.771 | F157: 756
A158: 157 | B158: -10.59013 | C158: -116.79354 | D158: 151.79773 | E158: 734948.6839 | F158: 757
A159: 158 | B159: -53.97994 | C159: 176.4941 | D159: 351.76226 | E159: 290204.7421 | F159: 758
A160: 159 | B160: 85.19306 | C160: -48.25796 | D160: 98.19683 | E160: 2348678.622 | F160: 759
A161: 160 | B161: 82.39507 | C161: -52.37138 | D161: 316.65381 | E161: 2636.9314 | F161: 760
A162: 161 | B162: -59.90357 | C162: 108.36845 | D162: 145.06591 | E162: 1868677.446 | F162: 761
A163: 162 | B163: -89.75274 | C163: 10.63989 | D163: 279.07071 | E163: 1326845.27 | F163: 762
A164: 163 | B164: 87.8345 | C164: 160.72366 | D164: 295.68838 | E164: 2618896.739 | F164: 763
A165: 164 | B165: -46.25782 | C165: 128.5649 | D165: 346.95398 | E165: 870222.554 | F165: 764
A166: 165 | B166: 56.54449 | C166: 80.51427 | D166: 274.28678 | E166: 181242.5084 | F166: 765
A167: 166 | B167: 28.70416 | C167: 37.6523 | D167: 298.13016 | E167: 2847014.212 | F167: 766
A168: 167 | B168: 57.86423 | C168: -127.27303 | D168: 287.40098 | E168: 2605914.985 | F168: 767
A169: 168 | B169: -3.3862 | C169: 7.57363 | D169: 116.54897 | E169: 2164002.292 | F169: 768
A170: 169 | B170: -80.09853 | C170: -167.62506 | D170: 342.86336 | E170: 2374062.401 | F170: 769
A171: 170 | B171: -25.79666 | C171: -91.60102 | D171: 110.88793 | E171: 1445060.199 | F171: 770
A172: 171 | B172: -15.80319 | C172: 62.38284 | D172: 103.39551 | E172: 371706.7015 | F172: 771
A173: 172 | B173: -20.97921 | C173: 130.19319 | D173: 323.70005 | E173: 473620.6878 | F173: 772
A174: 173 | B174: -14.93039 | C174: 52.18267 | D174: 183.96492 | E174: 1869949.387 | F174: 773
A175: 174 | B175: 22.31986 | C175: 107.55486 | D175: 345.03864 | E175: 1165528.918 | F175: 774
A176: 175 | B176: 11.62475 | C176: -125.80128 | D176: 130.08402 | E176: 2133546.645 | F176: 775
A177: 176 | B177: -39.60991 | C177: -63.98298 | D177: 65.53415 | E177: 1948522.891 | F177: 776
A178: 177 | B178: -46.98603 | C178: 9.58227 | D178: 213.37766 | E178: 2987346.844 | F178: 777
A179: 178 | B179: 89.82347 | C179: 85.36163 | D179: 90.75359 | E179: 2388158.312 | F179: 778
A180: 179 | B180: -45.13054 | C180: 109.06982 | D180: 23.03076 | E180: 1516703.969 | F180: 779
A181: 180 | B181: -79.57438 | C181: 34.26979 | D181: 313.0317 | E181: 1158783.379 | F181: 780
A182: 181 | B182: 38.25056 | C182: -173.99167 | D182: 181.36596 | E182: 1704611.013 | F182: 781
A183: 182 | B183: 72.21713 | C183: 175.3751 | D183: 116.47589 | E183: 1416256.808 | F183: 782
A184: 183 | B184: -51.30735 | C184: 37.7529 | D184: 262.05438 | E184: 37084.6507 | F184: 783
A185: 184 | B185: -82.28505 | C185: 116.79396 | D185: 329.89498 | E185: 2760978.398 | F185: 784
A186: 185 | B186: 9.47149 | C186: 48.05799 | D186: 122.84132 | E186: 2197247.204 | F186: 785
A187: 186 | B187: 41.32079 | C187: 30.4912 | D187: 177.5402 | E187: 2332316.253 | F187: 786
A188: 187 | B188: 2.62457 | C188: 79.61126 | D188: 349.54712 | E188: 934757.1679 | F188: 787
A189: 188 | B189: 73.9572 | C189: -21.14536 | D189: 113.57873 | E189: 2202448.032 | F189: 788
A190: 189 | B190: -26.62467 | C190: -129.90505 | D190: 15.76199 | E190: 1541236.286 | F190: 789
A191: 190 | B191: 66.36652 | C191: -161.80237 | D191: 326.47484 | E191: 2847786.918 | F191: 790
A192: 191 | B192: 27.10934 | C192: -107.87071 | D192: 65.25944 | E192: 2278616.405 | F192: 791
A193: 192 | B193: 27.2421 | C193: -150.59839 | D193: 206.1298 | E193: 2226010.708 | F193: 792
A194: 193 | B194: -51.30691 | C194: -69.26811 | D194: 29.19476 | E194: 165961.9748 | F194: 793
A195: 194 | B195: 72.25667 | C195: 43.0264 | D195: 199.46281 | E195: 176432.5575 | F195: 794
A196: 195 | B196: -0.96489 | C196: 93.63996 | D196: 334.64444 | E196: 2913012.577 | F196: 795
A197: 196 | B197: 79.0683 | C197: -14.22913 | D197: 217.73259 | E197: 55334.1145 | F197: 796
A198: 197 | B198: 64.10736 | C198: -122.36005 | D198: 299.22041 | E198: 1237165.563 | F198: 797
A199: 198 | B199: 80.77424 | C199: 127.7698 | D199: 218.86179 | E199: 106597.6541 | F199: 798
A200: 199 | B200: -11.60303 | C200: 79.39197 | D200: 87.63924 | E200: 2806480.98 | F200: 799
... 401 more rows

Sheet Direct Geoscience Aus
A1: point1 | B1: lat1 | C1: lon1 | D1: azimuth1to2 | E1: ell_dist | F1: point2 | G1: lat2 | H1: lon2 | I1: azimuth2to1
A2: 1 | B2: 37.93204 | C2: 40.93572 | D2: 358.74231 | E2: 22085892.74 | F2: 601 | G2: -56.65252195 | H2: 220.2142907 | I2: 1.802769
A3: 2 | B3: -47.3325 | C3: 52.2398 | D3: 231.23897 | E3: 19786754.97 | F3: 602 | G3: 46.14290127 | H3: -125.3439559 | I3: 130.288219
A4: 3 | B4: 71.02614 | C4: -11.58161 | D4: 341.87816 | E4: 13647633.2 | F4: 603 | G4: -14.61912714 | H4: -175.8676843 | I4: 6.01597
A5: 4 | B5: -73.14621 | C5: -166.31255 | D5: 349.94654 | E5: 5057004.357 | F5: 604 | G5: -27.88730763 | H5: -174.3957319 | I5: 176.709616
A6: 5 | B6: 66.38028 | C6: 29.74333 | D6: 140.27108 | E6: 26211926.04 | F6: 605 | G6: -14.97905379 | H6: -117.250469 | I6: 195.413514
A7: 6 | B7: -78.89715 | C7: 151.49567 | D7: 242.19583 | E7: 5877843.395 | F7: 606 | G7: -41.7402637 | H7: 42.14185929 | I7: 166.780504
A8: 7 | B8: 33.79546 | C8: -134.20804 | D8: 164.3986 | E8: 17353851.46 | F8: 607 | G8: -56.32733905 | H8: 34.39923521 | I8: 203.739874
A9: 8 | B9: 25.90362 | C9: -116.54492 | D9: 251.01541 | E9: 11211606.78 | F9: 608 | G9: -21.83018502 | H9: -208.3020791 | I9: 66.415525
A10: 9 | B10: 88.82487 | C10: -171.29023 | D10: 236.64452 | E10: 13413100.69 | F10: 609 | G10: -31.46690734 | H10: -228.5230005 | I10: 1.153603
A11: 10 | B11: -84.62611 | C11: -104.26258 | D11: 334.79195 | E11: 10061299.77 | F11: 610 | G11: 5.446117066 | H11: -129.5787797 | I11: 177.69601
A12: 11 | B12: 51.38601 | C12: -111.37733 | D12: 293.94512 | E12: 13574546.63 | F12: 611 | G12: -11.64520316 | H12: -239.0117795 | I12: 35.694308
A13: 12 | B13: 73.61243 | C13: 21.2996 | D13: 351.57213 | E13: 5397158.528 | F13: 612 | G13: 57.78446905 | H13: -146.8407588 | I13: 4.45172
A14: 13 | B14: -63.83888 | C14: -172.55153 | D14: 309.01081 | E14: 1974293.521 | F14: 613 | G14: -50.39515021 | H14: -194.3030331 | I14: 147.466904
A15: 14 | B15: -46.89855 | C15: 173.49565 | D15: 328.50568 | E15: 15153458.34 | F15: 614 | G15: 68.57557775 | H15: 73.03492292 | I15: 102.53892
A16: 15 | B16: 82.99066 | C16: -95.84995 | D16: 330.465 | E16: 11924411.23 | F16: 615 | G16: -11.19701065 | H16: -247.1619759 | I16: 3.526983
A17: 16 | B17: -55.50224 | C17: -151.16015 | D17: 290.10536 | E17: 24906146.87 | F17: 616 | G17: 27.08703346 | H17: -18.05489329 | I17: 36.750459
A18: 17 | B18: 86.37289 | C18: -16.15495 | D18: 151.89457 | E18: 22990024.52 | F18: 617 | G18: -59.99444418 | H18: -171.0778127 | I18: 183.419434
A19: 18 | B19: -22.98502 | C19: 163.42873 | D19: 109.00563 | E19: 6642422.875 | F19: 618 | G19: -27.1446406 | H19: 229.8772152 | I19: 257.952736
A20: 19 | B20: 43.96354 | C20: 75.04604 | D20: 193.59317 | E20: 12967928.03 | F20: 619 | G20: -69.74235113 | H20: 37.93660898 | I20: 29.204471
A21: 20 | B21: 33.43607 | C21: -128.50958 | D21: 177.97383 | E21: 28559805.61 | F21: 620 | G21: 43.78840702 | H21: -305.8032796 | I21: 182.340995
A22: 21 | B22: -82.79867 | C22: 2.33506 | D22: 90.62013 | E22: 19798139.99 | F22: 621 | G22: 82.54978114 | H22: 167.9403508 | I22: 255.176648
A23: 22 | B23: -30.6114 | C23: -113.41504 | D23: 138.88733 | E23: 29611069.56 | F23: 622 | G23: 42.82653278 | H23: -177.2394853 | I23: 309.548954
A24: 23 | B24: -87.84541 | C24: -13.64112 | D24: 193.00731 | E24: 23819608.18 | F24: 623 | G24: 57.90233614 | H24: 0.136345224 | I24: 0.913329
A25: 24 | B25: -53.74601 | C25: -101.11091 | D25: 326.17998 | E25: 9694952.336 | F25: 624 | G25: 27.09690619 | H25: -139.6302943 | I25: 158.267224
A26: 25 | B26: -88.25021 | C26: -140.20064 | D26: 13.93619 | E26: 792391.5846 | F26: 625 | G26: -81.19667376 | H26: -128.9927511 | I26: 182.754452
A27: 26 | B27: 10.46365 | C27: -67.85207 | D27: 99.00061 | E27: 29956582.73 | F27: 626 | G27: 8.878086837 | H27: -160.3841353 | I27: 259.441947
A28: 27 | B28: 67.80254 | C28: -156.02513 | D28: 155.36896 | E28: 110882.5068 | F28: 627 | G28: 66.89525575 | H28: -154.970215 | I28: 336.342541
A29: 28 | B29: -53.21975 | C29: -37.61912 | D29: 193.45201 | E29: 6349519.364 | F29: 628 | G29: -67.6989007 | H29: -186.7281141 | I29: 158.482307
A30: 29 | B30: -32.08322 | C30: 43.79468 | D30: 185.92912 | E30: 10318810.03 | F30: 629 | G30: -54.87667992 | H30: -125.8705356 | I30: 171.261475
A31: 30 | B31: 35.12396 | C31: 93.1178 | D31: 266.50542 | E31: 4453734.688 | F31: 630 | G31: 24.08216434 | H31: 48.48391904 | I31: 63.47166
A32: 31 | B32: 79.2941 | C32: 46.86943 | D32: 4.37468 | E32: 16192411.12 | F32: 631 | G32: -45.11355293 | H32: 223.3792909 | I32: 358.847666
A33: 32 | B33: 54.90717 | C33: -9.19916 | D33: 159.90084 | E33: 47791.9216 | F33: 632 | G33: 54.5037222 | H33: -8.945640327 | I33: 340.107762
A34: 33 | B34: -83.44626 | C34: 129.38958 | D34: 259.11182 | E34: 16379592.86 | F34: 633 | G34: 55.73577403 | H34: 18.95640095 | I34: 168.505303
A35: 34 | B35: 10.2753 | C35: 101.86165 | D35: 18.37228 | E35: 25941909.83 | F35: 634 | G35: -58.99902995 | H35: -48.99884852 | I35: 323.078262
A36: 35 | B36: -70.47984 | C36: -59.32464 | D36: 269.09639 | E36: 19983063.06 | F36: 635 | G36: 70.47684546 | H36: -238.6643457 | I36: 91.335483
A37: 36 | B37: -43.31085 | C37: 142.96419 | D37: 132.10337 | E37: 14969044.28 | F37: 636 | G37: 7.778220428 | H37: 290.5883135 | I37: 213.072834
A38: 37 | B38: 66.89793 | C38: 62.62509 | D38: 295.13056 | E38: 20971884.74 | F38: 637 | G38: -69.13870795 | H38: 220.2020676 | I38: 85.903663
A39: 38 | B39: -14.44898 | C39: -131.36622 | D39: 357.3988 | E39: 5018737.575 | F39: 638 | G39: 30.86017274 | H39: -133.5085192 | I39: 177.067334
A40: 39 | B40: 56.26164 | C40: 160.04601 | D40: 207.2295 | E40: 5688651.016 | F40: 639 | G40: 7.750571888 | H40: 138.9919874 | I40: 14.895099
A41: 40 | B41: -52.43038 | C41: -158.68407 | D41: 295.40204 | E41: 24475326.59 | F41: 640 | G41: 25.78121875 | H41: -18.73776916 | I41: 37.775033
A42: 41 | B42: 18.91492 | C42: -16.34651 | D42: 214.55985 | E42: 11418445.47 | F42: 641 | G42: -56.35751234 | H42: -101.0627041 | I42: 75.178997
A43: 42 | B43: -18.66128 | C43: -176.80045 | D43: 293.2995 | E43: 21962851.26 | F43: 642 | G43: 10.90047625 | H43: -12.91121278 | I43: 62.418159
A44: 43 | B44: -17.82623 | C44: 131.55552 | D44: 146.41114 | E44: 23153552.51 | F44: 643 | G44: 40.35422715 | H44: -28.60924729 | I44: 223.658741
A45: 44 | B45: 12.14262 | C45: -36.63598 | D45: 146.83186 | E45: 27457648.37 | F45: 644 | G45: 42.44156272 | H45: -174.0334337 | I45: 226.36698
A46: 45 | B46: 69.92618 | C46: 87.82499 | D46: 48.88392 | E46: 1594501.665 | F46: 645 | G46: 74.99736531 | H46: 133.6987005 | I46: 272.87155
A47: 46 | B47: -55.5651 | C47: 30.07778 | D47: 165.26965 | E47: 7281691.938 | F47: 646 | G47: -57.33278619 | H47: 184.7409992 | I47: 195.447584
A48: 47 | B48: 54.7424 | C48: -122.9849 | D48: 12.37074 | E48: 23518265.96 | F48: 647 | G48: -82.25283342 | H48: -246.9990906 | I48: 293.589108
A49: 48 | B49: -16.65599 | C49: -3.15256 | D49: 278.37556 | E49: 3921469.098 | F49: 648 | G49: -8.792228897 | H49: -38.42107422 | I49: 106.406079
A50: 49 | B50: 41.28819 | C50: -163.27911 | D50: 93.86545 | E50: 8374879.001 | F50: 649 | G50: 6.719486132 | H50: -86.99639954 | I50: 310.892076
A51: 50 | B51: -55.10799 | C51: -30.4592 | D51: 218.89684 | E51: 2583078.804 | F51: 650 | G51: -68.32772752 | H51: -72.37878713 | I51: 76.411345
A52: 51 | B52: 80.34284 | C52: 13.14785 | D52: 216.89024 | E52: 14011974.03 | F52: 651 | G52: -43.73573874 | H52: -28.86232758 | I52: 8.024735
A53: 52 | B53: 50.84966 | C53: -177.45111 | D53: 93.09108 | E53: 18934734.43 | F53: 652 | G53: -50.40052842 | H53: -12.7613649 | I53: 278.475823
A54: 53 | B54: 7.96821 | C54: -91.26638 | D54: 351.80046 | E54: 77993.0782 | F54: 653 | G54: 8.66618569 | H54: -91.36744749 | I54: 171.78584
A55: 54 | B55: 80.79667 | C55: -132.59368 | D55: 52.51181 | E55: 12601924.45 | F55: 654 | G55: -17.6721698 | H55: -2.456264985 | I55: 352.32298
A56: 55 | B56: 13.14395 | C56: 15.64518 | D56: 331.1143 | E56: 12336200.92 | F56: 655 | G56: 45.73935574 | H56: -124.0066476 | I56: 42.296696
A57: 56 | B57: -6.61548 | C57: 30.14874 | D57: 164.33973 | E57: 12949182.97 | F57: 656 | G57: -53.69669608 | H57: 186.0153742 | I57: 206.866968
A58: 57 | B58: -63.98087 | C58: 144.50285 | D58: 213.13917 | E58: 3218075.011 | F58: 657 | G58: -74.66974484 | H58: 59.15268927 | I58: 114.948832
A59: 58 | B59: 13.03885 | C59: -82.28487 | D59: 7.65268 | E59: 14250505.17 | F59: 658 | G59: 38.43101415 | H59: 89.98856636 | I59: 350.477955
A60: 59 | B60: -69.49145 | C60: -12.71739 | D60: 100.01456 | E60: 29644160.63 | F60: 659 | G60: 6.541663025 | H60: -94.76097935 | I60: 339.617901
A61: 60 | B61: 31.4524 | C61: 82.23437 | D61: 281.89106 | E61: 2846281.097 | F61: 660 | G61: 33.14028376 | H61: 51.97587349 | I61: 85.448103
A62: 61 | B62: 34.21333 | C62: 134.32218 | D62: 149.26883 | E62: 24776891.98 | F62: 661 | G62: 4.371332211 | H62: -25.51206927 | I62: 205.103449
A63: 62 | B63: -41.72983 | C63: -59.25983 | D63: 255.12926 | E63: 21636948.27 | F63: 662 | G63: 43.83269686 | H63: 101.1572434 | I63: 91.196663
A64: 63 | B64: -17.98255 | C64: 5.01387 | D64: 76.43695 | E64: 5257481.781 | F64: 663 | G64: -2.542650685 | H64: 50.59647735 | I64: 247.793217
A65: 64 | B65: 86.66334 | C65: 87.54109 | D65: 41.69123 | E65: 21811258.48 | F65: 664 | G65: -76.13339239 | H65: 36.84389978 | I65: 189.297172
A66: 65 | B66: 30.64991 | C66: -27.87691 | D66: 89.16325 | E66: 27630061.08 | F66: 665 | G66: -11.25914145 | H66: -136.5723491 | I66: 241.370785
A67: 66 | B67: -87.73037 | C67: 85.13301 | D67: 61.30809 | E67: 27449795.26 | F67: 666 | G67: 21.99032593 | H67: -34.41111087 | I67: 357.846692
A68: 67 | B68: 32.49314 | C68: 100.0766 | D68: 292.42207 | E68: 15896057.13 | F68: 667 | G68: -13.69558463 | H68: -44.79103763 | I68: 53.43031
A69: 68 | B69: 13.1216 | C69: -87.12497 | D69: 348.05227 | E69: 27915776.06 | F69: 668 | G69: -77.2133933 | H69: 31.08181676 | I69: 65.259403
A70: 69 | B70: 86.42554 | C70: -58.17102 | D70: 248.41925 | E70: 27388054.56 | F70: 669 | G70: -22.29308821 | H70: 54.86048546 | I70: 176.397258
A71: 70 | B71: 54.7683 | C71: -101.0252 | D71: 84.26818 | E71: 15232450.55 | F71: 670 | G71: -34.08290827 | H71: 24.03652376 | I71: 316.062858
A72: 71 | B72: -60.39222 | C72: -43.86837 | D72: 36.2211 | E72: 19523196.99 | F72: 671 | G72: 63.7400609 | H72: 130.2333476 | I72: 318.720688
A73: 72 | B73: -22.34434 | C73: -31.85858 | D73: 96.5979 | E73: 19262446.87 | F73: 672 | G73: 21.46092805 | H73: 140.7503333 | I73: 260.849218
A74: 73 | B74: -55.73415 | C74: 10.40617 | D74: 167.79789 | E74: 12572332.93 | F74: 673 | G74: -10.6354105 | H74: 178.9507131 | I74: 186.969858
A75: 74 | B75: 21.87129 | C75: -169.21358 | D75: 78.86538 | E75: 15827008.98 | F75: 674 | G75: -10.7705283 | H75: -26.97615535 | I75: 291.996776
A76: 75 | B76: 53.80467 | C76: 66.21582 | D76: 35.77715 | E76: 12061587.57 | F76: 675 | G76: 11.54968389 | H76: 211.6318598 | I76: 339.322444
A77: 76 | B77: -31.83679 | C77: -60.50971 | D77: 345.67816 | E77: 15839191.95 | F77: 676 | G77: 66.81727612 | H77: -218.0115298 | I77: 32.196287
A78: 77 | B78: 25.75399 | C78: 107.30107 | D78: 36.41404 | E78: 14247699.16 | F78: 677 | G78: 17.62204028 | H78: 257.7811839 | I78: 325.864095
A79: 78 | B79: 67.81804 | C79: 81.32062 | D79: 238.44236 | E79: 10751079.3 | F79: 678 | G79: -17.89755138 | H79: 18.6944669 | I79: 19.812467
A80: 79 | B80: 76.96108 | C80: -54.38558 | D80: 279.42409 | E80: 7288327.989 | F80: 679 | G80: 25.98412028 | H80: -147.6186497 | I80: 14.372601
A81: 80 | B81: -51.09056 | C81: 11.74319 | D81: 291.74024 | E81: 12223215.57 | F81: 680 | G81: 29.15722353 | H81: -74.49605946 | I81: 138.01803
A82: 81 | B82: 25.46168 | C82: 70.65137 | D82: 273.28306 | E82: 27794550.93 | F82: 681 | G82: -11.12489235 | H82: 177.9508515 | I82: 113.203979
A83: 82 | B83: 27.53249 | C83: 66.86407 | D83: 241.31356 | E83: 21855867.12 | F83: 682 | G83: -18.57634719 | H83: 231.8066263 | I83: 124.817549
A84: 83 | B84: -74.06646 | C84: -160.1971 | D84: 169.49235 | E84: 11149450.67 | F84: 683 | G84: -5.449341186 | H84: 9.402180791 | I84: 182.891563
A85: 84 | B85: 6.82072 | C85: -5.55007 | D85: 253.76505 | E85: 13419455.06 | F85: 684 | G85: -17.45068396 | H85: -125.5093154 | I85: 92.474106
A86: 85 | B86: -8.99198 | C86: -101.8196 | D86: 173.00154 | E86: 15406147.54 | F86: 685 | G86: -32.22049789 | H86: 72.66160362 | I86: 188.170994
A87: 86 | B87: 41.64598 | C87: -166.89362 | D87: 198.12486 | E87: 12387170.21 | F87: 686 | G87: -64.91700914 | H87: -209.701185 | I87: 33.206669
A88: 87 | B88: 7.41741 | C88: 15.89446 | D88: 135.06274 | E88: 2739129.822 | F88: 687 | G88: -10.18768353 | H88: 33.27691526 | I88: 314.634215
A89: 88 | B89: -88.8212 | C89: 176.71506 | D89: 114.91654 | E89: 10992541.66 | F89: 688 | G89: 8.454701057 | H89: 291.7889884 | I89: 181.08437
A90: 89 | B90: -31.76643 | C90: 175.65602 | D90: 230.52977 | E90: 26809519.6 | F90: 689 | G90: 46.68559376 | H90: 275.7953142 | I90: 72.924573
A91: 90 | B91: -33.89461 | C91: 177.00147 | D91: 243.01021 | E91: 16426525.89 | F91: 690 | G91: 15.79643942 | H91: 26.80213859 | I91: 129.708891
A92: 91 | B92: -32.47385 | C92: 16.28563 | D92: 24.15812 | E92: 3009187.45 | F92: 691 | G92: -7.242226484 | H92: 27.09008676 | I92: 200.386912
A93: 92 | B93: 72.12079 | C93: -154.69437 | D93: 137.78511 | E93: 14766525.04 | F93: 692 | G93: -54.69241875 | H93: -96.67376712 | I93: 339.071438
A94: 93 | B94: 25.50112 | C94: 97.48163 | D94: 8.13389 | E94: 11388563.96 | F94: 693 | G94: 51.44900224 | H94: 264.653534 | I94: 348.192865
A95: 94 | B95: 41.90083 | C95: -160.6241 | D95: 266.49375 | E95: 11341171.71 | F95: 694 | G95: -10.69481642 | H95: -257.2163095 | I95: 49.207916
A96: 95 | B96: 48.39043 | C96: -167.33677 | D96: 292.34511 | E96: 8308069.491 | F96: 695 | G96: 26.19876256 | H96: -263.5111081 | I96: 43.262817
A97: 96 | B97: -38.66077 | C97: 54.64192 | D97: 59.21122 | E97: 4874355.479 | F97: 696 | G97: -9.914656319 | H97: 91.75105883 | I97: 222.984308
A98: 97 | B98: -0.07457 | C98: 46.47208 | D98: 278.01759 | E98: 20547852.62 | F98: 697 | G98: -0.652410818 | H98: 221.9380103 | I98: 82.008305
A99: 98 | B99: 45.63044 | C99: -129.56118 | D99: 147.68849 | E99: 2696126.929 | F99: 698 | G99: 24.1003412 | H99: -115.6701196 | I99: 335.798363
A100: 99 | B100: -31.68774 | C100: 45.14707 | D100: 172.66594 | E100: 4461921.027 | F100: 699 | G100: -70.99257204 | H100: 59.72200545 | I100: 340.559552
A101: 100 | B101: -58.96753 | C101: 85.03836 | D101: 115.29264 | E101: 8938931.995 | F101: 700 | G101: -21.17876729 | H101: 192.0340692 | I101: 210.05827
A102: 101 | B102: 15.35918 | C102: 147.9986 | D102: 17.10506 | E102: 736539.3763 | F102: 701 | G102: 21.70834364 | H102: 150.0880441 | I102: 197.770309
A103: 102 | B103: 16.97861 | C103: -69.48251 | D103: 337.9323 | E103: 2680862.162 | F103: 702 | G103: 39.01983884 | H103: -80.84673 | I103: 152.482834
A104: 103 | B104: 10.92965 | C104: -135.72478 | D104: 249.20694 | E104: 2593134.823 | F104: 703 | G104: 2.023874588 | H104: -157.4355466 | I104: 66.720885
A105: 104 | B105: -59.24292 | C105: 64.60122 | D105: 245.32204 | E105: 1124977.181 | F105: 704 | G105: -62.06573041 | H105: 44.75650909 | I105: 82.666971
A106: 105 | B106: 2.35068 | C106: -118.36722 | D106: 318.8005 | E106: 8704.334 | F106: 705 | G106: 2.409908067 | H106: -118.4187692 | I106: 138.798359
A107: 106 | B107: -62.10389 | C107: 145.56889 | D107: 255.88317 | E107: 13395.2941 | F107: 706 | G107: -62.13298136 | H107: 145.3198798 | I107: 76.103274
A108: 107 | B108: 77.64426 | C108: -149.10625 | D108: 106.19928 | E108: 2002954.959 | F108: 707 | G108: 65.63135677 | H108: -103.2991263 | I108: 330.117254
A109: 108 | B109: 63.34713 | C109: -89.70778 | D109: 173.62157 | E109: 2686520.691 | F109: 708 | G109: 39.28297381 | H109: -86.34791759 | I109: 356.303546
A110: 109 | B110: -35.52337 | C110: 84.47988 | D110: 19.50551 | E110: 798705.3761 | F110: 709 | G110: -28.70265134 | H110: 87.20293961 | I110: 198.055183
A111: 110 | B111: -84.51618 | C111: -15.54405 | D111: 200.2892 | E111: 665017.8678 | F111: 710 | G111: -87.93609866 | H111: -108.4110237 | I111: 113.05744
A112: 111 | B112: -52.91257 | C112: -154.2667 | D112: 248.05546 | E112: 1950926.775 | F112: 711 | G112: -55.9583526 | H112: -184.1238825 | I112: 92.537857
A113: 112 | B113: -7.64142 | C113: 157.20014 | D113: 124.09694 | E113: 2303142.228 | F113: 712 | G113: -18.7724393 | H113: 175.1923416 | I113: 299.934081
A114: 113 | B114: -3.24092 | C114: 136.62436 | D114: 48.93152 | E114: 2125350.601 | F114: 713 | G114: 9.354352551 | H114: 151.0954068 | I114: 229.712056
A115: 114 | B115: 78.89543 | C115: 61.84067 | D115: 273.64731 | E115: 1313369.752 | F115: 714 | G115: 74.40119444 | H115: 12.68307127 | I115: 45.63394
A116: 115 | B116: -48.02119 | C116: 42.15779 | D116: 7.61224 | E116: 1139720.717 | F116: 715 | G116: -37.83807347 | H116: 43.86407729 | I116: 186.445428
A117: 116 | B117: -82.62983 | C117: 66.27034 | D117: 319.08736 | E117: 783546.7098 | F117: 716 | G117: -76.52353444 | H117: 46.19370304 | I117: 158.866795
A118: 117 | B118: -72.9553 | C118: 51.11226 | D118: 98.025 | E118: 963166.2024 | F118: 717 | G118: -72.06315198 | H118: 79.94423077 | I118: 250.473298
A119: 118 | B119: 1.99555 | C119: 18.54959 | D119: 205.93687 | E119: 2610595.476 | F119: 718 | G119: -19.14313172 | H119: 7.937382677 | I119: 27.550933
A120: 119 | B120: -45.64898 | C120: -35.09258 | D120: 205.41823 | E120: 2662309.769 | F120: 719 | G120: -65.4581394 | H120: -59.78859037 | I120: 46.188316
A121: 120 | B121: 79.0302 | C121: -49.26318 | D121: 305.83574 | E121: 1821170.49 | F121: 720 | G121: 76.78337286 | H121: -133.9295311 | I121: 42.437152
A122: 121 | B122: 37.44891 | C122: -25.21469 | D122: 299.32281 | E122: 2787665.4 | F122: 721 | G122: 45.70495877 | H122: -57.05774045 | I122: 97.82766
A123: 122 | B123: -35.9591 | C123: -53.57335 | D123: 317.02665 | E123: 2445529.306 | F123: 722 | G123: -18.76882592 | H123: -69.19140623 | I123: 144.32278
A124: 123 | B124: -38.20439 | C124: -71.39351 | D124: 266.36977 | E124: 344966.307 | F124: 723 | G124: -38.33514058 | H124: -75.33235303 | I124: 88.809947
A125: 124 | B125: 30.1263 | C125: -91.78906 | D125: 12.69722 | E125: 2319961.368 | F125: 724 | G125: 50.33782192 | H125: -84.76585946 | I125: 197.308365
A126: 125 | B126: 16.64533 | C126: -152.07943 | D126: 262.28956 | E126: 181575.4404 | F126: 725 | G126: 16.41837482 | H126: -153.7640793 | I126: 81.810163
A127: 126 | B127: -88.87481 | C127: 84.81613 | D127: 155.5087 | E127: 2189603.945 | F127: 726 | G127: -71.40827011 | H127: 238.9416978 | I127: 181.463614
A128: 127 | B128: 16.28764 | C128: -146.46427 | D128: 108.7463 | E128: 428196.2837 | F128: 727 | G128: 15.01105433 | H128: -142.6940439 | I128: 289.763722
A129: 128 | B129: -51.53119 | C129: -66.09511 | D129: 343.22848 | E129: 1626173.762 | F129: 728 | G129: -37.37788422 | H129: -71.34326185 | I129: 166.933568
A130: 129 | B130: 44.17254 | C130: -15.46427 | D130: 30.42384 | E130: 52780.7088 | F130: 729 | G130: 44.58163193 | H130: -15.1277287 | I130: 210.659211
A131: 130 | B131: -8.74058 | C131: -91.28766 | D131: 111.05248 | E131: 873745.9848 | F131: 730 | G131: -11.49744731 | H131: -83.81577697 | I131: 289.737519
A132: 131 | B132: 7.59024 | C132: -126.13188 | D132: 183.72388 | E132: 1467787.239 | F132: 731 | G132: -5.655680313 | H132: -126.9848123 | I132: 3.709384
A133: 132 | B133: 30.95782 | C133: 107.38434 | D133: 302.95084 | E133: 633511.361 | F133: 732 | G133: 33.9376539 | H133: 101.6341047 | I133: 119.862765
A134: 133 | B134: -27.11685 | C134: -95.37788 | D134: 284.91935 | E134: 77703.401 | F134: 733 | G134: -26.93426816 | H134: -96.13392031 | I134: 105.26289
A135: 134 | B135: 36.55128 | C135: -105.62241 | D135: 356.37335 | E135: 2618918.112 | F135: 734 | G135: 60.03018454 | H135: -108.5124058 | I135: 174.169507
A136: 135 | B136: 87.71513 | C136: -55.23417 | D136: 208.72172 | E136: 1139643.146 | F136: 735 | G136: 77.74236482 | H136: -78.87588923 | I136: 5.178205
A137: 136 | B137: 20.04429 | C137: 39.64796 | D137: 32.21836 | E137: 1149778.372 | F137: 736 | G137: 28.70834831 | H137: 45.89994886 | I137: 214.808293
A138: 137 | B138: -39.77995 | C138: 89.82447 | D138: 12.89039 | E138: 617458.0677 | F138: 737 | G138: -34.3464614 | H138: 91.3194138 | I138: 191.988344
A139: 138 | B139: 85.09304 | C139: 2.53427 | D139: 308.66299 | E139: 2770816.597 | F139: 738 | G139: 67.93349375 | H139: -116.721726 | I139: 10.24547
A140: 139 | B140: 43.89448 | C140: -46.91609 | D140: 345.82888 | E140: 1509940.105 | F140: 739 | G140: 56.92474414 | H140: -52.94122143 | I140: 161.153838
A141: 140 | B141: 63.40118 | C141: 167.19977 | D141: 94.49713 | E141: 2044625.383 | F141: 740 | G141: 56.89877236 | H141: 202.2230245 | I141: 305.154483
A142: 141 | B142: 16.41653 | C142: -30.20589 | D142: 159.85739 | E142: 81952.523 | F142: 741 | G142: 15.72107851 | H142: -29.94259553 | I142: 339.930269
A143: 142 | B143: 89.18136 | C143: -12.85374 | D143: 333.07477 | E143: 1367935.172 | F143: 742 | G143: 78.4752958 | H143: -164.112291 | I143: 1.855967
A144: 143 | B144: 47.41887 | C144: -138.48464 | D144: 128.64584 | E144: 497647.9246 | F144: 743 | G144: 44.51459474 | H144: -133.5952785 | I144: 312.163145
A145: 144 | B145: -77.30041 | C145: -174.85292 | D145: 347.72065 | E145: 2549616.412 | F145: 744 | G145: -54.62649545 | H145: -183.0556627 | I145: 175.362995
A146: 145 | B146: 10.73125 | C146: 153.64383 | D146: 294.47432 | E146: 923961.6454 | F146: 745 | G146: 14.08519977 | H146: 145.8602196 | I146: 112.798618
A147: 146 | B147: 40.89346 | C147: 13.135 | D147: 250.38964 | E147: 436314.1891 | F147: 746 | G147: 39.47452262 | H147: 8.356521498 | I147: 67.30507
A148: 147 | B148: 3.4208 | C148: 68.39911 | D148: 318.18174 | E148: 235621.6657 | F148: 747 | G148: 5.007578004 | H148: 66.9826155 | I148: 138.077633
A149: 148 | B149: -76.69763 | C149: 144.84649 | D149: 343.57543 | E149: 1297329.239 | F149: 748 | G149: -65.32846476 | H149: 137.0033905 | I149: 171.029604
A150: 149 | B150: -66.05588 | C150: 76.34856 | D150: 348.79195 | E150: 487865.0338 | F150: 749 | G150: -61.7508814 | H150: 74.55490623 | I150: 170.403911
A151: 150 | B151: 63.9123 | C151: -166.40602 | D151: 35.08649 | E151: 2107759.412 | F151: 750 | G151: 75.07706851 | H151: -120.1785337 | I151: 258.855577
A152: 151 | B152: -15.63666 | C152: 172.95704 | D152: 249.2085 | E152: 932904.5536 | F152: 751 | G152: -18.46656688 | H152: 164.7006889 | I152: 71.634137
A153: 152 | B153: 34.47056 | C153: 149.87987 | D153: 123.46666 | E153: 1885709.708 | F153: 752 | G153: 24.09658498 | H153: 165.3128013 | I153: 311.081664
A154: 153 | B154: 70.72988 | C154: 38.88579 | D154: 191.17985 | E154: 1874375.611 | F154: 753 | G154: 54.08823174 | H154: 33.40295927 | I154: 6.26806
A155: 154 | B155: -4.06525 | C155: -141.67541 | D155: 353.87957 | E155: 1483495.49 | F155: 754 | G155: 9.273558935 | H155: -143.1020683 | I155: 173.814302
A156: 155 | B156: 79.54457 | C156: 116.16714 | D156: 38.64468 | E156: 2689115.548 | F156: 755 | G156: 72.8699297 | H156: 236.2649741 | I156: 337.36716
A157: 156 | B157: 19.88641 | C157: 113.63709 | D157: 292.6876 | E157: 1829661.771 | F157: 756 | G157: 25.4254471 | H157: 96.84669471 | I157: 106.172469
A158: 157 | B158: -10.59013 | C158: -116.79354 | D158: 151.79773 | E158: 734948.6839 | F158: 757 | G158: -16.4251471 | H158: -113.5470654 | I158: 331.038253
A159: 158 | B159: -53.97994 | C159: 176.4941 | D159: 351.76226 | E159: 290204.7421 | F159: 758 | G159: -51.39741934 | H159: 175.8968381 | I159: 172.237417
A160: 159 | B160: 85.19306 | C160: -48.25796 | D160: 98.19683 | E160: 2348678.622 | F160: 759 | G160: 67.78394331 | H160: 21.752296 | I160: 347.322282
A161: 160 | B161: 82.39507 | C161: -52.37138 | D161: 316.65381 | E161: 2636.9314 | F161: 760 | G161: 82.41222442 | H161: -52.49411081 | I161: 136.532156
A162: 161 | B162: -59.90357 | C162: 108.36845 | D162: 145.06591 | E162: 1868677.446 | F162: 761 | G162: -71.26143128 | H162: 139.251964 | I162: 296.695308
A163: 162 | B163: -89.75274 | C163: 10.63989 | D163: 279.07071 | E163: 1326845.27 | F163: 762 | G163: -78.07753866 | H163: -69.13264761 | I163: 178.817841
A164: 163 | B164: 87.8345 | C164: 160.72366 | D164: 295.68838 | E164: 2618896.739 | F164: 763 | G164: 67.40045497 | H164: 49.71693932 | I164: 5.086121
A165: 164 | B165: -46.25782 | C165: 128.5649 | D165: 346.95398 | E165: 870222.554 | F165: 764 | G165: -38.601951 | H165: 126.3162451 | I165: 168.474626
A166: 165 | B166: 56.54449 | C166: 80.51427 | D166: 274.28678 | E166: 181242.5084 | F166: 765 | G166: 56.6313232 | H166: 77.56844297 | I166: 91.82764
A167: 166 | B167: 28.70416 | C167: 37.6523 | D167: 298.13016 | E167: 2847014.212 | F167: 766 | G167: 37.75074136 | H167: 8.907715645 | I167: 102.094217
A168: 167 | B168: 57.86423 | C168: -127.27303 | D168: 287.40098 | E168: 2605914.985 | F168: 767 | G168: 57.18915432 | H168: -171.5466309 | I168: 69.515094
A169: 168 | B169: -3.3862 | C169: 7.57363 | D169: 116.54897 | E169: 2164002.292 | F169: 768 | G169: -11.83635253 | H169: 25.27985607 | I169: 294.178654
A170: 169 | B170: -80.09853 | C170: -167.62506 | D170: 342.86336 | E170: 2374062.401 | F170: 769 | G170: -59.12381825 | H170: -179.6491118 | I170: 174.329492
A171: 170 | B171: -25.79666 | C171: -91.60102 | D171: 110.88793 | E171: 1445060.199 | F171: 770 | G171: -29.76489015 | H171: -77.62197879 | I171: 284.342977
A172: 171 | B172: -15.80319 | C172: 62.38284 | D172: 103.39551 | E172: 371706.7015 | F172: 771 | G172: -16.55464761 | H172: 65.77069852 | I172: 282.451249
A173: 172 | B173: -20.97921 | C173: 130.19319 | D173: 323.70005 | E173: 473620.6878 | F173: 772 | G173: -17.51117562 | H173: 127.5543142 | I173: 144.570392
A174: 173 | B174: -14.93039 | C174: 52.18267 | D174: 183.96492 | E174: 1869949.387 | F174: 773 | G174: -31.76888583 | H174: 50.83717509 | I174: 4.504047
A175: 174 | B175: 22.31986 | C175: 107.55486 | D175: 345.03864 | E175: 1165528.918 | F175: 774 | G175: 32.44865546 | H175: 104.3710067 | I175: 163.568149
A176: 175 | B176: 11.62475 | C176: -125.80128 | D176: 130.08402 | E176: 2133546.645 | F176: 775 | G176: -1.04099978 | H176: -111.2518568 | I176: 311.441467
A177: 176 | B177: -39.60991 | C177: -63.98298 | D177: 65.53415 | E177: 1948522.891 | F177: 776 | G177: -30.77431757 | H177: -45.41942347 | I177: 234.740515
A178: 177 | B178: -46.98603 | C178: 9.58227 | D178: 213.37766 | E178: 2987346.844 | F178: 777 | G178: -65.45835321 | H178: -27.0279848 | I178: 64.513055
A179: 178 | B179: 89.82347 | C179: 85.36163 | D179: 90.75359 | E179: 2388158.312 | F179: 778 | G179: 68.60595293 | H179: 174.157258 | I179: 359.515884
A180: 179 | B180: -45.13054 | C180: 109.06982 | D180: 23.03076 | E180: 1516703.969 | F180: 779 | G180: -32.36523712 | H180: 115.3276016 | I180: 199.087179
A181: 180 | B181: -79.57438 | C181: 34.26979 | D181: 313.0317 | E181: 1158783.379 | F181: 780 | G181: -70.93354645 | H181: 10.4966933 | I181: 156.106861
A182: 181 | B182: 38.25056 | C182: -173.99167 | D182: 181.36596 | E182: 1704611.014 | F182: 781 | G182: 22.87872465 | H182: -174.3829589 | I182: 1.165175
A183: 182 | B183: 72.21713 | C183: 175.3751 | D183: 116.47589 | E183: 1416256.808 | F183: 782 | G183: 64.02934278 | H183: 202.0523164 | I183: 321.355313
A184: 183 | B184: -51.30735 | C184: 37.7529 | D184: 262.05438 | E184: 37084.6507 | F184: 783 | G184: -51.35224169 | H184: 37.22567643 | I184: 82.466014
A185: 184 | B185: -82.28505 | C185: 116.79396 | D185: 329.89498 | E185: 2760978.398 | F185: 784 | G185: -58.35398282 | H185: 93.2080437 | I185: 172.619982
A186: 185 | B186: 9.47149 | C186: 48.05799 | D186: 122.84132 | E186: 2197247.204 | F186: 785 | G186: -1.548417071 | H186: 64.54740386 | I186: 303.993812
A187: 186 | B187: 41.32079 | C187: 30.4912 | D187: 177.5402 | E187: 2332316.253 | F187: 786 | G187: 20.29990302 | H187: 31.4283293 | I187: 358.028421
A188: 187 | B188: 2.62457 | C188: 79.61126 | D188: 349.54712 | E188: 934757.1679 | F188: 787 | G188: 10.93468165 | H188: 78.06521777 | I188: 169.364114
A189: 188 | B189: 73.9572 | C189: -21.14536 | D189: 113.57873 | E189: 2202448.032 | F189: 788 | G189: 60.13573159 | H189: 17.28135289 | I189: 329.406221
A190: 189 | B190: -26.62467 | C190: -129.90505 | D190: 15.76199 | E190: 1541236.286 | F190: 789 | G190: -13.17863323 | H190: -126.0778772 | I190: 194.449706
A191: 190 | B191: 66.36652 | C191: -161.80237 | D191: 326.47484 | E191: 2847786.918 | F191: 790 | G191: 76.11088543 | H191: -243.9304955 | I191: 67.228049
A192: 191 | B192: 27.10934 | C192: -107.87071 | D192: 65.25944 | E192: 2278616.405 | F192: 791 | G192: 33.8905079 | H192: -85.39948021 | I192: 256.79466
A193: 192 | B193: 27.2421 | C193: -150.59839 | D193: 206.1298 | E193: 2226010.708 | F193: 792 | G193: 8.940864519 | H193: -159.3661504 | I193: 23.366978
A194: 193 | B194: -51.30691 | C194: -69.26811 | D194: 29.19476 | E194: 165961.9748 | F194: 793 | G194: -49.99896387 | H194: -68.13907124 | I194: 208.321584
A195: 194 | B195: 72.25667 | C195: 43.0264 | D195: 199.46281 | E195: 176432.5575 | F195: 794 | G195: 70.7588325 | H195: 41.42870985 | I195: 17.947475
A196: 195 | B196: -0.96489 | C196: 93.63996 | D196: 334.64444 | E196: 2913012.577 | F196: 795 | G196: 22.68721613 | H196: 81.83654572 | I196: 152.364069
A197: 196 | B197: 79.0683 | C197: -14.22913 | D197: 217.73259 | E197: 55334.1145 | F197: 796 | G197: 78.67233557 | H197: -15.77302257 | I197: 36.217721
A198: 197 | B198: 64.10736 | C198: -122.36005 | D198: 299.22041 | E198: 1237165.563 | F198: 797 | G198: 67.49395182 | H198: -148.3519875 | I198: 95.434381
A199: 198 | B199: 80.77424 | C199: 127.7698 | D199: 218.86179 | E199: 106597.6541 | F199: 798 | G199: 80.01307771 | H199: 124.3146071 | I199: 35.454943
A200: 199 | B200: -11.60303 | C200: 79.39197 | D200: 87.63924 | E200: 2806480.98 | F200: 799 | G200: -9.471595902 | H200: 104.9508167 | I200: 262.887454
... 401 more rows

Sheet InverseTestData
A1: point 1 id | B1: latitude 1 | C1: longitude 1 | D1: point 2 id | E1: latitude 2 | F1: longitude 2
A2: 1 | B2: -73.19034 | C2: -90.31707 | D2: 601 | E2: -7.69722 | F2: -97.15051
A3: 2 | B3: -27.46273 | C3: 64.61237 | D3: 602 | E3: -23.95925 | F3: 155.74136
A4: 3 | B4: -83.24124 | C4: -117.00995 | D4: 603 | E4: 64.20572 | F4: 121.59592
A5: 4 | B5: -33.33966 | C5: -52.97975 | D5: 604 | E5: -18.05111 | F5: -51.95504
A6: 5 | B6: 4.8343 | C6: 51.63044 | D6: 605 | E6: 31.7308 | F6: -136.5581
A7: 6 | B7: -58.14701 | C7: -142.20697 | D7: 606 | E7: -44.84688 | F7: -115.80561
A8: 7 | B8: -14.64314 | C8: -168.42305 | D8: 607 | E8: 20.68601 | F8: 125.92728
A9: 8 | B9: 57.65154 | C9: 157.96238 | D9: 608 | E9: -69.68361 | F9: -12.81131
A10: 9 | B10: -1.85269 | C10: 113.12232 | D10: 609 | E10: 14.28854 | F10: -58.39895
A11: 10 | B11: -34.5545 | C11: -89.88912 | D11: 610 | E11: 8.94086 | F11: 26.80087
A12: 11 | B12: -40.49139 | C12: -52.18973 | D12: 611 | E12: -32.45612 | F12: -172.04351
A13: 12 | B13: -5.83531 | C13: -40.94056 | D13: 612 | E13: 58.06669 | F13: 128.92748
A14: 13 | B14: 22.30837 | C14: -15.41261 | D14: 613 | E14: -77.91724 | F14: -21.18674
A15: 14 | B15: 69.17075 | C15: -132.38274 | D15: 614 | E15: -7.79234 | F15: -148.41025
A16: 15 | B16: -63.51078 | C16: 97.62327 | D16: 615 | E16: 71.74239 | F16: 116.67794
A17: 16 | B17: -19.57667 | C17: 78.64998 | D17: 616 | E17: 69.27858 | F17: 136.25336
A18: 17 | B18: 39.89388 | C18: -26.36665 | D18: 617 | E18: 43.53266 | F18: -1.88804
A19: 18 | B19: -81.0146 | C19: 61.02025 | D19: 618 | E19: 39.04028 | F19: 68.61012
A20: 19 | B20: -48.4641 | C20: 142.6176 | D20: 619 | E20: 20.16439 | F20: -137.13472
A21: 20 | B21: -11.96942 | C21: 19.34359 | D21: 620 | E21: -63.41752 | F21: 71.2314
A22: 21 | B22: -69.89148 | C22: -112.86902 | D22: 621 | E22: 14.28862 | F22: 105.75986
A23: 22 | B23: -89.1759 | C23: 154.12211 | D23: 622 | E23: 56.21465 | F23: -75.16152
A24: 23 | B24: 70.15869 | C24: 46.31041 | D24: 623 | E24: -3.0711 | F24: -70.82818
A25: 24 | B25: 16.06744 | C25: -33.32609 | D25: 624 | E25: -64.48018 | F25: 108.66274
A26: 25 | B26: -65.58488 | C26: -9.09296 | D26: 625 | E26: -23.25885 | F26: -108.1495
A27: 26 | B27: 51.17777 | C27: 117.54172 | D27: 626 | E27: -9.32704 | F27: -118.73787
A28: 27 | B28: 73.5045 | C28: -166.58958 | D28: 627 | E28: 5.81885 | F28: 163.43952
A29: 28 | B29: -65.1988 | C29: -174.18019 | D29: 628 | E29: -28.90961 | F29: 29.75726
A30: 29 | B30: -56.73138 | C30: -169.91386 | D30: 629 | E30: -69.35453 | F30: 13.2489
A31: 30 | B31: -6.88687 | C31: -8.08623 | D31: 630 | E31: -41.40906 | F31: -68.35751
A32: 31 | B32: 18.2308 | C32: 77.88579 | D32: 631 | E32: 34.19574 | F32: 92.44337
A33: 32 | B33: -43.99951 | C33: -106.45717 | D33: 632 | E33: -24.05743 | F33: -127.96367
A34: 33 | B34: 67.07137 | C34: 64.74052 | D34: 633 | E34: -13.06862 | F34: 97.42777
A35: 34 | B35: -63.16404 | C35: 171.13805 | D35: 634 | E35: 66.35171 | F35: -36.605
A36: 35 | B36: 68.74997 | C36: -16.91616 | D36: 635 | E36: -81.48964 | F36: -54.97925
A37: 36 | B37: 68.79884 | C37: -132.99174 | D37: 636 | E37: 45.92479 | F37: 49.90748
A38: 37 | B38: 46.28192 | C38: -68.09947 | D38: 637 | E38: 3.94219 | F38: 169.94654
A39: 38 | B39: 29.88075 | C39: 43.05528 | D39: 638 | E39: 56.30645 | F39: 37.67671
A40: 39 | B40: -16.53242 | C40: -63.16033 | D40: 639 | E40: -18.92779 | F40: 58.51119
A41: 40 | B41: -59.59586 | C41: -11.01537 | D41: 640 | E41: -62.37769 | F41: 36.85268
A42: 41 | B42: -9.32988 | C42: 58.54634 | D42: 641 | E42: 36.54892 | F42: -49.88832
A43: 42 | B43: -84.07493 | C43: -20.86846 | D43: 642 | E43: -88.65931 | F43: -77.09891
A44: 43 | B44: -70.92851 | C44: -35.97439 | D44: 643 | E44: 54.71416 | F44: -101.14644
A45: 44 | B45: 44.04228 | C45: 149.45542 | D45: 644 | E45: 44.36455 | F45: -13.95912
A46: 45 | B46: -46.16543 | C46: -161.16449 | D46: 645 | E46: -31.39342 | F46: -53.70387
A47: 46 | B47: -89.39807 | C47: 81.8686 | D47: 646 | E47: -13.23263 | F47: -96.45023
A48: 47 | B48: 78.9649 | C48: 64.74648 | D48: 647 | E48: 86.20707 | F48: -24.31113
A49: 48 | B49: -55.4948 | C49: 78.02308 | D49: 648 | E49: 79.25122 | F49: -129.02636
A50: 49 | B50: 22.12128 | C50: -121.46489 | D50: 649 | E50: 36.99526 | F50: 133.47765
A51: 50 | B51: 66.24308 | C51: -44.36896 | D51: 650 | E51: 39.01021 | F51: -18.76487
A52: 51 | B52: -28.9402 | C52: 154.92586 | D52: 651 | E52: -39.29828 | F52: 38.95881
A53: 52 | B53: 32.50235 | C53: -149.48728 | D53: 652 | E53: 76.77299 | F53: -106.60453
A54: 53 | B54: -38.18925 | C54: -115.41135 | D54: 653 | E54: -41.62528 | F54: 170.0462
A55: 54 | B55: 20.63661 | C55: -166.07919 | D55: 654 | E55: 64.65931 | F55: 140.75031
A56: 55 | B56: -87.27567 | C56: -40.8868 | D56: 655 | E56: -61.0534 | F56: 126.21026
A57: 56 | B57: -65.26835 | C57: 22.99807 | D57: 656 | E57: -13.56738 | F57: 116.74199
A58: 57 | B58: 12.13145 | C58: -7.64494 | D58: 657 | E58: 3.04059 | F58: -160.11855
A59: 58 | B59: 47.68625 | C59: 52.70501 | D59: 658 | E59: 44.65729 | F59: 149.32465
A60: 59 | B60: 80.82172 | C60: 54.91928 | D60: 659 | E60: -47.02494 | F60: -139.65668
A61: 60 | B61: 55.42576 | C61: -86.43305 | D61: 660 | E61: -82.72469 | F61: 134.173
A62: 61 | B62: 18.85826 | C62: 17.28383 | D62: 661 | E62: 56.32137 | F62: -163.41587
A63: 62 | B63: 17.26771 | C63: 157.71124 | D63: 662 | E63: -81.17156 | F63: 59.53421
A64: 63 | B64: -26.74848 | C64: -149.95333 | D64: 663 | E64: 14.54387 | F64: 83.49962
A65: 64 | B65: 1.47439 | C65: -90.10711 | D65: 664 | E65: 37.68104 | F65: -63.98358
A66: 65 | B66: 19.72255 | C66: 66.42151 | D66: 665 | E66: 80.06413 | F66: -12.07429
A67: 66 | B67: -88.28717 | C67: 104.3566 | D67: 666 | E67: -27.90477 | F67: -58.98726
A68: 67 | B68: 43.51418 | C68: -6.93198 | D68: 667 | E68: -34.24805 | F68: -108.17846
A69: 68 | B69: -42.51504 | C69: 163.76437 | D69: 668 | E69: 14.84228 | F69: 117.39414
A70: 69 | B70: 53.73513 | C70: -89.04362 | D70: 669 | E70: 67.82536 | F70: -152.99635
A71: 70 | B71: 33.10338 | C71: 50.5702 | D71: 670 | E71: 26.74669 | F71: 114.93257
A72: 71 | B72: -43.66365 | C72: 132.49026 | D72: 671 | E72: 46.37881 | F72: 168.42698
A73: 72 | B73: -83.63017 | C73: 15.75479 | D73: 672 | E73: -89.42356 | F73: -12.1672
A74: 73 | B74: 52.38446 | C74: 175.12578 | D74: 673 | E74: 51.06218 | F74: 133.12858
A75: 74 | B75: 80.15605 | C75: 20.96157 | D75: 674 | E75: 18.22913 | F75: 6.37317
A76: 75 | B76: 45.80458 | C76: -59.00088 | D76: 675 | E76: 85.7035 | F76: 22.08818
A77: 76 | B77: 56.1806 | C77: 79.64396 | D77: 676 | E77: -61.49727 | F77: -72.03834
A78: 77 | B78: 47.96719 | C78: -62.15574 | D78: 677 | E78: 82.8889 | F78: 69.65645
A79: 78 | B79: -24.09962 | C79: 141.74152 | D79: 678 | E79: -67.92684 | F79: -95.95838
A80: 79 | B80: 0.09089 | C80: -41.97739 | D80: 679 | E80: 83.37262 | F80: 61.2701
A81: 80 | B81: -73.71131 | C81: 22.66018 | D81: 680 | E81: -46.2195 | F81: 5.28449
A82: 81 | B82: -22.00409 | C82: -44.46014 | D82: 681 | E82: 29.54902 | F82: 118.34869
A83: 82 | B83: 51.16355 | C83: 160.15751 | D83: 682 | E83: -16.7995 | F83: -174.80132
A84: 83 | B84: -20.3343 | C84: -128.91397 | D84: 683 | E84: -78.71621 | F84: 33.71542
A85: 84 | B85: 58.3115 | C85: 96.55998 | D85: 684 | E85: 68.62551 | F85: -2.80535
A86: 85 | B86: -89.46337 | C86: 112.70293 | D86: 685 | E86: -81.78616 | F86: -166.90851
A87: 86 | B87: 76.6398 | C87: -84.53647 | D87: 686 | E87: -1.82647 | F87: 75.82941
A88: 87 | B88: 24.83473 | C88: -104.82879 | D88: 687 | E88: 27.55943 | F88: 163.46988
A89: 88 | B89: 73.39275 | C89: 101.94214 | D89: 688 | E89: 12.9153 | F89: 154.44694
A90: 89 | B90: 70.47559 | C90: -168.26903 | D90: 689 | E90: -56.33708 | F90: 100.75643
A91: 90 | B91: -23.36444 | C91: -58.08665 | D91: 690 | E91: -80.31915 | F91: -108.47099
A92: 91 | B92: 28.44896 | C92: -71.63758 | D92: 691 | E92: 89.66514 | F92: -169.04756
A93: 92 | B93: 8.68468 | C93: -168.56728 | D93: 692 | E93: -67.72555 | F93: 31.9606
A94: 93 | B94: -67.91624 | C94: -62.03752 | D94: 693 | E94: -42.90264 | F94: -169.37138
A95: 94 | B95: 8.78751 | C95: 12.0727 | D95: 694 | E95: 47.91579 | F95: 178.19513
A96: 95 | B96: -1.93261 | C96: -49.4728 | D96: 695 | E96: 52.70204 | F96: -178.83775
A97: 96 | B97: 63.47177 | C97: 15.39042 | D97: 696 | E97: -25.44063 | F97: 27.82426
A98: 97 | B98: -19.58109 | C98: -91.32051 | D98: 697 | E98: -64.3446 | F98: -136.7434
A99: 98 | B99: -2.57153 | C99: -1.34456 | D99: 698 | E99: -55.96553 | F99: -109.17691
A100: 99 | B100: -67.83719 | C100: -47.37088 | D100: 699 | E100: -5.5325 | F100: -50.83385
A101: 100 | B101: -43.76535 | C101: 120.7183 | D101: 700 | E101: -13.83961 | F101: 139.33964
A102: 101 | B102: -46.86458 | C102: -124.83391 | D102: 701 | E102: -45.47589 | F102: -124.42449
A103: 102 | B103: -51.32503 | C103: -26.1731 | D103: 702 | E103: -43.87043 | F103: -21.44997
A104: 103 | B104: 17.04181 | C104: -23.13026 | D104: 703 | E104: 17.16122 | F104: -31.74838
A105: 104 | B105: 15.50744 | C105: -166.73916 | D105: 704 | E105: 9.94684 | F105: -157.50866
A106: 105 | B106: -51.03851 | C106: -144.04768 | D106: 705 | E106: -47.69309 | F106: -147.16191
A107: 106 | B107: -12.56946 | C107: 153.40758 | D107: 706 | E107: -21.1512 | F107: 155.96993
A108: 107 | B108: 70.03686 | C108: 88.46113 | D108: 707 | E108: 79.33889 | F108: 96.56698
A109: 108 | B109: -25.37777 | C109: 162.96799 | D109: 708 | E109: -18.86743 | F109: 160.58103
A110: 109 | B110: -24.74773 | C110: 121.9104 | D110: 709 | E110: -16.02477 | F110: 125.33676
A111: 110 | B111: 29.14093 | C111: 173.23385 | D111: 710 | E111: 37.93865 | F111: 169.67572
A112: 111 | B112: -22.44654 | C112: 123.52539 | D112: 711 | E112: -28.32085 | F112: 123.92205
A113: 112 | B113: -33.69231 | C113: 35.29391 | D113: 712 | E113: -27.45753 | F113: 40.54741
A114: 113 | B114: -20.6748 | C114: 105.92502 | D114: 713 | E114: -17.06724 | F114: 115.33927
A115: 114 | B115: 58.57587 | C115: 35.0594 | D115: 714 | E115: 51.47959 | F115: 25.97032
A116: 115 | B116: 11.13489 | C116: 69.0879 | D116: 715 | E116: 20.03739 | F116: 78.12756
A117: 116 | B117: 12.22848 | C117: 33.50832 | D117: 716 | E117: 4.24665 | F117: 33.87851
A118: 117 | B118: -38.40908 | C118: 56.48505 | D118: 717 | E118: -34.31016 | F118: 64.22019
A119: 118 | B119: 15.40639 | C119: 164.11288 | D119: 718 | E119: 13.30926 | F119: 162.2586
A120: 119 | B120: 9.24082 | C120: 131.63161 | D120: 719 | E120: 12.18455 | F120: 138.36069
A121: 120 | B121: 41.12114 | C121: 98.41758 | D121: 720 | E121: 36.02553 | F121: 88.56015
A122: 121 | B122: 71.45403 | C122: -99.23717 | D122: 721 | E122: 61.9215 | F122: -107.97436
A123: 122 | B123: 89.78355 | C123: 66.10397 | D123: 722 | E123: 82.13979 | F123: 59.49623
A124: 123 | B124: -53.71157 | C124: 136.44644 | D124: 723 | E124: -61.27499 | F124: 132.93424
A125: 124 | B125: 65.37101 | C125: 11.16059 | D125: 724 | E125: 64.10688 | F125: 10.71933
A126: 125 | B126: 82.49241 | C126: 173.25789 | D126: 725 | E126: 87.59504 | F126: 174.79836
A127: 126 | B127: -3.48731 | C127: -153.85941 | D127: 726 | E127: 2.70948 | F127: -161.7517
A128: 127 | B128: -5.14903 | C128: -176.71263 | D128: 727 | E128: -8.37581 | F128: -172.6439
A129: 128 | B129: -17.81653 | C129: -105.12562 | D129: 728 | E129: -21.09653 | F129: -101.88431
A130: 129 | B130: -70.74075 | C130: -12.84168 | D130: 729 | E130: -72.5902 | F130: -7.20139
A131: 130 | B131: -83.23292 | C131: -152.45443 | D131: 730 | E131: -79.93417 | F131: -160.65608
A132: 131 | B132: 87.3874 | C132: 114.24518 | D132: 731 | E132: 89.51985 | F132: 121.92308
A133: 132 | B133: -30.74857 | C133: -83.26269 | D133: 732 | E133: -27.83836 | F133: -79.41597
A134: 133 | B134: -86.09504 | C134: -122.08154 | D134: 733 | E134: -79.95864 | F134: -123.32622
A135: 134 | B135: -81.75999 | C135: -91.06091 | D135: 734 | E135: -79.22942 | F135: -93.85499
A136: 135 | B136: 26.21778 | C136: 39.9747 | D136: 735 | E136: 31.68894 | F136: 34.08101
A137: 136 | B137: -45.80874 | C137: 121.35634 | D137: 736 | E137: -51.18545 | F137: 125.66355
A138: 137 | B138: 59.46224 | C138: -93.41772 | D138: 737 | E138: 57.37474 | F138: -97.69494
A139: 138 | B139: 56.53101 | C139: 134.18918 | D139: 738 | E139: 55.45573 | F139: 128.55419
A140: 139 | B140: -6.64667 | C140: 19.34654 | D140: 739 | E140: 0.74246 | F140: 16.24834
A141: 140 | B141: 41.65129 | C141: -150.10507 | D141: 740 | E141: 40.65954 | F141: -144.91209
A142: 141 | B142: 74.6346 | C142: -110.99214 | D142: 741 | E142: 70.51173 | F142: -109.96983
A143: 142 | B143: -10.3453 | C143: 170.51176 | D143: 742 | E143: -1.09834 | F143: 169.86118
A144: 143 | B144: -62.21591 | C144: -136.4099 | D144: 743 | E144: -61.63833 | F144: -134.16087
A145: 144 | B145: -61.21919 | C145: 146.68601 | D145: 744 | E145: -67.65264 | F145: 145.70181
A146: 145 | B146: -5.2585 | C146: 22.31585 | D146: 745 | E146: -13.99702 | F146: 12.33495
A147: 146 | B147: -4.44231 | C147: 114.01277 | D147: 746 | E147: -13.06206 | F147: 117.63001
A148: 147 | B148: 39.65273 | C148: 120.16179 | D148: 747 | E148: 34.30322 | F148: 113.30732
A149: 148 | B149: 28.54571 | C149: -104.90599 | D149: 748 | E149: 26.67799 | F149: -106.61301
A150: 149 | B150: 83.34608 | C150: 163.97328 | D150: 749 | E150: 78.22466 | F150: 162.5267
A151: 150 | B151: 23.91618 | C151: 60.61006 | D151: 750 | E151: 24.40583 | F151: 50.71551
A152: 151 | B152: 78.3759 | C152: 47.25355 | D152: 751 | E152: 74.36287 | F152: 55.25743
A153: 152 | B153: 28.51589 | C153: -44.68958 | D153: 752 | E153: 35.69252 | F153: -35.83572
A154: 153 | B154: 11.04585 | C154: -141.9044 | D154: 753 | E154: 6.75118 | F154: -138.75908
A155: 154 | B155: -60.36734 | C155: 102.53056 | D155: 754 | E155: -52.4024 | F155: 103.50996
A156: 155 | B156: -69.81647 | C156: -55.59771 | D156: 755 | E156: -71.18252 | F156: -49.14994
A157: 156 | B157: 73.04046 | C157: 109.00128 | D157: 756 | E157: 70.52713 | F157: 102.26978
A158: 157 | B158: 72.02595 | C158: -115.48669 | D158: 757 | E158: 79.24715 | F158: -124.58986
A159: 158 | B159: -60.63451 | C159: -28.29419 | D159: 758 | E159: -53.69995 | F159: -29.58136
A160: 159 | B160: -79.12195 | C160: -59.92566 | D160: 759 | E160: -74.02701 | F160: -54.78937
A161: 160 | B161: -84.82935 | C161: -78.92373 | D161: 760 | E161: -76.4918 | F161: -72.02729
A162: 161 | B162: -54.32421 | C162: -8.81775 | D162: 761 | E162: -51.52891 | F162: -9.66351
A163: 162 | B163: 29.94391 | C163: 94.4651 | D163: 762 | E163: 31.79965 | F163: 104.16052
A164: 163 | B164: -77.13309 | C164: 118.06853 | D164: 763 | E164: -84.16388 | F164: 108.68982
A165: 164 | B165: 15.55741 | C165: 93.43646 | D165: 764 | E165: 12.54777 | F165: 99.41416
A166: 165 | B166: 56.87082 | C166: 93.77069 | D166: 765 | E166: 47.84957 | F166: 92.60878
A167: 166 | B167: -32.13025 | C167: 25.5467 | D167: 766 | E167: -30.50968 | F167: 19.60276
A168: 167 | B168: 14.0237 | C168: 105.60255 | D168: 767 | E168: 15.25897 | F168: 96.28585
A169: 168 | B169: 16.59408 | C169: -168.68614 | D169: 768 | E169: 15.42199 | F169: -161.33268
A170: 169 | B170: 25.1623 | C170: 32.96971 | D170: 769 | E170: 15.16952 | F170: 42.55295
A171: 170 | B171: -8.4286 | C171: -81.49525 | D171: 770 | E171: -8.99448 | F171: -91.00892
A172: 171 | B172: -24.05081 | C172: 79.36939 | D172: 771 | E172: -15.2516 | F172: 87.07666
A173: 172 | B173: -53.1694 | C173: 69.62902 | D173: 772 | E173: -52.35373 | F173: 70.88526
A174: 173 | B174: -50.51388 | C174: 63.46119 | D174: 773 | E174: -45.35988 | F174: 67.69164
A175: 174 | B175: 55.77236 | C175: 95.44722 | D175: 774 | E175: 60.04375 | F175: 98.93223
A176: 175 | B176: -88.57758 | C176: -27.12125 | D176: 775 | E176: -89.04633 | F176: -36.98312
A177: 176 | B177: -77.38426 | C177: 13.02515 | D177: 776 | E177: -77.26919 | F177: 5.45759
A178: 177 | B178: 25.87314 | C178: 152.1365 | D178: 777 | E178: 16.34149 | F178: 142.54756
A179: 178 | B179: 60.63519 | C179: -18.58577 | D179: 778 | E179: 56.19925 | F179: -21.83446
A180: 179 | B180: 69.06225 | C180: 176.82599 | D180: 779 | E180: 63.58613 | F180: -174.9509
A181: 180 | B181: -26.06676 | C181: -120.9024 | D181: 780 | E181: -17.47777 | F181: -113.44263
A182: 181 | B182: -89.24421 | C182: 76.12988 | D182: 781 | E182: -82.44422 | F182: 85.38474
A183: 182 | B183: 45.35607 | C183: -62.40872 | D183: 782 | E183: 54.44751 | F183: -53.78741
A184: 183 | B184: -9.56595 | C184: 20.89078 | D184: 783 | E184: -9.6599 | F184: 12.41325
A185: 184 | B185: -68.51283 | C185: 88.40501 | D185: 784 | E185: -61.03101 | F185: 83.63429
A186: 185 | B186: 67.75607 | C186: -7.8779 | D186: 785 | E186: 61.46738 | F186: -6.88398
A187: 186 | B187: -52.44216 | C187: 20.65675 | D187: 786 | E187: -60.02686 | F187: 14.25952
A188: 187 | B188: 16.62362 | C188: 176.03188 | D188: 787 | E188: 12.38795 | F188: -177.78276
A189: 188 | B189: -25.84301 | C189: -14.81764 | D189: 788 | E189: -26.60894 | F189: -6.65613
A190: 189 | B190: -30.38682 | C190: -76.66879 | D190: 789 | E190: -23.24018 | F190: -75.04718
A191: 190 | B191: 55.91003 | C191: 165.71516 | D191: 790 | E191: 55.67723 | F191: 161.47691
A192: 191 | B192: -59.09515 | C192: 129.89176 | D192: 791 | E192: -50.12819 | F192: 136.99707
A193: 192 | B193: -77.11087 | C193: -3.87942 | D193: 792 | E193: -81.10062 | F193: -2.64908
A194: 193 | B194: -54.16944 | C194: 71.15004 | D194: 793 | E194: -54.49899 | F194: 78.35346
A195: 194 | B195: -63.89984 | C195: 41.55904 | D195: 794 | E195: -67.11991 | F195: 33.25622
A196: 195 | B196: 73.51418 | C196: -130.86909 | D196: 795 | E196: 76.48955 | F196: -123.543
A197: 196 | B197: 45.18775 | C197: -103.866 | D197: 796 | E197: 50.50656 | F197: -101.60582
A198: 197 | B198: -71.40592 | C198: 178.10623 | D198: 797 | E198: -64.21027 | F198: 175.41218
A199: 198 | B199: -30.22111 | C199: 29.88451 | D199: 798 | E199: -34.16193 | F199: 33.61278
A200: 199 | B200: 41.05043 | C200: 104.37965 | D200: 799 | E200: 38.30187 | F200: 107.0396
... 401 more rows

Sheet Inverse Geoscience Aus
A1: point1 | B1: lat1 | C1: lon1 | D1: point2 | E1: lat2 | F1: lon2 | G1: ell_dist | H1: azimuth1to2 | I1: azimuth2to1
A2: 1 | B2: -73.19034 | C2: -90.31707 | D2: 601 | E2: -7.69722 | F2: -97.15051 | G2: 7288125.696 | H2: 352.550901 | I2: 177.825232
A3: 2 | B3: -27.46273 | C3: 64.61237 | D3: 602 | E3: -23.95925 | F3: 155.74136 | G3: 8926024.122 | H3: 112.009205 | I3: 244.205242
A4: 3 | B4: -83.24124 | C4: -117.00995 | D4: 603 | E4: 64.20572 | F4: 121.59592 | G4: 17441757 | H4: 252.153736 | I4: 165.07228
A5: 4 | B5: -33.33966 | C5: -52.97975 | D5: 604 | E5: -18.05111 | F5: -51.95504 | G5: 1696868.681 | H5: 3.709398 | I5: 183.26109
A6: 5 | B6: 4.8343 | C6: 51.63044 | D6: 605 | E6: 31.7308 | F6: -136.5581 | G6: 15866490.84 | H6: 11.416517 | I6: 346.603493
A7: 6 | B7: -58.14701 | C7: -142.20697 | D7: 606 | E7: -44.84688 | F7: -115.80561 | G7: 2329780.672 | H7: 62.12592 | I7: 221.184567
A8: 7 | B8: -14.64314 | C8: -168.42305 | D8: 607 | E8: 20.68601 | F8: 125.92728 | G8: 8171429.838 | H8: 297.112281 | I8: 113.020738
A9: 8 | B9: 57.65154 | C9: 157.96238 | D9: 608 | E9: -69.68361 | F9: -12.81131 | G9: 18591406.41 | H9: 194.599198 | I9: 157.156202
A10: 9 | B10: -1.85269 | C10: 113.12232 | D10: 609 | E10: 14.28854 | F10: -58.39895 | G10: 18352200.14 | H10: 327.320529 | I10: 33.832856
A11: 10 | B11: -34.5545 | C11: -89.88912 | D11: 610 | E11: 8.94086 | F11: 26.80087 | G11: 13013464.1 | H11: 98.158765 | I11: 235.700402
A12: 11 | B12: -40.49139 | C12: -52.18973 | D12: 611 | E12: -32.45612 | F12: -172.04351 | G12: 9843902.637 | H12: 227.016579 | I12: 138.728422
A13: 12 | B13: -5.83531 | C13: -40.94056 | D13: 612 | E13: 58.06669 | F13: 128.92748 | G13: 14144633.18 | H13: 6.696255 | I13: 347.361958
A14: 13 | B14: 22.30837 | C14: -15.41261 | D14: 613 | E14: -77.91724 | F14: -21.18674 | G14: 11126939.11 | H14: 181.23136 | I14: 5.435166
A15: 14 | B15: 69.17075 | C15: -132.38274 | D15: 614 | E15: -7.79234 | F15: -148.41025 | G15: 8628113.187 | H15: 196.287344 | I15: 5.793538
A16: 15 | B16: -63.51078 | C16: 97.62327 | D16: 615 | E16: 71.74239 | F16: 116.67794 | G16: 15078802.09 | H16: 8.467175 | I16: 192.096435
A17: 16 | B17: -19.57667 | C17: 78.64998 | D17: 616 | E17: 69.27858 | F17: 136.25336 | G17: 10848297.54 | H17: 17.617183 | I17: 233.501859
A18: 17 | B18: 39.89388 | C18: -26.36665 | D18: 617 | E18: 43.53266 | F18: -1.88804 | G18: 2068921.011 | H18: 70.729946 | I18: 267.165705
A19: 18 | B19: -81.0146 | C19: 61.02025 | D19: 618 | E19: 39.04028 | F19: 68.61012 | G19: 13329277.57 | H19: 6.819059 | I19: 181.370766
A20: 19 | B20: -48.4641 | C20: 142.6176 | D20: 619 | E20: 20.16439 | F20: -137.13472 | G20: 10971195.91 | H20: 69.582146 | I20: 221.528058
A21: 20 | B21: -11.96942 | C21: 19.34359 | D21: 620 | E21: -63.41752 | F21: 71.2314 | G21: 6990777.019 | H21: 156.613359 | I21: 300.05504
A22: 21 | B22: -69.89148 | C22: -112.86902 | D22: 621 | E22: 14.28862 | F22: 105.75986 | G22: 13278834.89 | H22: 223.927061 | I22: 165.711693
A23: 22 | B23: -89.1759 | C23: 154.12211 | D23: 622 | E23: 56.21465 | F23: -75.16152 | G23: 16293897.99 | H23: 129.772135 | I23: 181.140258
A24: 23 | B24: 70.15869 | C24: 46.31041 | D24: 623 | E24: -3.0711 | F24: -70.82818 | G24: 11321064.53 | H24: 294.875846 | I24: 18.016019
A25: 24 | B25: 16.06744 | C25: -33.32609 | D25: 624 | E25: -64.48018 | F25: 108.66274 | G25: 13912911.09 | H25: 161.055419 | I25: 226.247766
A26: 25 | B26: -65.58488 | C26: -9.09296 | D26: 625 | E26: -23.25885 | F26: -108.1495 | G26: 8079548.193 | H26: 251.919623 | I26: 154.617374
A27: 26 | B27: 51.17777 | C27: 117.54172 | D27: 626 | E27: -9.32704 | F27: -118.73787 | G27: 13124386.16 | H27: 68.204057 | I27: 323.769238
A28: 27 | B28: 73.5045 | C28: -166.58958 | D28: 627 | E28: 5.81885 | F28: 163.43952 | G28: 7776083.775 | H28: 211.972455 | I28: 8.719094
A29: 28 | B29: -65.1988 | C29: -174.18019 | D29: 628 | E29: -28.90961 | F29: 29.75726 | G29: 9368637.249 | H29: 200.895895 | I29: 170.139445
A30: 29 | B30: -56.73138 | C30: -169.91386 | D30: 629 | E30: -69.35453 | F30: 13.2489 | G30: 6014625.472 | H30: 181.380045 | I30: 177.853852
A31: 30 | B31: -6.88687 | C31: -8.08623 | D31: 630 | E31: -41.40906 | F31: -68.35751 | G31: 7044804.275 | H31: 226.907289 | I31: 74.853744
A32: 31 | B32: 18.2308 | C32: 77.88579 | D32: 631 | E32: 34.19574 | F32: 92.44337 | G32: 2284594.022 | H32: 36.417644 | I32: 222.939324
A33: 32 | B33: -43.99951 | C33: -106.45717 | D33: 632 | E33: -24.05743 | F33: -127.96367 | G33: 2954440.679 | H33: 311.441586 | I33: 143.760157
A34: 33 | B34: 67.07137 | C34: 64.74052 | D34: 633 | E34: -13.06862 | F34: 97.42777 | G34: 9276811.591 | H34: 147.970051 | I34: 347.720369
A35: 34 | B35: -63.16404 | C35: 171.13805 | D35: 634 | E35: 66.35171 | F35: -36.605 | G35: 18654328.23 | H35: 62.607588 | I35: 272.421821
A36: 35 | B36: 68.74997 | C36: -16.91616 | D36: 635 | E36: -81.48964 | F36: -54.97925 | G36: 16831309.19 | H36: 191.068317 | I36: 28.03455
A37: 36 | B37: 68.79884 | C37: -132.99174 | D37: 636 | E37: 45.92479 | F37: 49.90748 | G37: 7278952.718 | H37: 357.78119 | I37: 1.154719
A38: 37 | B38: 46.28192 | C38: -68.09947 | D38: 637 | E38: 3.94219 | F38: 169.94654 | G38: 12060516.68 | H38: 297.030988 | I38: 38.180888
A39: 38 | B39: 29.88075 | C39: 43.05528 | D39: 638 | E39: 56.30645 | F39: 37.67671 | G39: 2966149.701 | H39: 353.325891 | I39: 169.549741
A40: 39 | B40: -16.53242 | C40: -63.16033 | D40: 639 | E40: -18.92779 | F40: 58.51119 | G40: 12533853.74 | H40: 119.404564 | I40: 241.985369
A41: 40 | B41: -59.59586 | C41: -11.01537 | D41: 640 | E41: -62.37769 | F41: 36.85268 | G41: 2549123.515 | H41: 117.643006 | I41: 255.203346
A42: 41 | B42: -9.32988 | C42: 58.54634 | D42: 641 | E42: 36.54892 | F42: -49.88832 | G42: 12271081.06 | H42: 305.567512 | I42: 86.427136
A43: 42 | B43: -84.07493 | C43: -20.86846 | D43: 642 | E43: -88.65931 | F43: -77.09891 | G43: 591727.509 | H43: 192.160471 | I43: 68.333261
A44: 43 | B44: -70.92851 | C44: -35.97439 | D44: 643 | E44: 54.71416 | F44: -101.14644 | G44: 14851083.61 | H44: 313.322511 | I44: 155.680643
A45: 44 | B45: 44.04228 | C45: 149.45542 | D45: 644 | E45: 44.36455 | F45: -13.95912 | G45: 10074604.48 | H45: 348.236192 | I45: 11.829041
A46: 45 | B46: -46.16543 | C46: -161.16449 | D46: 645 | E46: -31.39342 | F46: -53.70387 | G46: 8754736.19 | H46: 123.875129 | I46: 222.391395
A47: 46 | B47: -89.39807 | C47: 81.8686 | D47: 646 | E47: -13.23263 | F47: -96.45023 | G47: 8605721.786 | H47: 181.677041 | I47: 179.981846
A48: 47 | B48: 78.9649 | C48: 64.74648 | D48: 647 | E48: 86.20707 | F48: -24.31113 | G48: 1295718.677 | H48: 340.797089 | I48: 72.105917
A49: 48 | B49: -55.4948 | C49: 78.02308 | D49: 648 | E49: 79.25122 | F49: -129.02636 | G49: 17177097.93 | H49: 11.417383 | I49: 323.081012
A50: 49 | B50: 22.12128 | C50: -121.46489 | D50: 649 | E50: 36.99526 | F50: 133.47765 | G50: 9805356.254 | H50: 309.48589 | I50: 63.447103
A51: 50 | B51: 66.24308 | C51: -44.36896 | D51: 650 | E51: 39.01021 | F51: -18.76487 | G51: 3435870.113 | H51: 139.054072 | I51: 340.106531
A52: 51 | B52: -28.9402 | C52: 154.92586 | D52: 651 | E52: -39.29828 | F52: 38.95881 | G52: 9964216.649 | H52: 224.074761 | I52: 128.170001
A53: 52 | B53: 32.50235 | C53: -149.48728 | D53: 652 | E53: 76.77299 | F53: -106.60453 | G53: 5384030.202 | H53: 12.059529 | I53: 230.208904
A54: 53 | B54: -38.18925 | C54: -115.41135 | D54: 653 | E54: -41.62528 | F54: 170.0462 | G54: 6179877.603 | H54: 241.032078 | I54: 113.113039
A55: 54 | B55: 20.63661 | C55: -166.07919 | D55: 654 | E55: 64.65931 | F55: 140.75031 | G55: 6233671.172 | H55: 335.524668 | I55: 115.340756
A56: 55 | B56: -87.27567 | C56: -40.8868 | D56: 655 | E56: -61.0534 | F56: 126.21026 | G56: 3527724.894 | H56: 168.100322 | I56: 181.16121
A57: 56 | B57: -65.26835 | C57: 22.99807 | D57: 656 | E57: -13.56738 | F57: 116.74199 | G57: 8818419.364 | H57: 99.217751 | I57: 205.208946
A58: 57 | B58: 12.13145 | C58: -7.64494 | D58: 657 | E58: 3.04059 | F58: -160.11855 | G58: 16552270.06 | H58: 297.615897 | I58: 60.184223
A59: 58 | B59: 47.68625 | C59: 52.70501 | D59: 658 | E59: 44.65729 | F59: 149.32465 | G59: 6949214.265 | H59: 52.912935 | I59: 310.966879
A60: 59 | B60: 80.82172 | C60: 54.91928 | D60: 659 | E60: -47.02494 | F60: -139.65668 | G60: 16197045.79 | H60: 17.764366 | I60: 355.900029
A61: 60 | B61: 55.42576 | C61: -86.43305 | D61: 660 | E61: -82.72469 | F61: 134.173 | G61: 16726146.3 | H61: 189.671579 | I61: 131.23161
A62: 61 | B62: 18.85826 | C62: 17.28383 | D62: 661 | E62: 56.32137 | F62: -163.41587 | G62: 11673348.67 | H62: 0.401217 | I62: 359.316655
A63: 62 | B63: 17.26771 | C63: 157.71124 | D63: 662 | E63: -81.17156 | F63: 59.53421 | G63: 12028828.32 | H63: 189.234859 | I63: 95.413046
A64: 63 | B64: -26.74848 | C64: -149.95333 | D64: 663 | E64: 14.54387 | F64: 83.49962 | G64: 14339963.47 | H64: 267.230384 | I64: 112.793568
A65: 64 | B65: 1.47439 | C65: -90.10711 | D65: 664 | E65: 37.68104 | F65: -63.98358 | G65: 4818719.41 | H65: 30.599144 | I65: 219.953294
A66: 65 | B66: 19.72255 | C66: 66.42151 | D66: 665 | E66: 80.06413 | F66: -12.07429 | G66: 7633895.752 | H66: 349.505907 | I66: 97.780702
A67: 66 | B67: -88.28717 | C67: 104.3566 | D67: 666 | E67: -27.90477 | F67: -58.98726 | G67: 7097483.634 | H67: 196.405157 | I67: 179.451238
A68: 67 | B68: 43.51418 | C68: -6.93198 | D68: 667 | E68: -34.24805 | F68: -108.17846 | G68: 13364872.9 | H68: 250.054666 | I68: 55.602347
A69: 68 | B69: -42.51504 | C69: 163.76437 | D69: 668 | E69: 14.84228 | F69: 117.39414 | G69: 7924499.614 | H69: 312.267416 | I69: 145.595464
A70: 69 | B70: 53.73513 | C70: -89.04362 | D70: 669 | E70: 67.82536 | F70: -152.99635 | G70: 3610421.093 | H70: 320.659787 | I70: 83.124061
A71: 70 | B71: 33.10338 | C71: 50.5702 | D71: 670 | E71: 26.74669 | F71: 114.93257 | G71: 6159231.567 | H71: 78.312659 | I71: 293.234146
A72: 71 | B72: -43.66365 | C72: 132.49026 | D72: 671 | E72: 46.37881 | F72: 168.42698 | G72: 10584894.54 | H72: 24.098103 | I72: 205.345095
A73: 72 | B73: -83.63017 | C73: 15.75479 | D73: 672 | E73: -89.42356 | F73: -12.1672 | G73: 655243.68 | H73: 182.641828 | I73: 30.548802
A74: 73 | B74: 52.38446 | C74: 175.12578 | D74: 673 | E74: 51.06218 | F74: 133.12858 | G74: 2864739.09 | H74: 283.999418 | I74: 70.458464
A75: 74 | B75: 80.15605 | C75: 20.96157 | D75: 674 | E75: 18.22913 | F75: 6.37317 | G75: 6924158.089 | H75: 195.692932 | I75: 2.798831
A76: 75 | B76: 45.80458 | C76: -59.00088 | D76: 675 | E76: 85.7035 | F76: 22.08818 | G76: 4871626.567 | H76: 6.160616 | I76: 265.530711
A77: 76 | B77: 56.1806 | C77: 79.64396 | D77: 676 | E77: -61.49727 | F77: -72.03834 | G77: 18288955.13 | H77: 238.210655 | I77: 97.648892
A78: 77 | B78: 47.96719 | C78: -62.15574 | D78: 677 | E78: 82.8889 | F78: 69.65645 | G78: 5243855.964 | H78: 7.254972 | I78: 316.997014
A79: 78 | B79: -24.09962 | C79: 141.74152 | D79: 678 | E79: -67.92684 | F79: -95.95838 | G79: 8771186.416 | H79: 161.072593 | I79: 231.822706
A80: 79 | B80: 0.09089 | C80: -41.97739 | D80: 679 | E80: 83.37262 | F80: 61.2701 | G80: 10161458.53 | H80: 6.472875 | I80: 283.206026
A81: 80 | B81: -73.71131 | C81: 22.66018 | D81: 680 | E81: -46.2195 | F81: 5.28449 | G81: 3183285.984 | H81: 334.380339 | I81: 169.891209
A82: 81 | B82: -22.00409 | C82: -44.46014 | D82: 681 | E82: 29.54902 | F82: 118.34869 | G82: 18112446.32 | H82: 60.007979 | I82: 292.668897
A83: 82 | B83: 51.16355 | C83: 160.15751 | D83: 682 | E83: -16.7995 | F83: -174.80132 | G83: 7914420.654 | H83: 154.59867 | I83: 343.651211
A84: 83 | B84: -20.3343 | C84: -128.91397 | D84: 683 | E84: -78.71621 | F84: 33.71542 | G84: 8958543.552 | H84: 176.596898 | I84: 196.478989
A85: 84 | B85: 58.3115 | C85: 96.55998 | D85: 684 | E85: 68.62551 | F85: -2.80535 | G85: 4511895.857 | H85: 326.31004 | I85: 53.044672
A86: 85 | B86: -89.46337 | C86: 112.70293 | D86: 685 | E86: -81.78616 | F86: -166.90851 | G86: 909274.861 | H86: 84.089584 | I86: 183.739012
A87: 86 | B87: 76.6398 | C87: -84.53647 | D87: 686 | E87: -1.82647 | F87: 75.82941 | G87: 11607157.09 | H87: 20.261354 | I87: 355.393256
A88: 87 | B88: 24.83473 | C88: -104.82879 | D88: 687 | E88: 27.55943 | F88: 163.46988 | G88: 8931844.856 | H88: 295.949011 | I88: 66.978603
A89: 88 | B89: 73.39275 | C89: 101.94214 | D89: 688 | E89: 12.9153 | F89: 154.44694 | G89: 7496752.537 | H89: 123.065147 | I89: 345.73202
A90: 89 | B90: 70.47559 | C90: -168.26903 | D90: 689 | E90: -56.33708 | F90: 100.75643 | G90: 15762230.52 | H90: 244.203318 | I90: 32.901948
A91: 90 | B91: -23.36444 | C91: -58.08665 | D91: 690 | E91: -80.31915 | F91: -108.47099 | G91: 6754537.304 | H91: 188.569432 | I91: 54.215778
A92: 91 | B92: 28.44896 | C92: -71.63758 | D92: 691 | E92: 89.66514 | F92: -169.04756 | G92: 6858651.072 | H92: 359.621504 | I92: 82.409108
A93: 92 | B93: 8.68468 | C93: -168.56728 | D93: 692 | E93: -67.72555 | F93: 31.9606 | G93: 13273425.58 | H93: 188.778271 | I93: 156.615915
A94: 93 | B94: -67.91624 | C94: -62.03752 | D94: 693 | E94: -42.90264 | F94: -169.37138 | G94: 6324868.245 | H94: 236.730762 | I94: 154.551474
A95: 94 | B95: 8.78751 | C95: 12.0727 | D95: 694 | E95: 47.91579 | F95: 178.19513 | G95: 13576996.58 | H95: 10.90136 | I95: 343.837164
A96: 95 | B96: -1.93261 | C96: -49.4728 | D96: 695 | E96: 52.70204 | F96: -178.83775 | G96: 12711428.21 | H96: 329.062618 | I96: 57.793212
A97: 96 | B97: 63.47177 | C97: 15.39042 | D97: 696 | E97: -25.44063 | F97: 27.82426 | G97: 9916507.919 | H97: 168.757003 | I97: 354.454742
A98: 97 | B98: -19.58109 | C98: -91.32051 | D98: 697 | E98: -64.3446 | F98: -136.7434 | G98: 5999956.623 | H98: 202.50113 | I98: 56.186104
A99: 98 | B99: -2.57153 | C99: -1.34456 | D99: 698 | E99: -55.96553 | F99: -109.17691 | G99: 10868721.92 | H99: 212.583033 | I99: 106.463472
A100: 99 | B100: -67.83719 | C100: -47.37088 | D100: 699 | E100: -5.5325 | F100: -50.83385 | G100: 6920914.51 | H100: 356.100226 | I100: 178.518729
A101: 100 | B101: -43.76535 | C101: 120.7183 | D101: 700 | E101: -13.83961 | F101: 139.33964 | G101: 3762439.146 | H101: 33.885841 | I101: 204.536208
A102: 101 | B102: -46.86458 | C102: -124.83391 | D102: 701 | E102: -45.47589 | F102: -124.42449 | G102: 157563.539 | H102: 11.723852 | I102: 191.428474
A103: 102 | B103: -51.32503 | C103: -26.1731 | D103: 702 | E103: -43.87043 | F103: -21.44997 | G103: 901247.91 | H103: 24.971776 | I103: 201.475775
A104: 103 | B104: 17.04181 | C104: -23.13026 | D104: 703 | E104: 17.16122 | F104: -31.74838 | G104: 917232.239 | H104: 272.093239 | I104: 89.554545
A105: 104 | B105: 15.50744 | C105: -166.73916 | D105: 704 | E105: 9.94684 | F105: -157.50866 | G105: 1175722.288 | H105: 120.450094 | I105: 302.490283
A106: 105 | B106: -51.03851 | C106: -144.04768 | D106: 705 | E106: -47.69309 | F106: -147.16191 | G106: 435337.993 | H106: 327.510183 | I106: 149.874775
A107: 106 | B107: -12.56946 | C107: 153.40758 | D107: 706 | E107: -21.1512 | F107: 155.96993 | G107: 988119.738 | H107: 164.315797 | I107: 343.570402
A108: 107 | B108: 70.03686 | C108: 88.46113 | D108: 707 | E108: 79.33889 | F108: 96.56698 | G108: 1062926.968 | H108: 9.076893 | I108: 196.921667
A109: 108 | B109: -25.37777 | C109: 162.96799 | D109: 708 | E109: -18.86743 | F109: 160.58103 | G109: 761747.224 | H109: 340.677181 | I109: 161.577656
A110: 109 | B110: -24.74773 | C110: 121.9104 | D110: 709 | E110: -16.02477 | F110: 125.33676 | G110: 1029662.387 | H110: 20.945192 | I110: 199.747834
A111: 110 | B111: 29.14093 | C111: 173.23385 | D111: 710 | E111: 37.93865 | F111: 169.67572 | G111: 1029995.487 | H111: 342.253779 | I111: 160.281588
A112: 111 | B112: -22.44654 | C112: 123.52539 | D112: 711 | E112: -28.32085 | F112: 123.92205 | G112: 651973.02 | H112: 176.57344 | I112: 356.403176
A113: 112 | B113: -33.69231 | C113: 35.29391 | D113: 712 | E113: -27.45753 | F113: 40.54741 | G113: 855080.934 | H113: 37.466232 | I113: 214.788594
A114: 113 | B114: -20.6748 | C114: 105.92502 | D114: 713 | E114: -17.06724 | F114: 115.33927 | G114: 1069049.197 | H114: 69.647649 | I114: 246.595012
A115: 114 | B115: 58.57587 | C115: 35.0594 | D115: 714 | E115: 51.47959 | F115: 25.97032 | G115: 978958.298 | H115: 220.152445 | I115: 32.685148
A116: 115 | B116: 11.13489 | C116: 69.0879 | D116: 715 | E116: 20.03739 | F116: 78.12756 | G116: 1381289.97 | H116: 43.410696 | I116: 225.851638
A117: 116 | B117: 12.22848 | C117: 33.50832 | D117: 716 | E117: 4.24665 | F117: 33.87851 | G117: 883720.91 | H117: 177.325938 | I117: 357.379108
A118: 117 | B118: -38.40908 | C118: 56.48505 | D118: 717 | E118: -34.31016 | F118: 64.22019 | G118: 829495.278 | H118: 59.111134 | I118: 234.517861
A119: 118 | B119: 15.40639 | C119: 164.11288 | D119: 718 | E119: 13.30926 | F119: 162.2586 | G119: 306329.787 | H119: 220.995322 | I119: 40.535388
A120: 119 | B120: 9.24082 | C120: 131.63161 | D120: 719 | E120: 12.18455 | F120: 138.36069 | G120: 804814.547 | H120: 65.538495 | I120: 246.791139
A121: 120 | B121: 41.12114 | C121: 98.41758 | D121: 720 | E121: 36.02553 | F121: 88.56015 | G121: 1027495.907 | H121: 239.790101 | I121: 53.628425
A122: 121 | B122: 71.45403 | C122: -99.23717 | D122: 721 | E122: 61.9215 | F122: -107.97436 | G122: 1128214.537 | H122: 204.039455 | I122: 15.985338
A123: 122 | B123: 89.78355 | C123: 66.10397 | D123: 722 | E123: 82.13979 | F123: 59.49623 | G123: 853871.611 | H123: 186.793258 | I123: 0.187229
A124: 123 | B124: -53.71157 | C124: 136.44644 | D124: 723 | E124: -61.27499 | F124: 132.93424 | G124: 867936.532 | H124: 192.567494 | I124: 15.536169
A125: 124 | B125: 65.37101 | C125: 11.16059 | D125: 724 | E125: 64.10688 | F125: 10.71933 | G125: 142494.055 | H125: 188.682473 | I125: 8.283384
A126: 125 | B126: 82.49241 | C126: 173.25789 | D126: 725 | E126: 87.59504 | F126: 174.79836 | G126: 570028.863 | H126: 0.726604 | I126: 182.262837
A127: 126 | B127: -3.48731 | C127: -153.85941 | D127: 726 | E127: 2.70948 | F127: -161.7517 | G127: 1113827.079 | H127: 307.867498 | I127: 127.921234
A128: 127 | B128: -5.14903 | C128: -176.71263 | D128: 727 | E128: -8.37581 | F128: -172.6439 | G128: 574111.405 | H128: 128.651137 | I128: 308.171642
A129: 128 | B129: -17.81653 | C129: -105.12562 | D129: 728 | E129: -21.09653 | F129: -101.88431 | G129: 497614.059 | H129: 137.380741 | I129: 316.300386
A130: 129 | B130: -70.74075 | C130: -12.84168 | D130: 729 | E130: -72.5902 | F130: -7.20139 | G130: 285845.267 | H130: 138.823228 | I130: 313.468136
A131: 130 | B131: -83.23292 | C131: -152.45443 | D131: 730 | E131: -79.93417 | F131: -160.65608 | G131: 391097.708 | H131: 335.907898 | I131: 164.024868
A132: 131 | B132: 87.3874 | C132: 114.24518 | D132: 731 | E132: 89.51985 | F132: 121.92308 | G132: 238768.057 | H132: 1.720019 | I132: 189.396456
A133: 132 | B133: -30.74857 | C133: -83.26269 | D133: 732 | E133: -27.83836 | F133: -79.41597 | G133: 493633.805 | H133: 50.15955 | I133: 228.276266
A134: 133 | B134: -86.09504 | C134: -122.08154 | D134: 733 | E134: -79.95864 | F134: -123.32622 | G134: 685458.124 | H134: 357.969903 | I134: 179.207151
A135: 134 | B135: -81.75999 | C135: -91.06091 | D135: 734 | E135: -79.22942 | F135: -93.85499 | G135: 287149.495 | H135: 348.283651 | I135: 171.040056
A136: 135 | B136: 26.21778 | C136: 39.9747 | D136: 735 | E136: 31.68894 | F136: 34.08101 | G136: 835019.12 | H136: 317.938853 | I136: 135.080527
A137: 136 | B137: -45.80874 | C137: 121.35634 | D137: 736 | E137: -51.18545 | F137: 125.66355 | G137: 677065.119 | H137: 153.563745 | I137: 330.333752
A138: 137 | B138: 59.46224 | C138: -93.41772 | D138: 737 | E138: 57.37474 | F138: -97.69494 | G138: 341268.407 | H138: 228.908583 | I138: 45.263766
A139: 138 | B139: 56.53101 | C139: 134.18918 | D139: 738 | E139: 55.45573 | F139: 128.55419 | G139: 371335.852 | H139: 253.548549 | I139: 68.875909
A140: 139 | B140: -6.64667 | C140: 19.34654 | D140: 739 | E140: 0.74246 | F140: 16.24834 | G140: 886618.262 | H140: 337.043319 | I140: 157.203253
A141: 140 | B141: 41.65129 | C141: -150.10507 | D141: 740 | E141: 40.65954 | F141: -144.91209 | G141: 449504.431 | H141: 102.461855 | I141: 285.880835
A142: 141 | B142: 74.6346 | C142: -110.99214 | D142: 741 | E142: 70.51173 | F142: -109.96983 | G142: 461332.055 | H142: 175.261384 | I142: 356.237405
A143: 142 | B143: -10.3453 | C143: 170.51176 | D143: 742 | E143: -1.09834 | F143: 169.86118 | G143: 1025130.229 | H143: 355.93205 | I143: 175.997126
A144: 143 | B144: -62.21591 | C144: -136.4099 | D144: 743 | E144: -61.63833 | F144: -134.16087 | G144: 134515.37 | H144: 62.409163 | I144: 240.42465
A145: 144 | B145: -61.21919 | C145: 146.68601 | D145: 744 | E145: -67.65264 | F145: 145.70181 | G145: 718764.127 | H145: 183.338981 | I145: 4.228238
A146: 145 | B146: -5.2585 | C146: 22.31585 | D146: 745 | E146: -13.99702 | F146: 12.33495 | G146: 1460060.216 | H146: 227.839668 | I146: 49.517978
A147: 146 | B147: -4.44231 | C147: 114.01277 | D147: 746 | E147: -13.06206 | F147: 117.63001 | G147: 1032952.816 | H147: 157.590528 | I147: 337.038377
A148: 147 | B148: 39.65273 | C148: 120.16179 | D148: 747 | E148: 34.30322 | F148: 113.30732 | G148: 850898.265 | H148: 227.901037 | I148: 43.770356
A149: 148 | B149: 28.54571 | C149: -104.90599 | D149: 748 | E149: 26.67799 | F149: -106.61301 | G149: 266878.656 | H149: 219.549776 | I149: 38.758456
A150: 149 | B150: 83.34608 | C150: 163.97328 | D150: 749 | E150: 78.22466 | F150: 162.5267 | G150: 572419.946 | H150: 183.305847 | I150: 1.876505
A151: 150 | B151: 23.91618 | C151: 60.61006 | D151: 750 | E151: 24.40583 | F151: 50.71551 | G151: 1006778.569 | H151: 275.108753 | I151: 91.050411
A152: 151 | B152: 78.3759 | C152: 47.25355 | D152: 751 | E152: 74.36287 | F152: 55.25743 | G152: 494006.028 | H152: 150.885034 | I152: 338.668948
A153: 152 | B153: 28.51589 | C153: -44.68958 | D153: 752 | E153: 35.69252 | F153: -35.83572 | G153: 1152949.124 | H153: 44.114659 | I153: 228.836174
A154: 153 | B154: 11.04585 | C154: -141.9044 | D154: 753 | E154: 6.75118 | F154: -138.75908 | G154: 587572.57 | H154: 143.67671 | I154: 324.163706
A155: 154 | B155: -60.36734 | C155: 102.53056 | D155: 754 | E155: -52.4024 | F155: 103.50996 | G155: 888916.227 | H155: 4.314293 | I155: 183.496691
A156: 155 | B156: -69.81647 | C156: -55.59771 | D156: 755 | E156: -71.18252 | F156: -49.14994 | G156: 284354.544 | H156: 125.394371 | I156: 299.315309
A157: 156 | B157: 73.04046 | C157: 109.00128 | D157: 756 | E157: 70.52713 | F157: 102.26978 | G157: 365437.73 | H157: 223.189243 | I157: 36.792846
A158: 157 | B158: 72.02595 | C158: -115.48669 | D158: 757 | E158: 79.24715 | F158: -124.58986 | G158: 842173.916 | H158: 347.001316 | I158: 158.164079
A159: 158 | B159: -60.63451 | C159: -28.29419 | D159: 758 | E159: -53.69995 | F159: -29.58136 | G159: 776125.68 | H159: 353.696451 | I159: 174.780004
A160: 159 | B160: -79.12195 | C160: -59.92566 | D160: 759 | E160: -74.02701 | F160: -54.78937 | G160: 583597.703 | H160: 15.691495 | I160: 190.690449
A161: 160 | B161: -84.82935 | C161: -78.92373 | D161: 760 | E161: -76.4918 | F161: -72.02729 | G161: 937689.101 | H161: 11.073794 | I161: 184.250543
A162: 161 | B162: -54.32421 | C162: -8.81775 | D162: 761 | E162: -51.52891 | F162: -9.66351 | G162: 316225.254 | H162: 349.299585 | I162: 169.974592
A163: 162 | B163: 29.94391 | C163: 94.4651 | D163: 762 | E163: 31.79965 | F163: 104.16052 | G163: 949375.952 | H163: 75.026319 | I163: 260.010678
A164: 163 | B164: -77.13309 | C164: 118.06853 | D164: 763 | E164: -84.16388 | F164: 108.68982 | G164: 800748.697 | H164: 187.629777 | I164: 16.901761
A165: 164 | B165: 15.55741 | C165: 93.43646 | D165: 764 | E165: 12.54777 | F165: 99.41416 | G165: 726364.393 | H165: 116.531417 | I165: 297.984628
A166: 165 | B166: 56.87082 | C166: 93.77069 | D166: 765 | E166: 47.84957 | F166: 92.60878 | G166: 1006904.09 | H166: 184.974747 | I166: 4.051796
A167: 166 | B167: -32.13025 | C167: 25.5467 | D167: 766 | E167: -30.50968 | F167: 19.60276 | G167: 593510.874 | H167: 286.057733 | I167: 109.149837
A168: 167 | B168: 14.0237 | C168: 105.60255 | D168: 767 | E168: 15.25897 | F168: 96.28585 | G168: 1012836.411 | H168: 278.917563 | I168: 96.557567
A169: 168 | B169: 16.59408 | C169: -168.68614 | D169: 768 | E169: 15.42199 | F169: -161.33268 | G169: 797599.85 | H169: 98.329919 | I169: 280.360497
A170: 169 | B170: 25.1623 | C170: 32.96971 | D170: 769 | E170: 15.16952 | F170: 42.55295 | G170: 1491183.785 | H170: 136.073192 | I170: 319.396429
A171: 170 | B171: -8.4286 | C171: -81.49525 | D171: 770 | E171: -8.99448 | F171: -91.00892 | G171: 1048756.311 | H171: 265.864654 | I171: 87.308877
A172: 171 | B172: -24.05081 | C172: 79.36939 | D172: 771 | E172: -15.2516 | F172: 87.07666 | G172: 1265036.879 | H172: 41.057759 | I172: 218.454665
A173: 172 | B173: -53.1694 | C173: 69.62902 | D173: 772 | E173: -52.35373 | F173: 70.88526 | G173: 124217.116 | H173: 43.555673 | I173: 222.55551
A174: 173 | B174: -50.51388 | C174: 63.46119 | D174: 773 | E174: -45.35988 | F174: 67.69164 | G174: 654197.864 | H174: 30.470718 | I174: 207.326174
A175: 174 | B175: 55.77236 | C175: 95.44722 | D175: 774 | E175: 60.04375 | F175: 98.93223 | G175: 518482.889 | H175: 22.008719 | I175: 204.963519
A176: 175 | B176: -88.57758 | C176: -27.12125 | D176: 775 | E176: -89.04633 | F176: -36.98312 | G176: 56931.964 | H176: 198.689553 | I176: 28.549396
A177: 176 | B177: -77.38426 | C177: 13.02515 | D177: 776 | E177: -77.26919 | F177: 5.45759 | G177: 185725.168 | H177: 270.265867 | I177: 97.649578
A178: 177 | B178: 25.87314 | C178: 152.1365 | D178: 777 | E178: 16.34149 | F178: 142.54756 | G178: 1450056.569 | H178: 225.18594 | I178: 41.713695
A179: 178 | B179: 60.63519 | C179: -18.58577 | D179: 778 | E179: 56.19925 | F179: -21.83446 | G179: 529160.879 | H179: 202.41473 | I179: 19.644942
A180: 179 | B180: 69.06225 | C180: 176.82599 | D180: 779 | E180: 63.58613 | F180: -174.9509 | G180: 711943.01 | H180: 145.05893 | I180: 332.600596
A181: 180 | B181: -26.06676 | C181: -120.9024 | D181: 780 | E181: -17.47777 | F181: -113.44263 | G181: 1223926.821 | H181: 40.505452 | I181: 217.727265
A182: 181 | B182: -89.24421 | C182: 76.12988 | D182: 781 | E182: -82.44422 | F182: 85.38474 | G182: 760688.055 | H182: 10.271869 | I182: 181.025032
A183: 182 | B183: 45.35607 | C183: -62.40872 | D183: 782 | E183: 54.44751 | F183: -53.78741 | G183: 1183858.361 | H183: 28.251247 | I183: 214.872041
A184: 183 | B184: -9.56595 | C184: 20.89078 | D184: 783 | E184: -9.6599 | F184: 12.41325 | G184: 930584.103 | H184: 268.652282 | I184: 90.070488
A185: 184 | B185: -68.51283 | C185: 88.40501 | D185: 784 | E185: -61.03101 | F185: 83.63429 | G185: 863834.627 | H185: 342.596802 | I185: 166.92215
A186: 185 | B186: 67.75607 | C186: -7.8779 | D186: 785 | E186: 61.46738 | F186: -6.88398 | G186: 702689.678 | H186: 175.666966 | I186: 356.566256
A187: 186 | B187: -52.44216 | C187: 20.65675 | D187: 786 | E187: -60.02686 | F187: 14.25952 | G187: 932048.795 | H187: 202.53474 | I187: 27.866265
A188: 187 | B188: 16.62362 | C188: 176.03188 | D188: 787 | E188: 12.38795 | F188: -177.78276 | G188: 814807.423 | H188: 124.295098 | I188: 305.846878
A189: 188 | B189: -25.84301 | C189: -14.81764 | D189: 788 | E189: -26.60894 | F189: -6.65613 | G189: 819800.462 | H189: 97.73613 | I189: 274.124434
A190: 189 | B190: -30.38682 | C190: -76.66879 | D190: 789 | E190: -23.24018 | F190: -75.04718 | G190: 808065.877 | H190: 11.882151 | I190: 191.149193
A191: 190 | B191: 55.91003 | C191: 165.71516 | D191: 790 | E191: 55.67723 | F191: 161.47691 | G191: 267061.475 | H191: 266.186655 | I191: 82.681032
A192: 191 | B192: -59.09515 | C192: 129.89176 | D192: 791 | E192: -50.12819 | F192: 136.99707 | G192: 1097226.774 | H192: 27.654482 | I192: 201.841629
A193: 192 | B193: -77.11087 | C193: -3.87942 | D193: 792 | E193: -81.10062 | F193: -2.64908 | G193: 446199.73 | H193: 177.267337 | I193: 356.058436
A194: 193 | B194: -54.16944 | C194: 71.15004 | D194: 793 | E194: -54.49899 | F194: 78.35346 | G194: 469804.157 | H194: 97.397853 | I194: 271.542915
A195: 194 | B195: -63.89984 | C195: 41.55904 | D195: 794 | E195: -67.11991 | F195: 33.25622 | G195: 525080.65 | H195: 223.212715 | I195: 50.773805
A196: 195 | B196: 73.51418 | C196: -130.86909 | D196: 795 | E196: 76.48955 | F196: -123.543 | G196: 393228.415 | H196: 29.015404 | I196: 216.094951
A197: 196 | B197: 45.18775 | C197: -103.866 | D197: 796 | E197: 50.50656 | F197: -101.60582 | G197: 615023.218 | H197: 15.131541 | I197: 196.80905
A198: 197 | B198: -71.40592 | C198: 178.10623 | D198: 797 | E198: -64.21027 | F198: 175.41218 | G198: 810345.092 | H198: 350.687046 | I198: 173.186525
A199: 198 | B199: -30.22111 | C199: 29.88451 | D199: 798 | E199: -34.16193 | F199: 33.61278 | G199: 560753.585 | H199: 142.162294 | I199: 320.17437
A200: 199 | B200: 41.05043 | C200: 104.37965 | D200: 799 | E200: 38.30187 | F200: 107.0396 | G200: 381017.522 | H200: 142.352948 | I200: 324.051858
... 401 more rows
